Body Name,Body,Service Area Catergorisation,Service Division Catergorisation,Responsible Unit,Expenses Type,Detailed Expenses Type,Expenses Code,Date,Transaction Number,Amount,Capital / Revenue,Supplier Name,Supplier ID
North East Lincolnshire Council,http://statistics.data.gov.uk/id/local-authority/00FC,Business Services,Law & Democratic Services,Legal Services,Direct Employee Expenses,Agency Staff,EA105,13/06/2011,15754,"6,690.34 ",REVENUE,AD LITEM LEGAL SERVICES,102182
North East Lincolnshire Council,http://statistics.data.gov.uk/id/local-authority/00FC,Business Services,Law & Democratic Services,Legal Services,Direct Employee Expenses,Agency Staff,EA105,10/06/2011,15145,"6,690.34 ",REVENUE,AD LITEM LEGAL SERVICES,104447
North East Lincolnshire Council,http://statistics.data.gov.uk/id/local-authority/00FC,Business Services,Law & Democratic Services,Legal Services,Direct Employee Expenses,Agency Staff,EA105,13/06/2011,15423,896.16 ,REVENUE,BADENOCH & CLARK,101427
North East Lincolnshire Council,http://statistics.data.gov.uk/id/local-authority/00FC,Business Services,Law & Democratic Services,Legal Services,Direct Employee Expenses,Agency Staff,EA105,07/06/2011,13967,"1,099.89 ",REVENUE,BADENOCH & CLARK,101427
North East Lincolnshire Council,http://statistics.data.gov.uk/id/local-authority/00FC,Business Services,Law & Democratic Services,Legal Services,Direct Employee Expenses,Agency Staff,EA105,10/06/2011,15146,"1,194.88 ",REVENUE,BADENOCH & CLARK,101427
North East Lincolnshire Council,http://statistics.data.gov.uk/id/local-authority/00FC,Business Services,Law & Democratic Services,Legal Services,Direct Employee Expenses,Agency Staff,EA105,29/06/2011,20055,"1,194.88 ",REVENUE,BADENOCH & CLARK,101427
North East Lincolnshire Council,http://statistics.data.gov.uk/id/local-authority/00FC,Business Services,Law & Democratic Services,Legal Services,Direct Employee Expenses,Agency Staff,EA105,07/06/2011,13968,"1,677.06 ",REVENUE,BADENOCH & CLARK,101427
North East Lincolnshire Council,http://statistics.data.gov.uk/id/local-authority/00FC,Business Services,Law & Democratic Services,Legal Services,Direct Employee Expenses,Agency Staff,EA105,07/06/2011,13969,"1,698.84 ",REVENUE,BADENOCH & CLARK,101427
North East Lincolnshire Council,http://statistics.data.gov.uk/id/local-authority/00FC,Business Services,Law & Democratic Services,Legal Services,Direct Employee Expenses,Agency Staff,EA105,07/06/2011,13970,"1,796.85 ",REVENUE,BADENOCH & CLARK,101427
North East Lincolnshire Council,http://statistics.data.gov.uk/id/local-authority/00FC,Business Services,Strategic Business Support,Information Technology,Direct Employee Expenses,Agency Staff,EA105,10/06/2011,15249,"4,272.32 ",REVENUE,BADENOCH & CLARK,101427
North East Lincolnshire Council,http://statistics.data.gov.uk/id/local-authority/00FC,Business Services,Finance & Strategic Change,Income & Payments Service,Grants And Subscriptions,Subscriptions,LJ101,01/06/2011,11314,"2,440.00 ",REVENUE,CIPFA,100518
North East Lincolnshire Council,http://statistics.data.gov.uk/id/local-authority/00FC,Business Services,Strategic Business Support,Information Technology,Equip / Furniture / Materials,Equipment - Maintenance,LA104,10/06/2011,15272,"2,498.00 ",REVENUE,CLIMATE CONTROL LTD,102212
North East Lincolnshire Council,http://statistics.data.gov.uk/id/local-authority/00FC,Business Services,Frontier Ms Exchange,Frontier Ms Exchange,Cap Veh Plt Eqp-Purchase,Cap Veh Plt Eqp-Purchase,YB101,01/06/2011,10600,"25,396.80 ",CAPITAL,DELL COMPUTER CORPORATION LTD,100892
North East Lincolnshire Council,http://statistics.data.gov.uk/id/local-authority/00FC,Business Services,Frontier Ms Exchange,Frontier Ms Exchange,Cap Veh Plt Eqp-Purchase,Cap Veh Plt Eqp-Purchase,YB101,01/06/2011,9237,"74,220.00 ",CAPITAL,DELL COMPUTER CORPORATION LTD,100892
North East Lincolnshire Council,http://statistics.data.gov.uk/id/local-authority/00FC,Business Services,Law & Democratic Services,Legal Services,Communications And Computing,Postage,LF111,08/06/2011,14575,"3,516.11 ",REVENUE,DX NETWORK SERVICES LTD,101576
North East Lincolnshire Council,http://statistics.data.gov.uk/id/local-authority/00FC,Business Services,Finance & Strategic Change,Income & Payments Service,Voluntary Associations,Third Pp - Third Sector,PF101,20/06/2011,18061,500.00 ,REVENUE,EAST MARSH COMMUNITY TRUST,102538
North East Lincolnshire Council,http://statistics.data.gov.uk/id/local-authority/00FC,Business Services,Law & Democratic Services,Legal Services,Miscellaneous Expenses,Legal Fees - General,LL103,14/06/2011,16001,"2,181.00 ",REVENUE,EVERSHEDS,101129
North East Lincolnshire Council,http://statistics.data.gov.uk/id/local-authority/00FC,Business Services,Strategic Business Support,Information Technology,Equip / Furniture / Materials,Equipment - Maintenance,LA104,28/06/2011,20222,710.26 ,REVENUE,EXCELL ELECTRICAL CONTRACTORS,100601
North East Lincolnshire Council,http://statistics.data.gov.uk/id/local-authority/00FC,Business Services,Finance & Strategic Change,Income & Payments Service,Communications And Computing,Postage,LF111,15/06/2011,16349,506.16 ,REVENUE,FINANCIAL DATA MANAGEMENT LTD,101784
North East Lincolnshire Council,http://statistics.data.gov.uk/id/local-authority/00FC,Business Services,Finance & Strategic Change,Income & Payments Service,Communications And Computing,Postage,LF111,15/06/2011,16343,651.60 ,REVENUE,FINANCIAL DATA MANAGEMENT LTD,101784
North East Lincolnshire Council,http://statistics.data.gov.uk/id/local-authority/00FC,Business Services,Finance & Strategic Change,Income & Payments Service,Communications And Computing,Postage,LF111,16/06/2011,16341,774.00 ,REVENUE,FINANCIAL DATA MANAGEMENT LTD,101784
North East Lincolnshire Council,http://statistics.data.gov.uk/id/local-authority/00FC,Business Services,Finance & Strategic Change,Income & Payments Service,Communications And Computing,Postage,LF111,15/06/2011,16349,969.36 ,REVENUE,FINANCIAL DATA MANAGEMENT LTD,101784
North East Lincolnshire Council,http://statistics.data.gov.uk/id/local-authority/00FC,Business Services,Finance & Strategic Change,Income & Payments Service,Communications And Computing,Postage,LF111,16/06/2011,16340,"1,070.50 ",REVENUE,FINANCIAL DATA MANAGEMENT LTD,101784
North East Lincolnshire Council,http://statistics.data.gov.uk/id/local-authority/00FC,Business Services,Finance & Strategic Change,Income & Payments Service,Communications And Computing,Postage,LF111,14/06/2011,15976,"1,255.39 ",REVENUE,FINANCIAL DATA MANAGEMENT LTD,101784
North East Lincolnshire Council,http://statistics.data.gov.uk/id/local-authority/00FC,Business Services,Finance & Strategic Change,Income & Payments Service,Communications And Computing,Postage,LF111,15/06/2011,16343,"1,609.92 ",REVENUE,FINANCIAL DATA MANAGEMENT LTD,101784
North East Lincolnshire Council,http://statistics.data.gov.uk/id/local-authority/00FC,Business Services,Strategic Business Support,Information Technology,Equip / Furniture / Materials,Equipment - Purchase,LA101,09/06/2011,13017,853.00 ,REVENUE,FREELANCE OFFSET SERVICES LTD,100689
North East Lincolnshire Council,http://statistics.data.gov.uk/id/local-authority/00FC,Business Services,Finance & Strategic Change,Income & Payments Service,Consultancy,Consultancy,PL101,23/06/2011,18855,"3,473.02 ",REVENUE,GEMINI CONSULTANTS LTD,100597
North East Lincolnshire Council,http://statistics.data.gov.uk/id/local-authority/00FC,Business Services,Strategic Business Support,Information Technology,Private Contractors,Third Party Prov - Private,PH101,24/06/2011,19393,929.00 ,REVENUE,GKD,104781
North East Lincolnshire Council,http://statistics.data.gov.uk/id/local-authority/00FC,Business Services,Finance & Strategic Change,Income & Payments Service,Equip / Furniture / Materials,Promotions,LA124,15/06/2011,16352,"4,000.00 ",REVENUE,GRIMSBY & SCUNTHORPE MEDIA GROUP LTD,101827
North East Lincolnshire Council,http://statistics.data.gov.uk/id/local-authority/00FC,Business Services,Finance & Strategic Change,Income & Payments Service,Housing Benefit,Discretionary Relief,QC105,01/06/2011,11952,"4,791.51 ",REVENUE,HUMBERSIDE POLICE AUTHORITY,100762
North East Lincolnshire Council,http://statistics.data.gov.uk/id/local-authority/00FC,Business Services,Law & Democratic Services,Democratic Services,Indirect Employee Expenses,Allowances - Employees,EB110,30/06/2011,21415,"2,192.80 ",REVENUE,INLAND REVENUE,104922
North East Lincolnshire Council,http://statistics.data.gov.uk/id/local-authority/00FC,Business Services,Law & Democratic Services,Legal Services,Grants And Subscriptions,Subscriptions,LJ101,01/06/2011,12032,"36,240.75 ",REVENUE,LOCAL GOVERNMENT ASSOCIATION,101113
North East Lincolnshire Council,http://statistics.data.gov.uk/id/local-authority/00FC,Business Services,Law & Democratic Services,Democratic Services,Print Stationery / Gen Off Exp,Printing And Stationery,LD103,17/06/2011,17626,-17.45 ,REVENUE,LYRECO UK LIMITED,101120
North East Lincolnshire Council,http://statistics.data.gov.uk/id/local-authority/00FC,Business Services,Law & Democratic Services,Democratic Services,Print Stationery / Gen Off Exp,Printing And Stationery,LD103,17/06/2011,17626,540.50 ,REVENUE,LYRECO UK LIMITED,101120
North East Lincolnshire Council,http://statistics.data.gov.uk/id/local-authority/00FC,Business Services,Law & Democratic Services,Town Hall,Print Stationery / Gen Off Exp,Printing And Stationery,LD103,17/06/2011,17194,773.59 ,REVENUE,LYRECO UK LIMITED,101120
North East Lincolnshire Council,http://statistics.data.gov.uk/id/local-authority/00FC,Business Services,Law & Democratic Services,Coroners,Other Agencies,Post Mortems,PJ148,20/06/2011,17701,-208.00 ,REVENUE,NORTHERN LINCOLNSHIRE & GOOLE HOSPITALS,101242
North East Lincolnshire Council,http://statistics.data.gov.uk/id/local-authority/00FC,Business Services,Finance & Strategic Change,Income & Payments Service,Communications And Computing,Computer S/Ware - Maintenance,LF102,01/06/2011,11941,572.11 ,REVENUE,NORTHGATE INFORMATION SOLUTIONS UK LTD,101841
North East Lincolnshire Council,http://statistics.data.gov.uk/id/local-authority/00FC,Business Services,Strategic Business Support,Information Technology,Communications And Computing,Computer S/Ware - Purchases,LF101,24/06/2011,19298,693.41 ,REVENUE,NORTHGATE INFORMATION SOLUTIONS UK LTD,101841
North East Lincolnshire Council,http://statistics.data.gov.uk/id/local-authority/00FC,Business Services,Finance & Strategic Change,Income & Payments Service,Communications And Computing,Computer S/Ware - Maintenance,LF102,01/06/2011,11943,722.43 ,REVENUE,NORTHGATE INFORMATION SOLUTIONS UK LTD,101841
North East Lincolnshire Council,http://statistics.data.gov.uk/id/local-authority/00FC,Business Services,Finance & Strategic Change,Income & Payments Service,Communications And Computing,Computer S/Ware - Maintenance,LF102,01/06/2011,11941,858.16 ,REVENUE,NORTHGATE INFORMATION SOLUTIONS UK LTD,101841
North East Lincolnshire Council,http://statistics.data.gov.uk/id/local-authority/00FC,Business Services,Finance & Strategic Change,Income & Payments Service,Communications And Computing,Computer S/Ware - Purchases,LF101,01/06/2011,11942,"1,047.78 ",REVENUE,NORTHGATE INFORMATION SOLUTIONS UK LTD,101841
North East Lincolnshire Council,http://statistics.data.gov.uk/id/local-authority/00FC,Business Services,Finance & Strategic Change,Income & Payments Service,Communications And Computing,Computer S/Ware - Maintenance,LF102,01/06/2011,11943,"1,083.64 ",REVENUE,NORTHGATE INFORMATION SOLUTIONS UK LTD,101841
North East Lincolnshire Council,http://statistics.data.gov.uk/id/local-authority/00FC,Business Services,Finance & Strategic Change,Income & Payments Service,Communications And Computing,Computer S/Ware - Maintenance,LF102,01/06/2011,11942,"1,466.90 ",REVENUE,NORTHGATE INFORMATION SOLUTIONS UK LTD,101841
North East Lincolnshire Council,http://statistics.data.gov.uk/id/local-authority/00FC,Business Services,Finance & Strategic Change,Income & Payments Service,Communications And Computing,Computer S/Ware - Maintenance,LF102,01/06/2011,11941,"1,716.33 ",REVENUE,NORTHGATE INFORMATION SOLUTIONS UK LTD,101841
North East Lincolnshire Council,http://statistics.data.gov.uk/id/local-authority/00FC,Business Services,Finance & Strategic Change,Income & Payments Service,Communications And Computing,Computer S/Ware - Maintenance,LF102,01/06/2011,11943,"2,167.29 ",REVENUE,NORTHGATE INFORMATION SOLUTIONS UK LTD,101841
North East Lincolnshire Council,http://statistics.data.gov.uk/id/local-authority/00FC,Business Services,Finance & Strategic Change,Income & Payments Service,Communications And Computing,Computer S/Ware - Maintenance,LF102,01/06/2011,11941,"2,860.55 ",REVENUE,NORTHGATE INFORMATION SOLUTIONS UK LTD,101841
North East Lincolnshire Council,http://statistics.data.gov.uk/id/local-authority/00FC,Business Services,Finance & Strategic Change,Income & Payments Service,Communications And Computing,Computer S/Ware - Maintenance,LF102,01/06/2011,11943,"3,612.14 ",REVENUE,NORTHGATE INFORMATION SOLUTIONS UK LTD,101841
North East Lincolnshire Council,http://statistics.data.gov.uk/id/local-authority/00FC,Business Services,Finance & Strategic Change,Income & Payments Service,Communications And Computing,Computer S/Ware - Maintenance,LF102,01/06/2011,11941,"4,004.76 ",REVENUE,NORTHGATE INFORMATION SOLUTIONS UK LTD,101841
North East Lincolnshire Council,http://statistics.data.gov.uk/id/local-authority/00FC,Business Services,Finance & Strategic Change,Income & Payments Service,Communications And Computing,Computer S/Ware - Maintenance,LF102,01/06/2011,11943,"5,057.00 ",REVENUE,NORTHGATE INFORMATION SOLUTIONS UK LTD,101841
North East Lincolnshire Council,http://statistics.data.gov.uk/id/local-authority/00FC,Business Services,Strategic Business Support,Information Technology,Communications And Computing,Computer S/Ware - Purchases,LF101,24/06/2011,19299,"6,895.20 ",REVENUE,NORTHGATE INFORMATION SOLUTIONS UK LTD,101841
North East Lincolnshire Council,http://statistics.data.gov.uk/id/local-authority/00FC,Business Services,Finance & Strategic Change,Income & Payments Service,Communications And Computing,Computer S/Ware - Maintenance,LF102,01/06/2011,11941,"9,725.86 ",REVENUE,NORTHGATE INFORMATION SOLUTIONS UK LTD,101841
North East Lincolnshire Council,http://statistics.data.gov.uk/id/local-authority/00FC,Business Services,Finance & Strategic Change,Income & Payments Service,Communications And Computing,Computer S/Ware - Maintenance,LF102,01/06/2011,11943,"12,281.29 ",REVENUE,NORTHGATE INFORMATION SOLUTIONS UK LTD,101841
North East Lincolnshire Council,http://statistics.data.gov.uk/id/local-authority/00FC,Business Services,Strategic Business Support,Information Technology,Communications And Computing,Computer S/Ware - Purchases,LF101,24/06/2011,19300,"117,782.02 ",REVENUE,NORTHGATE INFORMATION SOLUTIONS UK LTD,101841
North East Lincolnshire Council,http://statistics.data.gov.uk/id/local-authority/00FC,Business Services,Strategic Business Support,Information Technology,Communications And Computing,Telephones,LF112,14/06/2011,16061,559.00 ,REVENUE,NTL,101502
North East Lincolnshire Council,http://statistics.data.gov.uk/id/local-authority/00FC,Business Services,Strategic Business Support,Information Technology,Communications And Computing,Telephones,LF112,01/06/2011,11944,643.86 ,REVENUE,NTL,101502
North East Lincolnshire Council,http://statistics.data.gov.uk/id/local-authority/00FC,Business Services,Strategic Business Support,Information Technology,Communications And Computing,Telephones,LF112,09/06/2011,14626,643.86 ,REVENUE,NTL,101502
North East Lincolnshire Council,http://statistics.data.gov.uk/id/local-authority/00FC,Business Services,Strategic Business Support,Information Technology,Communications And Computing,Computer H/Ware - Maintenance,LF106,01/06/2011,11944,780.00 ,REVENUE,NTL,101502
North East Lincolnshire Council,http://statistics.data.gov.uk/id/local-authority/00FC,Business Services,Strategic Business Support,Information Technology,Communications And Computing,Computer H/Ware - Maintenance,LF106,09/06/2011,14626,780.00 ,REVENUE,NTL,101502
North East Lincolnshire Council,http://statistics.data.gov.uk/id/local-authority/00FC,Business Services,Strategic Business Support,Information Technology,Communications And Computing,Computer H/Ware - Licences,LF107,09/06/2011,14626,"1,131.00 ",REVENUE,NTL,101502
North East Lincolnshire Council,http://statistics.data.gov.uk/id/local-authority/00FC,Business Services,Strategic Business Support,Information Technology,Communications And Computing,Computer H/Ware - Licences,LF107,01/06/2011,11944,"1,131.00 ",REVENUE,NTL,101502
North East Lincolnshire Council,http://statistics.data.gov.uk/id/local-authority/00FC,Business Services,Strategic Business Support,Information Technology,Communications And Computing,Computer H/Ware - Teaching,LF104,01/06/2011,11944,"1,560.00 ",REVENUE,NTL,101502
North East Lincolnshire Council,http://statistics.data.gov.uk/id/local-authority/00FC,Business Services,Strategic Business Support,Information Technology,Communications And Computing,Computer H/Ware - Teaching,LF104,09/06/2011,14626,"1,560.00 ",REVENUE,NTL,101502
North East Lincolnshire Council,http://statistics.data.gov.uk/id/local-authority/00FC,Business Services,Strategic Business Support,Information Technology,Communications And Computing,Computer H/Ware - Purchases,LF105,01/06/2011,11945,"2,060.49 ",REVENUE,NTL,101502
North East Lincolnshire Council,http://statistics.data.gov.uk/id/local-authority/00FC,Business Services,Strategic Business Support,Information Technology,Communications And Computing,Computer H/Ware - Purchases,LF105,23/06/2011,18887,"4,199.72 ",REVENUE,NTL,101502
North East Lincolnshire Council,http://statistics.data.gov.uk/id/local-authority/00FC,Business Services,Strategic Business Support,Information Technology,Communications And Computing,Telephones,LF112,01/06/2011,11944,"4,249.74 ",REVENUE,NTL,101502
North East Lincolnshire Council,http://statistics.data.gov.uk/id/local-authority/00FC,Business Services,Strategic Business Support,Information Technology,Communications And Computing,Telephones,LF112,09/06/2011,14626,"4,249.74 ",REVENUE,NTL,101502
North East Lincolnshire Council,http://statistics.data.gov.uk/id/local-authority/00FC,Business Services,Strategic Business Support,Information Technology,Communications And Computing,Computer H/Ware - Purchases,LF105,01/06/2011,11948,"8,815.85 ",REVENUE,NTL,101502
North East Lincolnshire Council,http://statistics.data.gov.uk/id/local-authority/00FC,Business Services,Strategic Business Support,Information Technology,Indirect Employee Expenses,Staff Training,EB122,16/06/2011,16827,-194.67 ,REVENUE,NYS CORPORATE,102444
North East Lincolnshire Council,http://statistics.data.gov.uk/id/local-authority/00FC,Business Services,Finance & Strategic Change,Income & Payments Service,Indirect Employee Expenses,Staff Training,EB122,10/06/2011,12807,-48.95 ,REVENUE,NYS CORPORATE,102444
North East Lincolnshire Council,http://statistics.data.gov.uk/id/local-authority/00FC,Business Services,Strategic Business Support,Information Technology,Car Allowances,Travel - Employees,JF101,21/06/2011,18436,-45.29 ,REVENUE,NYS CORPORATE,102444
North East Lincolnshire Council,http://statistics.data.gov.uk/id/local-authority/00FC,Business Services,Law & Democratic Services,Democratic Services,Indirect Employee Expenses,Allowances - Employees,EB110,01/06/2011,11348,"29,064.70 ",REVENUE,PARLIAMENTARY ELECTION,104208
North East Lincolnshire Council,http://statistics.data.gov.uk/id/local-authority/00FC,Business Services,Law & Democratic Services,Democratic Services,Print Stationery / Gen Off Exp,Printing And Stationery,LD103,10/06/2011,15419,685.54 ,REVENUE,PRINT IMAGE NETWORK LTD,103724
North East Lincolnshire Council,http://statistics.data.gov.uk/id/local-authority/00FC,Business Services,Law & Democratic Services,Democratic Services,Miscellaneous Expenses,Other Expenses General,LL119,14/06/2011,16105,850.50 ,REVENUE,PRINT IMAGE NETWORK LTD,103724
North East Lincolnshire Council,http://statistics.data.gov.uk/id/local-authority/00FC,Business Services,Law & Democratic Services,Democratic Services,Miscellaneous Expenses,Other Expenses General,LL119,28/06/2011,20177,"2,201.67 ",REVENUE,PRINT IMAGE NETWORK LTD,103724
North East Lincolnshire Council,http://statistics.data.gov.uk/id/local-authority/00FC,Business Services,Law & Democratic Services,Democratic Services,Print Stationery / Gen Off Exp,Printing And Stationery,LD103,14/06/2011,16104,"7,061.75 ",REVENUE,PRINT IMAGE NETWORK LTD,103724
North East Lincolnshire Council,http://statistics.data.gov.uk/id/local-authority/00FC,Business Services,Law & Democratic Services,Democratic Services,Print Stationery / Gen Off Exp,Printing And Stationery,LD103,24/06/2011,19347,"9,132.44 ",REVENUE,PRINT IMAGE NETWORK LTD,103724
North East Lincolnshire Council,http://statistics.data.gov.uk/id/local-authority/00FC,Business Services,Strategic Business Support,Information Technology,Indirect Employee Expenses,Staff Training,EB122,02/06/2011,12078,"1,300.00 ",REVENUE,QA LIMITED,102243
North East Lincolnshire Council,http://statistics.data.gov.uk/id/local-authority/00FC,Business Services,Law & Democratic Services,Coroners,Other Agencies,Post Mortems,PJ148,14/06/2011,15311,959.70 ,REVENUE,Redacted Personal Information,Redacted Personal Information
North East Lincolnshire Council,http://statistics.data.gov.uk/id/local-authority/00FC,Business Services,Strategic Business Support,Information Technology,Direct Employee Expenses,Agency Staff,EA105,06/06/2011,13293,"5,321.00 ",REVENUE,Redacted Personal Information,Redacted Personal Information
North East Lincolnshire Council,http://statistics.data.gov.uk/id/local-authority/00FC,Business Services,Law & Democratic Services,Coroners,Other Agencies,Post Mortems,PJ148,01/06/2011,11909,580.80 ,REVENUE,Redacted Personal Information,Redacted Personal Information
North East Lincolnshire Council,http://statistics.data.gov.uk/id/local-authority/00FC,Business Services,Law & Democratic Services,Legal Services,Miscellaneous Expenses,Other Expenses General,LL119,08/06/2011,14830,-50.00 ,REVENUE,Redacted Personal Information,Redacted Personal Information
North East Lincolnshire Council,http://statistics.data.gov.uk/id/local-authority/00FC,Business Services,Law & Democratic Services,Democratic Services,Indirect Employee Expenses,Allowances - Employees,EB110,02/06/2011,11118,"4,440.00 ",REVENUE,Redacted Personal Information,Redacted Personal Information
North East Lincolnshire Council,http://statistics.data.gov.uk/id/local-authority/00FC,Business Services,Strategic Business Support,Information Technology,Equip / Furniture / Materials,Equipment - Purchase,LA101,21/06/2011,17870,-15.00 ,REVENUE,ROTHERA & BRERETON LTD,100761
North East Lincolnshire Council,http://statistics.data.gov.uk/id/local-authority/00FC,Business Services,Strategic Business Support,Information Technology,Equip / Furniture / Materials,Equipment - Purchase,LA101,24/06/2011,19386,587.62 ,REVENUE,ROTHERA & BRERETON LTD,100761
North East Lincolnshire Council,http://statistics.data.gov.uk/id/local-authority/00FC,Business Services,Law & Democratic Services,Legal Services,Communications And Computing,Postage,LF111,08/06/2011,14370,-12.69 ,REVENUE,ROYAL MAIL GROUP PLC,101082
North East Lincolnshire Council,http://statistics.data.gov.uk/id/local-authority/00FC,Business Services,Strategic Business Support,Information Technology,Communications And Computing,Postage,LF111,27/06/2011,19510,"1,229.95 ",REVENUE,ROYAL MAIL GROUP PLC,101082
North East Lincolnshire Council,http://statistics.data.gov.uk/id/local-authority/00FC,Business Services,Strategic Business Support,Business Support (Sbs),Communications And Computing,Postage,LF111,24/06/2011,19486,"1,275.13 ",REVENUE,ROYAL MAIL GROUP PLC,101082
North East Lincolnshire Council,http://statistics.data.gov.uk/id/local-authority/00FC,Business Services,Law & Democratic Services,Democratic Services,Communications And Computing,Postage,LF111,09/06/2011,14572,"1,530.61 ",REVENUE,ROYAL MAIL GROUP PLC,101082
North East Lincolnshire Council,http://statistics.data.gov.uk/id/local-authority/00FC,Business Services,Strategic Business Support,Business Support (Sbs),Communications And Computing,Postage,LF111,24/06/2011,19526,"2,433.60 ",REVENUE,ROYAL MAIL GROUP PLC,101082
North East Lincolnshire Council,http://statistics.data.gov.uk/id/local-authority/00FC,Business Services,Strategic Business Support,Business Support (Sbs),Communications And Computing,Postage,LF111,08/06/2011,14413,"3,791.06 ",REVENUE,ROYAL MAIL GROUP PLC,101082
North East Lincolnshire Council,http://statistics.data.gov.uk/id/local-authority/00FC,Business Services,Law & Democratic Services,Democratic Services,Communications And Computing,Postage,LF111,27/06/2011,19850,"4,663.31 ",REVENUE,ROYAL MAIL GROUP PLC,101082
North East Lincolnshire Council,http://statistics.data.gov.uk/id/local-authority/00FC,Business Services,Law & Democratic Services,Coroners,Other Agencies,Post Mortems,PJ148,27/06/2011,19920,-249.00 ,REVENUE,SHEFFIELD TEACHING HOSPITALS NHS TRUST,101211
North East Lincolnshire Council,http://statistics.data.gov.uk/id/local-authority/00FC,Business Services,Law & Democratic Services,Coroners,Other Agencies,Post Mortems,PJ148,07/06/2011,14074,"2,224.00 ",REVENUE,SHEFFIELD TEACHING HOSPITALS NHS TRUST,101211
North East Lincolnshire Council,http://statistics.data.gov.uk/id/local-authority/00FC,Business Services,Strategic Business Support,Information Technology,Communications And Computing,Computer H/Ware - Maintenance,LF106,28/06/2011,20044,500.00 ,REVENUE,SILVERTHORN SECURITY SERVICES & IA,104824
North East Lincolnshire Council,http://statistics.data.gov.uk/id/local-authority/00FC,Business Services,Law & Democratic Services,Town Hall,Catering,Provisions,LB101,20/06/2011,17694,-17.50 ,REVENUE,SYLVESTER-KEAL LTD,100593
North East Lincolnshire Council,http://statistics.data.gov.uk/id/local-authority/00FC,Business Services,Strategic Business Support,Information Technology,Print Stationery / Gen Off Exp,Photocopier - Running Costs,LD102,29/06/2011,20114,851.90 ,REVENUE,UNITED CARLTON OFFICE SYSTEMS LTD,101652
North East Lincolnshire Council,http://statistics.data.gov.uk/id/local-authority/00FC,Business Services,Strategic Business Support,Information Technology,Print Stationery / Gen Off Exp,Photocopier - Running Costs,LD102,06/06/2011,13510,"1,594.43 ",REVENUE,UNITED CARLTON OFFICE SYSTEMS LTD,101652
North East Lincolnshire Council,http://statistics.data.gov.uk/id/local-authority/00FC,Business Services,Strategic Business Support,Information Technology,Print Stationery / Gen Off Exp,Photocopier - Running Costs,LD102,06/06/2011,13509,"3,097.62 ",REVENUE,UNITED CARLTON OFFICE SYSTEMS LTD,101652
North East Lincolnshire Council,http://statistics.data.gov.uk/id/local-authority/00FC,Business Services,Strategic Business Support,Information Technology,Communications And Computing,Telephones,LF112,01/06/2011,11940,"12,077.09 ",REVENUE,VODAFONE LIMITED,101324
North East Lincolnshire Council,http://statistics.data.gov.uk/id/local-authority/00FC,Business Services,Strategic Business Support,Information Technology,Communications And Computing,Telephones,LF112,16/06/2011,16427,-205.00 ,REVENUE,VODAFONE LIMITED,101894
North East Lincolnshire Council,http://statistics.data.gov.uk/id/local-authority/00FC,Business Services,Finance & Strategic Change,Income & Payments Service,Miscellaneous Expenses,Debt Recovery Costs,LL111,21/06/2011,18399,Redacted Commercially Sensitive,REVENUE,WILKIN CHAPMAN SOLICITORS,100948
North East Lincolnshire Council,http://statistics.data.gov.uk/id/local-authority/00FC,Chief Executive,Chief Executive,Chief Exec & Support,Contributions To Provisions,Contributions - Third Sector,LK102,03/06/2011,12938,"10,000.00 ",REVENUE,ANNIE CHAPPLE CENTRE,104323
North East Lincolnshire Council,http://statistics.data.gov.uk/id/local-authority/00FC,Chief Executive,Chief Executive,Recharges To Corp Management,Government Departments,Third Party Prov - Govt Depts,PE101,24/06/2011,19525,"24,383.00 ",REVENUE,AUDIT COMMISSION,100510
North East Lincolnshire Council,http://statistics.data.gov.uk/id/local-authority/00FC,Chief Executive,Chief Executive,Chief Exec & Support,Indirect Employee Expenses,Recruitment Expenses,EB114,13/06/2011,15666,"4,675.00 ",REVENUE,GATENBYSANDERSON LTD,104473
North East Lincolnshire Council,http://statistics.data.gov.uk/id/local-authority/00FC,Chief Executive,Chief Executive,Chief Exec & Support,Indirect Employee Expenses,Staff Advertising,EB113,09/06/2011,14479,"5,100.00 ",REVENUE,HEMMING GROUP LIMITED,104412
North East Lincolnshire Council,http://statistics.data.gov.uk/id/local-authority/00FC,Children & Family Services,Vulnerable Children,Through Care & Disability,Other Agencies,Driving Lessons,PJ132,07/06/2011,14047,-50.00 ,REVENUE,16+ SERVICES,100943
North East Lincolnshire Council,http://statistics.data.gov.uk/id/local-authority/00FC,Children & Family Services,Vulnerable Children,Through Care & Disability,Other Agencies,Personal Allowance,PJ122,24/06/2011,19508,554.05 ,REVENUE,16+ SERVICES,100943
North East Lincolnshire Council,http://statistics.data.gov.uk/id/local-authority/00FC,Children & Family Services,Vulnerable Children,Through Care & Disability,Other Agencies,Section 24,PJ120,07/06/2011,14047,691.08 ,REVENUE,16+ SERVICES,100943
North East Lincolnshire Council,http://statistics.data.gov.uk/id/local-authority/00FC,Children & Family Services,Vulnerable Children,Through Care & Disability,Other Agencies,Personal Allowance,PJ122,07/06/2011,14047,873.30 ,REVENUE,16+ SERVICES,100943
North East Lincolnshire Council,http://statistics.data.gov.uk/id/local-authority/00FC,Children & Family Services,Vulnerable Children,Through Care & Disability,Other Agencies,Further Ed Emp & Training,PJ130,23/06/2011,18958,"1,117.45 ",REVENUE,16+ SERVICES,100943
North East Lincolnshire Council,http://statistics.data.gov.uk/id/local-authority/00FC,Children & Family Services,Vulnerable Children,Through Care & Disability,Other Agencies,Further Ed Emp & Training,PJ130,24/06/2011,19508,"1,197.00 ",REVENUE,16+ SERVICES,100943
North East Lincolnshire Council,http://statistics.data.gov.uk/id/local-authority/00FC,Children & Family Services,Vulnerable Children,Through Care & Disability,Other Agencies,Further Ed Emp & Training,PJ130,07/06/2011,14047,"1,964.15 ",REVENUE,16+ SERVICES,100943
North East Lincolnshire Council,http://statistics.data.gov.uk/id/local-authority/00FC,Children & Family Services,Nds Cond + Modern All Schools,Nds Cond + Modern All Schools,Cap Land/Build-Build Enh Wrk,Cap Land/Build-Build Enh Wrk,YA102,15/06/2011,16387,"1,140.00 ",CAPITAL,A H ALLEN LTD,104035
North East Lincolnshire Council,http://statistics.data.gov.uk/id/local-authority/00FC,Children & Family Services,Inclusion And Standards,Sen/Inclusion,Private Contractors,Third Party Prov - Private,PH101,23/06/2011,18845,-152.00 ,REVENUE,A4E CONSULT LTD,101656
North East Lincolnshire Council,http://statistics.data.gov.uk/id/local-authority/00FC,Children & Family Services,Commissioning Partn & Perform,Extended Services,Rep Alterations Maint Building,Buildings - Repairs And Maint,GA102,01/06/2011,12022,937.00 ,REVENUE,ACUMEN SOLUTIONS LTD,101395
North East Lincolnshire Council,http://statistics.data.gov.uk/id/local-authority/00FC,Children & Family Services,Vulnerable Children,Placement & Support,Print Stationery / Gen Off Exp,Advertising,LD104,29/06/2011,20478,514.38 ,REVENUE,ADOPTION UK,101206
North East Lincolnshire Council,http://statistics.data.gov.uk/id/local-authority/00FC,Children & Family Services,Vulnerable Children,Placement & Support,Print Stationery / Gen Off Exp,Publicity,LD105,10/06/2011,15443,514.38 ,REVENUE,ADOPTION UK,101206
North East Lincolnshire Council,http://statistics.data.gov.uk/id/local-authority/00FC,Children & Family Services,Vulnerable Children,Placement & Support,Print Stationery / Gen Off Exp,Publicity,LD105,10/06/2011,15444,525.00 ,REVENUE,ADOPTION UK,101206
North East Lincolnshire Council,http://statistics.data.gov.uk/id/local-authority/00FC,Children & Family Services,Vulnerable Children,Placement & Support,Miscellaneous Expenses,Other Expenses General,LL119,29/06/2011,20362,525.00 ,REVENUE,ADOPTION UK,101206
North East Lincolnshire Council,http://statistics.data.gov.uk/id/local-authority/00FC,Children & Family Services,Vulnerable Children,Placement & Support,Print Stationery / Gen Off Exp,Advertising,LD104,29/06/2011,20352,636.75 ,REVENUE,ADOPTION UK,101206
North East Lincolnshire Council,http://statistics.data.gov.uk/id/local-authority/00FC,Children & Family Services,Vulnerable Children,Placement & Support,Equip / Furniture / Materials,Books,LA121,13/06/2011,15445,650.88 ,REVENUE,ADOPTION UK,101206
North East Lincolnshire Council,http://statistics.data.gov.uk/id/local-authority/00FC,Children & Family Services,Vulnerable Children,Placement & Support,Print Stationery / Gen Off Exp,Advertising,LD104,29/06/2011,20364,650.88 ,REVENUE,ADOPTION UK,101206
North East Lincolnshire Council,http://statistics.data.gov.uk/id/local-authority/00FC,Children & Family Services,Vulnerable Children,Placement & Support,Print Stationery / Gen Off Exp,Publicity,LD105,13/06/2011,15447,650.88 ,REVENUE,ADOPTION UK,101206
North East Lincolnshire Council,http://statistics.data.gov.uk/id/local-authority/00FC,Children & Family Services,Vulnerable Children,Placement & Support,Miscellaneous Expenses,Other Expenses General,LL119,29/06/2011,20355,650.88 ,REVENUE,ADOPTION UK,101206
North East Lincolnshire Council,http://statistics.data.gov.uk/id/local-authority/00FC,Children & Family Services,Vulnerable Children,Placement & Support,Miscellaneous Expenses,Other Expenses General,LL119,29/06/2011,20366,665.00 ,REVENUE,ADOPTION UK,101206
North East Lincolnshire Council,http://statistics.data.gov.uk/id/local-authority/00FC,Children & Family Services,Inclusion And Standards,School Access Governor Student,Contract Hire-Operating Leases,Vehicles - Contract Hire,JC101,01/06/2011,11279,Redacted Commercially Sensitive,REVENUE,AMVALE LIMITED,101030
North East Lincolnshire Council,http://statistics.data.gov.uk/id/local-authority/00FC,Children & Family Services,Inclusion And Standards,School Access Governor Student,Contract Hire-Operating Leases,Vehicles - Contract Hire,JC101,01/06/2011,11272,Redacted Commercially Sensitive,REVENUE,AMVALE LIMITED,101030
North East Lincolnshire Council,http://statistics.data.gov.uk/id/local-authority/00FC,Children & Family Services,Inclusion And Standards,School Access Governor Student,Contract Hire-Operating Leases,Vehicles - Contract Hire,JC101,01/06/2011,11335,Redacted Commercially Sensitive,REVENUE,AMVALE LIMITED,101030
North East Lincolnshire Council,http://statistics.data.gov.uk/id/local-authority/00FC,Children & Family Services,Inclusion And Standards,School Access Governor Student,Contract Hire-Operating Leases,Vehicles - Contract Hire,JC101,01/06/2011,11336,Redacted Commercially Sensitive,REVENUE,AMVALE LIMITED,101030
North East Lincolnshire Council,http://statistics.data.gov.uk/id/local-authority/00FC,Children & Family Services,Inclusion And Standards,School Access Governor Student,Contract Hire-Operating Leases,Vehicles - Contract Hire,JC101,01/06/2011,11306,Redacted Commercially Sensitive,REVENUE,AMVALE LIMITED,101030
North East Lincolnshire Council,http://statistics.data.gov.uk/id/local-authority/00FC,Children & Family Services,Inclusion And Standards,School Access Governor Student,Contract Hire-Operating Leases,Vehicles - Contract Hire,JC101,01/06/2011,11317,Redacted Commercially Sensitive,REVENUE,AMVALE LIMITED,101030
North East Lincolnshire Council,http://statistics.data.gov.uk/id/local-authority/00FC,Children & Family Services,Inclusion And Standards,School Access Governor Student,Contract Hire-Operating Leases,Vehicles - Contract Hire,JC101,01/06/2011,11271,Redacted Commercially Sensitive,REVENUE,AMVALE LIMITED,101030
North East Lincolnshire Council,http://statistics.data.gov.uk/id/local-authority/00FC,Children & Family Services,Inclusion And Standards,School Access Governor Student,Contract Hire-Operating Leases,Vehicles - Contract Hire,JC101,02/06/2011,11291,Redacted Commercially Sensitive,REVENUE,AMVALE LIMITED,101030
North East Lincolnshire Council,http://statistics.data.gov.uk/id/local-authority/00FC,Children & Family Services,Inclusion And Standards,School Access Governor Student,Contract Hire-Operating Leases,Vehicles - Contract Hire,JC101,02/06/2011,11270,Redacted Commercially Sensitive,REVENUE,AMVALE LIMITED,101030
North East Lincolnshire Council,http://statistics.data.gov.uk/id/local-authority/00FC,Children & Family Services,Inclusion And Standards,School Access Governor Student,Contract Hire-Operating Leases,Vehicles - Contract Hire,JC101,01/06/2011,11286,Redacted Commercially Sensitive,REVENUE,AMVALE LIMITED,101030
North East Lincolnshire Council,http://statistics.data.gov.uk/id/local-authority/00FC,Children & Family Services,C&Fs Other,Schools Non Asb,Catering,Provisions,LB101,27/06/2011,19923,-6.33 ,REVENUE,ANGLIA WOODS,100805
North East Lincolnshire Council,http://statistics.data.gov.uk/id/local-authority/00FC,Children & Family Services,C&Fs Other,Schools Non Asb,Catering,Provisions,LB101,27/06/2011,19918,-5.18 ,REVENUE,ANGLIA WOODS,100805
North East Lincolnshire Council,http://statistics.data.gov.uk/id/local-authority/00FC,Children & Family Services,C&Fs Other,Schools Non Asb,Catering,Provisions,LB101,27/06/2011,19919,-2.36 ,REVENUE,ANGLIA WOODS,100805
North East Lincolnshire Council,http://statistics.data.gov.uk/id/local-authority/00FC,Children & Family Services,Vulnerable Children,Placement & Support,Water Services,Water,GE101,13/06/2011,15234,533.92 ,REVENUE,ANGLIAN WATER,100508
North East Lincolnshire Council,http://statistics.data.gov.uk/id/local-authority/00FC,Children & Family Services,Commissioning Partn & Perform,Childrens Centre Development,Water Services,Water,GE101,24/06/2011,19488,747.79 ,REVENUE,ANGLIAN WATER,100508
North East Lincolnshire Council,http://statistics.data.gov.uk/id/local-authority/00FC,Children & Family Services,Vulnerable Children,Placement & Support,Equip / Furniture / Materials,Equipment - Purchase,LA101,13/06/2011,15714,-10.00 ,REVENUE,ARGOS BUSINESS SOLUTIONS,101032
North East Lincolnshire Council,http://statistics.data.gov.uk/id/local-authority/00FC,Children & Family Services,Inclusion And Standards,Community Learning Services,Indirect Employee Expenses,Staff Training,EB122,27/06/2011,19910,-175.00 ,REVENUE,ASDAN,100877
North East Lincolnshire Council,http://statistics.data.gov.uk/id/local-authority/00FC,Children & Family Services,Childrens Health & Family Serv,Integrated Youth Services,Print Stationery / Gen Off Exp,Publicity,LD105,29/06/2011,20417,800.00 ,REVENUE,ATG VENUES UK LTD,102453
North East Lincolnshire Council,http://statistics.data.gov.uk/id/local-authority/00FC,Children & Family Services,Commissioning Partn & Perform,Strategic Management,Direct Employee Expenses,Pay,EA101,03/06/2011,12490,"11,666.40 ",REVENUE,BARBARA HUGHES LIMITED,102332
North East Lincolnshire Council,http://statistics.data.gov.uk/id/local-authority/00FC,Children & Family Services,Commissioning Partn & Perform,Strategic Management,Direct Employee Expenses,Pay,EA101,27/06/2011,19851,"12,425.60 ",REVENUE,BARBARA HUGHES LIMITED,102332
North East Lincolnshire Council,http://statistics.data.gov.uk/id/local-authority/00FC,Children & Family Services,Inclusion And Standards,Sen/Inclusion,Private Contractors,Third Party Prov - Private,PH101,09/06/2011,14564,836.00 ,REVENUE,BARNARDO SERVICES LTD,100782
North East Lincolnshire Council,http://statistics.data.gov.uk/id/local-authority/00FC,Children & Family Services,Inclusion And Standards,Sen/Inclusion,Private Contractors,Third Party Prov - Private,PH101,09/06/2011,14567,836.00 ,REVENUE,BARNARDO SERVICES LTD,100782
North East Lincolnshire Council,http://statistics.data.gov.uk/id/local-authority/00FC,Children & Family Services,Inclusion And Standards,Sen/Inclusion,Private Contractors,Third Party Prov - Private,PH101,09/06/2011,14569,836.00 ,REVENUE,BARNARDO SERVICES LTD,100782
North East Lincolnshire Council,http://statistics.data.gov.uk/id/local-authority/00FC,Children & Family Services,Inclusion And Standards,Sen/Inclusion,Private Contractors,Third Party Prov - Private,PH101,09/06/2011,14565,836.00 ,REVENUE,BARNARDO SERVICES LTD,100782
North East Lincolnshire Council,http://statistics.data.gov.uk/id/local-authority/00FC,Children & Family Services,Inclusion And Standards,Sen/Inclusion,Private Contractors,Third Party Prov - Private,PH101,09/06/2011,14568,873.40 ,REVENUE,BARNARDO SERVICES LTD,100782
North East Lincolnshire Council,http://statistics.data.gov.uk/id/local-authority/00FC,Children & Family Services,Inclusion And Standards,Sen/Inclusion,Private Contractors,Third Party Prov - Private,PH101,09/06/2011,14566,873.40 ,REVENUE,BARNARDO SERVICES LTD,100782
North East Lincolnshire Council,http://statistics.data.gov.uk/id/local-authority/00FC,Children & Family Services,Vulnerable Children,Youth Offending Team,Consultancy,Consultancy,PL101,29/06/2011,20272,"3,683.52 ",REVENUE,BARNARDO SERVICES LTD,100782
North East Lincolnshire Council,http://statistics.data.gov.uk/id/local-authority/00FC,Children & Family Services,Inclusion And Standards,Sen/Inclusion,Equip / Furniture / Materials,Teaching Materials,LA117,02/06/2011,12381,674.55 ,REVENUE,BENTHAM LTD T/A IJT,101193
North East Lincolnshire Council,http://statistics.data.gov.uk/id/local-authority/00FC,Children & Family Services,Vulnerable Children,Safeguarding,Miscellaneous Expenses,Legal Fees - General,LL103,15/06/2011,15931,Redacted Commercially Sensitive,REVENUE,BML PSYCHOLOGICAL CONSULTANCY,104475
North East Lincolnshire Council,http://statistics.data.gov.uk/id/local-authority/00FC,Children & Family Services,Vulnerable Children,Safeguarding,Indirect Employee Expenses,Staff Training,EB122,09/06/2011,14819,"1,140.00 ",REVENUE,BRITISH ASSOCIATION FOR THE STUDY &,104428
North East Lincolnshire Council,http://statistics.data.gov.uk/id/local-authority/00FC,Children & Family Services,Inclusion And Standards,Sen/Inclusion,Communications And Computing,Telephones,LF112,27/06/2011,19876,-75.80 ,REVENUE,BT CONTRACT RENTALS LTD,100652
North East Lincolnshire Council,http://statistics.data.gov.uk/id/local-authority/00FC,Children & Family Services,Inclusion And Standards,Sen/Inclusion,Communications And Computing,Telephones,LF112,27/06/2011,19876,-13.75 ,REVENUE,BT CONTRACT RENTALS LTD,100652
North East Lincolnshire Council,http://statistics.data.gov.uk/id/local-authority/00FC,Children & Family Services,Commissioning Partn & Perform,Childrens Centre Development,Other Agencies,Nursery Educ Fund - Standard,PJ139,13/06/2011,15253,"3,121.86 ",REVENUE,BUTTERFLIES DAY NURSERY,101694
North East Lincolnshire Council,http://statistics.data.gov.uk/id/local-authority/00FC,Children & Family Services,Devolved Formula Cap Grant,Devolved Formula Cap Grant,Cap Land/Build-Build Enh Wrk,Cap Land/Build-Build Enh Wrk,YA102,01/06/2011,11745,"2,177.00 ",CAPITAL,C M INTERIORS (CLPS) LTD,104224
North East Lincolnshire Council,http://statistics.data.gov.uk/id/local-authority/00FC,Children & Family Services,Inclusion And Standards,School Access Governor Student,Contract Hire-Operating Leases,Vehicles - Contract Hire,JC101,09/06/2011,14638,Redacted Commercially Sensitive,REVENUE,CABBYCARS,100847
North East Lincolnshire Council,http://statistics.data.gov.uk/id/local-authority/00FC,Children & Family Services,Inclusion And Standards,Sen/Inclusion,Indirect Employee Expenses,Staff Training,EB122,29/06/2011,20442,"1,420.00 ",REVENUE,CAMBRIDGE PARK SCHOOL,100733
North East Lincolnshire Council,http://statistics.data.gov.uk/id/local-authority/00FC,Children & Family Services,Inclusion And Standards,Additional & Enhanced Needs,Contributions To Provisions,Contributions - Other,LK103,13/06/2011,15474,"5,075.00 ",REVENUE,CAMBRIDGE PARK SCHOOL,100733
North East Lincolnshire Council,http://statistics.data.gov.uk/id/local-authority/00FC,Children & Family Services,Inclusion And Standards,Additional & Enhanced Needs,Private Contractors,Third Party Prov - Private,PH101,13/06/2011,15473,"9,692.00 ",REVENUE,CAMBRIDGE PARK SCHOOL,100733
North East Lincolnshire Council,http://statistics.data.gov.uk/id/local-authority/00FC,Children & Family Services,Childrens Health & Family Serv,Integrated Youth Services,Communications And Computing,Computer S/Ware - Maintenance,LF102,29/06/2011,20046,"2,100.00 ",REVENUE,CAREERVISION LTD,103701
North East Lincolnshire Council,http://statistics.data.gov.uk/id/local-authority/00FC,Children & Family Services,Commissioning Partn & Perform,Childrens Centre Development,Other Agencies,Child Care Payments,PJ104,13/06/2011,15678,764.00 ,REVENUE,CHAPPILLS DAY NURSERY,100998
North East Lincolnshire Council,http://statistics.data.gov.uk/id/local-authority/00FC,Children & Family Services,Commissioning Partn & Perform,Childrens Centre Development,Other Agencies,Nursery Educ Fund - Standard,PJ139,10/06/2011,15181,"3,247.20 ",REVENUE,CHAPPILLS DAY NURSERY,100998
North East Lincolnshire Council,http://statistics.data.gov.uk/id/local-authority/00FC,Children & Family Services,Inclusion And Standards,Community Learning Services,Miscellaneous Expenses,Exam Fees,LL115,28/06/2011,20339,-95.50 ,REVENUE,CITY & GUILDS,100645
North East Lincolnshire Council,http://statistics.data.gov.uk/id/local-authority/00FC,Children & Family Services,Inclusion And Standards,Standards & Effectiveness,Government Grants,Grants - Standards Fund,VA102,01/06/2011,11949,"21,250.00 ",REVENUE,CLEETHORPES ACADEMY,102713
North East Lincolnshire Council,http://statistics.data.gov.uk/id/local-authority/00FC,Children & Family Services,Commissioning Partn & Perform,Childrens Centre Development,Other Agencies,Nursery Educ Fund - Standard,PJ139,10/06/2011,15194,"6,435.36 ",REVENUE,CLEETHORPES CHILDCARE,101591
North East Lincolnshire Council,http://statistics.data.gov.uk/id/local-authority/00FC,Children & Family Services,Commissioning Partn & Perform,Childrens Centre Development,Other Agencies,Nursery Educ Fund - Standard,PJ139,10/06/2011,15177,"6,656.76 ",REVENUE,CLEETHORPES CHILDCARE,101591
North East Lincolnshire Council,http://statistics.data.gov.uk/id/local-authority/00FC,Children & Family Services,Commissioning Partn & Perform,Childrens Centre Development,Other Agencies,Nursery Educ Fund - Standard,PJ139,10/06/2011,15269,"7,380.00 ",REVENUE,CLEETHORPES CHILDCARE,101591
North East Lincolnshire Council,http://statistics.data.gov.uk/id/local-authority/00FC,Children & Family Services,Commissioning Partn & Perform,Childrens Centre Development,Other Agencies,Nursery Educ Fund - Standard,PJ139,13/06/2011,15252,"5,372.64 ",REVENUE,CLOVERFIELDS PRE SCHOOL,100971
North East Lincolnshire Council,http://statistics.data.gov.uk/id/local-authority/00FC,Children & Family Services,Vulnerable Children,Through Care & Disability,Private Contractors,Third Party Prov - Private,PH101,10/06/2011,14867,"12,690.66 ",REVENUE,COOL2CARE LTD,102270
North East Lincolnshire Council,http://statistics.data.gov.uk/id/local-authority/00FC,Children & Family Services,Inclusion And Standards,School Access Governor Student,Contract Hire-Operating Leases,Vehicles - Contract Hire,JC101,30/06/2011,21346,Redacted Commercially Sensitive,REVENUE,COUNTRY CABS,101999
North East Lincolnshire Council,http://statistics.data.gov.uk/id/local-authority/00FC,Children & Family Services,Childrens Health & Family Serv,Integrated Youth Services,Direct Transport Costs,Hired Transport - Service User,JA102,02/06/2011,12402,Redacted Commercially Sensitive,REVENUE,COXONS CARS LIMITED,100578
North East Lincolnshire Council,http://statistics.data.gov.uk/id/local-authority/00FC,Children & Family Services,Childrens Health & Family Serv,Integrated Youth Services,Indirect Employee Expenses,Staff Training,EB122,10/06/2011,15101,780.00 ,REVENUE,CPCAB,104446
North East Lincolnshire Council,http://statistics.data.gov.uk/id/local-authority/00FC,Children & Family Services,Childrens Health & Family Serv,Integrated Youth Services,Catering,Provisions,LB101,24/06/2011,19026,513.34 ,REVENUE,CROMWELL BANQUETING,104357
North East Lincolnshire Council,http://statistics.data.gov.uk/id/local-authority/00FC,Children & Family Services,Commissioning Partn & Perform,Commissioning & Performance,Catering,Provisions,LB101,30/06/2011,21515,Redacted Commercially Sensitive,REVENUE,CYGNET FOODS,101491
North East Lincolnshire Council,http://statistics.data.gov.uk/id/local-authority/00FC,Children & Family Services,Commissioning Partn & Perform,Commissioning & Performance,Catering,Provisions,LB101,30/06/2011,21516,Redacted Commercially Sensitive,REVENUE,CYGNET FOODS,101491
North East Lincolnshire Council,http://statistics.data.gov.uk/id/local-authority/00FC,Children & Family Services,Commissioning Partn & Perform,Commissioning & Performance,Catering,Provisions,LB101,23/06/2011,18885,"5,954.47 ",REVENUE,DAIRY CREST LTD,101743
North East Lincolnshire Council,http://statistics.data.gov.uk/id/local-authority/00FC,Children & Family Services,Commissioning Partn & Perform,Commissioning & Performance,Catering,Provisions,LB101,17/06/2011,17281,"7,898.24 ",REVENUE,DAIRY CREST LTD,101743
North East Lincolnshire Council,http://statistics.data.gov.uk/id/local-authority/00FC,Children & Family Services,Inclusion And Standards,Music Services,Equip / Furniture / Materials,Equipment - Purchase,LA101,16/06/2011,16630,632.54 ,REVENUE,DAWKES MUSIC LTD,104519
North East Lincolnshire Council,http://statistics.data.gov.uk/id/local-authority/00FC,Children & Family Services,Inclusion And Standards,Community Learning Services,Rents,Rent,GC101,02/06/2011,11986,600.00 ,REVENUE,DIOCESE OF LINCOLN BOARD OF,100725
North East Lincolnshire Council,http://statistics.data.gov.uk/id/local-authority/00FC,Children & Family Services,Inclusion And Standards,Sen/Inclusion,Private Contractors,Third Party Prov - Private,PH101,08/06/2011,14383,-165.00 ,REVENUE,DKM ASSESSMENT & VERIFICATION LTD,101643
North East Lincolnshire Council,http://statistics.data.gov.uk/id/local-authority/00FC,Children & Family Services,Inclusion And Standards,Sen/Inclusion,Private Contractors,Third Party Prov - Private,PH101,08/06/2011,14365,-76.00 ,REVENUE,DKM ASSESSMENT & VERIFICATION LTD,101643
North East Lincolnshire Council,http://statistics.data.gov.uk/id/local-authority/00FC,Children & Family Services,Inclusion And Standards,Sen/Inclusion,Private Contractors,Third Party Prov - Private,PH101,08/06/2011,14367,-70.00 ,REVENUE,DKM ASSESSMENT & VERIFICATION LTD,101643
North East Lincolnshire Council,http://statistics.data.gov.uk/id/local-authority/00FC,Children & Family Services,Inclusion And Standards,Sen/Inclusion,Private Contractors,Third Party Prov - Private,PH101,09/06/2011,14381,-70.00 ,REVENUE,DKM ASSESSMENT & VERIFICATION LTD,101643
North East Lincolnshire Council,http://statistics.data.gov.uk/id/local-authority/00FC,Children & Family Services,Inclusion And Standards,Sen/Inclusion,Private Contractors,Third Party Prov - Private,PH101,09/06/2011,14382,-70.00 ,REVENUE,DKM ASSESSMENT & VERIFICATION LTD,101643
North East Lincolnshire Council,http://statistics.data.gov.uk/id/local-authority/00FC,Children & Family Services,Inclusion And Standards,Sen/Inclusion,Private Contractors,Third Party Prov - Private,PH101,09/06/2011,14384,-70.00 ,REVENUE,DKM ASSESSMENT & VERIFICATION LTD,101643
North East Lincolnshire Council,http://statistics.data.gov.uk/id/local-authority/00FC,Children & Family Services,Inclusion And Standards,Sen/Inclusion,Private Contractors,Third Party Prov - Private,PH101,08/06/2011,14362,-70.00 ,REVENUE,DKM ASSESSMENT & VERIFICATION LTD,101643
North East Lincolnshire Council,http://statistics.data.gov.uk/id/local-authority/00FC,Children & Family Services,Inclusion And Standards,Sen/Inclusion,Private Contractors,Third Party Prov - Private,PH101,08/06/2011,14364,-70.00 ,REVENUE,DKM ASSESSMENT & VERIFICATION LTD,101643
North East Lincolnshire Council,http://statistics.data.gov.uk/id/local-authority/00FC,Children & Family Services,Inclusion And Standards,Sen/Inclusion,Private Contractors,Third Party Prov - Private,PH101,08/06/2011,14363,-70.00 ,REVENUE,DKM ASSESSMENT & VERIFICATION LTD,101643
North East Lincolnshire Council,http://statistics.data.gov.uk/id/local-authority/00FC,Children & Family Services,Inclusion And Standards,Sen/Inclusion,Private Contractors,Third Party Prov - Private,PH101,08/06/2011,14385,-70.00 ,REVENUE,DKM ASSESSMENT & VERIFICATION LTD,101643
North East Lincolnshire Council,http://statistics.data.gov.uk/id/local-authority/00FC,Children & Family Services,Inclusion And Standards,Sen/Inclusion,Private Contractors,Third Party Prov - Private,PH101,09/06/2011,14379,-50.00 ,REVENUE,DKM ASSESSMENT & VERIFICATION LTD,101643
North East Lincolnshire Council,http://statistics.data.gov.uk/id/local-authority/00FC,Children & Family Services,Inclusion And Standards,Sen/Inclusion,Private Contractors,Third Party Prov - Private,PH101,08/06/2011,14366,-38.00 ,REVENUE,DKM ASSESSMENT & VERIFICATION LTD,101643
North East Lincolnshire Council,http://statistics.data.gov.uk/id/local-authority/00FC,Children & Family Services,Inclusion And Standards,Sen/Inclusion,Private Contractors,Third Party Prov - Private,PH101,14/06/2011,16100,630.00 ,REVENUE,DKM ASSESSMENT & VERIFICATION LTD,101643
North East Lincolnshire Council,http://statistics.data.gov.uk/id/local-authority/00FC,Children & Family Services,Inclusion And Standards,Sen/Inclusion,Private Contractors,Third Party Prov - Private,PH101,14/06/2011,16091,630.00 ,REVENUE,DKM ASSESSMENT & VERIFICATION LTD,101643
North East Lincolnshire Council,http://statistics.data.gov.uk/id/local-authority/00FC,Children & Family Services,Inclusion And Standards,Sen/Inclusion,Private Contractors,Third Party Prov - Private,PH101,14/06/2011,16097,630.00 ,REVENUE,DKM ASSESSMENT & VERIFICATION LTD,101643
North East Lincolnshire Council,http://statistics.data.gov.uk/id/local-authority/00FC,Children & Family Services,Inclusion And Standards,Sen/Inclusion,Private Contractors,Third Party Prov - Private,PH101,14/06/2011,16099,630.00 ,REVENUE,DKM ASSESSMENT & VERIFICATION LTD,101643
North East Lincolnshire Council,http://statistics.data.gov.uk/id/local-authority/00FC,Children & Family Services,Inclusion And Standards,Sen/Inclusion,Private Contractors,Third Party Prov - Private,PH101,14/06/2011,16098,630.00 ,REVENUE,DKM ASSESSMENT & VERIFICATION LTD,101643
North East Lincolnshire Council,http://statistics.data.gov.uk/id/local-authority/00FC,Children & Family Services,Inclusion And Standards,Sen/Inclusion,Private Contractors,Third Party Prov - Private,PH101,14/06/2011,16085,630.00 ,REVENUE,DKM ASSESSMENT & VERIFICATION LTD,101643
North East Lincolnshire Council,http://statistics.data.gov.uk/id/local-authority/00FC,Children & Family Services,Inclusion And Standards,Sen/Inclusion,Private Contractors,Third Party Prov - Private,PH101,14/06/2011,16088,630.00 ,REVENUE,DKM ASSESSMENT & VERIFICATION LTD,101643
North East Lincolnshire Council,http://statistics.data.gov.uk/id/local-authority/00FC,Children & Family Services,Inclusion And Standards,Sen/Inclusion,Private Contractors,Third Party Prov - Private,PH101,14/06/2011,16089,630.00 ,REVENUE,DKM ASSESSMENT & VERIFICATION LTD,101643
North East Lincolnshire Council,http://statistics.data.gov.uk/id/local-authority/00FC,Children & Family Services,Inclusion And Standards,Sen/Inclusion,Private Contractors,Third Party Prov - Private,PH101,14/06/2011,16095,684.00 ,REVENUE,DKM ASSESSMENT & VERIFICATION LTD,101643
North East Lincolnshire Council,http://statistics.data.gov.uk/id/local-authority/00FC,Children & Family Services,Vulnerable Children,Youth Offending Team,Consultancy,Consultancy,PL101,29/06/2011,20273,950.00 ,REVENUE,DKM ASSESSMENT & VERIFICATION LTD,101643
North East Lincolnshire Council,http://statistics.data.gov.uk/id/local-authority/00FC,Children & Family Services,Inclusion And Standards,Additional & Enhanced Needs,Contributions To Provisions,Contributions - Other,LK103,13/06/2011,15475,"1,330.00 ",REVENUE,DKM ASSESSMENT & VERIFICATION LTD,101643
North East Lincolnshire Council,http://statistics.data.gov.uk/id/local-authority/00FC,Children & Family Services,Inclusion And Standards,Additional & Enhanced Needs,Contributions To Provisions,Contributions - Other,LK103,10/06/2011,15372,"1,330.00 ",REVENUE,DKM ASSESSMENT & VERIFICATION LTD,101643
North East Lincolnshire Council,http://statistics.data.gov.uk/id/local-authority/00FC,Children & Family Services,Inclusion And Standards,Additional & Enhanced Needs,Contributions To Provisions,Contributions - Other,LK103,10/06/2011,15373,"1,330.00 ",REVENUE,DKM ASSESSMENT & VERIFICATION LTD,101643
North East Lincolnshire Council,http://statistics.data.gov.uk/id/local-authority/00FC,Children & Family Services,Inclusion And Standards,Sen/Inclusion,Private Contractors,Third Party Prov - Private,PH101,09/06/2011,14649,"1,400.00 ",REVENUE,DKM ASSESSMENT & VERIFICATION LTD,101643
North East Lincolnshire Council,http://statistics.data.gov.uk/id/local-authority/00FC,Children & Family Services,Inclusion And Standards,Sen/Inclusion,Private Contractors,Third Party Prov - Private,PH101,14/06/2011,16086,"1,485.00 ",REVENUE,DKM ASSESSMENT & VERIFICATION LTD,101643
North East Lincolnshire Council,http://statistics.data.gov.uk/id/local-authority/00FC,Children & Family Services,Inclusion And Standards,Additional & Enhanced Needs,Contributions To Provisions,Contributions - Other,LK103,10/06/2011,15375,"3,135.00 ",REVENUE,DKM ASSESSMENT & VERIFICATION LTD,101643
North East Lincolnshire Council,http://statistics.data.gov.uk/id/local-authority/00FC,Children & Family Services,Inclusion And Standards,Additional & Enhanced Needs,Private Contractors,Third Party Prov - Private,PH101,01/06/2011,11934,"9,520.00 ",REVENUE,DKM ASSESSMENT & VERIFICATION LTD,101643
North East Lincolnshire Council,http://statistics.data.gov.uk/id/local-authority/00FC,Children & Family Services,Inclusion And Standards,Community Learning Services,Other Agencies,Further Ed Emp & Training,PJ130,03/06/2011,12853,"27,900.00 ",REVENUE,DKM ASSESSMENT & VERIFICATION LTD,101643
North East Lincolnshire Council,http://statistics.data.gov.uk/id/local-authority/00FC,Children & Family Services,Havelock Academy,Havelock Academy,Cap Auc-Build Enh Wrk,Cap Auc-Build Enh Wrk,YF102,08/06/2011,14489,"1,333.00 ",CAPITAL,EAST LINDSEY DISTRICT COUNCIL,101582
North East Lincolnshire Council,http://statistics.data.gov.uk/id/local-authority/00FC,Children & Family Services,Hereford School Rebuilding,Hereford School Rebuilding,Cap Auc-Build Enh Wrk,Cap Auc-Build Enh Wrk,YF102,09/06/2011,14490,"1,415.00 ",CAPITAL,EAST LINDSEY DISTRICT COUNCIL,101582
North East Lincolnshire Council,http://statistics.data.gov.uk/id/local-authority/00FC,Children & Family Services,Vulnerable Children,Through Care & Disability,Private Contractors,Third Party Prov - Private,PH101,07/06/2011,13844,"1,358.80 ",REVENUE,EAST MIDLANDS CROSSROADS,102400
North East Lincolnshire Council,http://statistics.data.gov.uk/id/local-authority/00FC,Children & Family Services,Vulnerable Children,Through Care & Disability,Private Contractors,Third Party Prov - Private,PH101,07/06/2011,14119,"2,356.25 ",REVENUE,EAST MIDLANDS CROSSROADS,102400
North East Lincolnshire Council,http://statistics.data.gov.uk/id/local-authority/00FC,Children & Family Services,Commissioning Partn & Perform,Childrens Centre Development,Other Agencies,Nursery Educ Fund - Standard,PJ139,10/06/2011,15189,"2,086.08 ",REVENUE,EAST RAVENDALE PRE SCHOOL,100941
North East Lincolnshire Council,http://statistics.data.gov.uk/id/local-authority/00FC,Children & Family Services,Commissioning Partn & Perform,Extended Services,Equip / Furniture / Materials,Equipment - Purchase,LA101,06/06/2011,12782,-17.88 ,REVENUE,EAST RIDING OF YORKSHIRE COUNCIL,100654
North East Lincolnshire Council,http://statistics.data.gov.uk/id/local-authority/00FC,Children & Family Services,Commissioning Partn & Perform,Extended Services,Equip / Furniture / Materials,Equipment - Purchase,LA101,03/06/2011,12781,-8.94 ,REVENUE,EAST RIDING OF YORKSHIRE COUNCIL,100654
North East Lincolnshire Council,http://statistics.data.gov.uk/id/local-authority/00FC,Children & Family Services,Commissioning Partn & Perform,Childrens Centre Development,Cleaning And Domestic Supplies,Cleaning - Services,GH102,29/06/2011,20479,541.00 ,REVENUE,EASY CLEAN MARSHCHAPEL LTD,104531
North East Lincolnshire Council,http://statistics.data.gov.uk/id/local-authority/00FC,Children & Family Services,Commissioning Partn & Perform,Childrens Centre Development,Rep Alterations Maint Building,Buildings - Repairs And Maint,GA102,16/06/2011,16841,541.00 ,REVENUE,EASY CLEAN MARSHCHAPEL LTD,104531
North East Lincolnshire Council,http://statistics.data.gov.uk/id/local-authority/00FC,Children & Family Services,Commissioning Partn & Perform,Childrens Centre Development,Cleaning And Domestic Supplies,Cleaning - Services,GH102,22/06/2011,18130,630.00 ,REVENUE,EASY CLEAN MARSHCHAPEL LTD,104531
North East Lincolnshire Council,http://statistics.data.gov.uk/id/local-authority/00FC,Children & Family Services,Inclusion And Standards,Standards & Effectiveness,Government Grants,Grants - Standards Fund,VA102,06/06/2011,12949,"1,125.00 ",REVENUE,EDWARD HENEAGE PRIMARY SCHOOL,103917
North East Lincolnshire Council,http://statistics.data.gov.uk/id/local-authority/00FC,Children & Family Services,Commissioning Partn & Perform,Strategic Management,Direct Employee Expenses,Pay,EA101,09/06/2011,14492,"7,870.40 ",REVENUE,ESCRICK EDUCATION ASSOCIATES,102662
North East Lincolnshire Council,http://statistics.data.gov.uk/id/local-authority/00FC,Children & Family Services,Commissioning Partn & Perform,Strategic Management,Direct Employee Expenses,Pay,EA101,29/06/2011,20033,"10,490.80 ",REVENUE,ESCRICK EDUCATION ASSOCIATES,102662
North East Lincolnshire Council,http://statistics.data.gov.uk/id/local-authority/00FC,Children & Family Services,Commissioning Partn & Perform,Childrens Health Provision,Direct Employee Expenses,Agency Staff,EA105,14/06/2011,16120,507.78 ,REVENUE,ESP LTD,101231
North East Lincolnshire Council,http://statistics.data.gov.uk/id/local-authority/00FC,Children & Family Services,Commissioning Partn & Perform,Extended Services,Direct Employee Expenses,Pay,EA101,29/06/2011,20206,558.00 ,REVENUE,ESP LTD,101231
North East Lincolnshire Council,http://statistics.data.gov.uk/id/local-authority/00FC,Children & Family Services,Commissioning Partn & Perform,Childrens Health Provision,Direct Employee Expenses,Pay,EA101,09/06/2011,14816,597.06 ,REVENUE,ESP LTD,101231
North East Lincolnshire Council,http://statistics.data.gov.uk/id/local-authority/00FC,Children & Family Services,Commissioning Partn & Perform,Childrens Health Provision,Direct Employee Expenses,Agency Staff,EA105,09/06/2011,14930,675.18 ,REVENUE,ESP LTD,101231
North East Lincolnshire Council,http://statistics.data.gov.uk/id/local-authority/00FC,Children & Family Services,Commissioning Partn & Perform,Childrens Health Provision,Direct Employee Expenses,Agency Staff,EA105,14/06/2011,16119,697.50 ,REVENUE,ESP LTD,101231
North East Lincolnshire Council,http://statistics.data.gov.uk/id/local-authority/00FC,Children & Family Services,Commissioning Partn & Perform,Childrens Centre Development,Direct Employee Expenses,Pay,EA101,06/06/2011,12987,697.50 ,REVENUE,ESP LTD,101231
North East Lincolnshire Council,http://statistics.data.gov.uk/id/local-authority/00FC,Children & Family Services,Commissioning Partn & Perform,Childrens Centre Development,Direct Employee Expenses,Agency Staff,EA105,29/06/2011,20320,817.78 ,REVENUE,ESP LTD,101231
North East Lincolnshire Council,http://statistics.data.gov.uk/id/local-authority/00FC,Children & Family Services,Commissioning Partn & Perform,Childrens Health Provision,Direct Employee Expenses,Agency Staff,EA105,10/06/2011,15147,825.84 ,REVENUE,ESP LTD,101231
North East Lincolnshire Council,http://statistics.data.gov.uk/id/local-authority/00FC,Children & Family Services,Commissioning Partn & Perform,Childrens Health Provision,Direct Employee Expenses,Agency Staff,EA105,14/06/2011,16118,825.84 ,REVENUE,ESP LTD,101231
North East Lincolnshire Council,http://statistics.data.gov.uk/id/local-authority/00FC,Children & Family Services,Commissioning Partn & Perform,Childrens Health Provision,Direct Employee Expenses,Pay,EA101,09/06/2011,14798,825.84 ,REVENUE,ESP LTD,101231
North East Lincolnshire Council,http://statistics.data.gov.uk/id/local-authority/00FC,Children & Family Services,Commissioning Partn & Perform,Childrens Centre Development,Direct Employee Expenses,Pay,EA101,09/06/2011,14928,920.08 ,REVENUE,ESP LTD,101231
North East Lincolnshire Council,http://statistics.data.gov.uk/id/local-authority/00FC,Children & Family Services,Commissioning Partn & Perform,Childrens Centre Development,Direct Employee Expenses,Agency Staff,EA105,09/06/2011,14833,956.66 ,REVENUE,ESP LTD,101231
North East Lincolnshire Council,http://statistics.data.gov.uk/id/local-authority/00FC,Children & Family Services,Commissioning Partn & Perform,Childrens Centre Development,Direct Employee Expenses,Agency Staff,EA105,10/06/2011,14909,"1,078.18 ",REVENUE,ESP LTD,101231
North East Lincolnshire Council,http://statistics.data.gov.uk/id/local-authority/00FC,Children & Family Services,Commissioning Partn & Perform,Childrens Centre Development,Rep Alterations Maint Building,Buildings - Repairs And Maint,GA102,02/06/2011,12336,"1,760.00 ",REVENUE,ETON-LINCS LIMITED,101510
North East Lincolnshire Council,http://statistics.data.gov.uk/id/local-authority/00FC,Children & Family Services,Childrens Health & Family Serv,Integrated Youth Services,Catering,Catering Costs,LB102,06/06/2011,13422,665.00 ,REVENUE,EUROPARC HOSPITALITY SERVICES LTD,102555
North East Lincolnshire Council,http://statistics.data.gov.uk/id/local-authority/00FC,Children & Family Services,Devolved Formula Cap Grant,Devolved Formula Cap Grant,Cap Land/Build-Build Enh Wrk,Cap Land/Build-Build Enh Wrk,YA102,15/06/2011,16294,534.43 ,CAPITAL,EXCELL ELECTRICAL CONTRACTORS,100601
North East Lincolnshire Council,http://statistics.data.gov.uk/id/local-authority/00FC,Children & Family Services,Inclusion And Standards,Sen/Inclusion,Rep Alterations Maint Building,Buildings - Repairs And Maint,GA102,06/06/2011,12971,654.05 ,REVENUE,EXCELL ELECTRICAL CONTRACTORS,100601
North East Lincolnshire Council,http://statistics.data.gov.uk/id/local-authority/00FC,Children & Family Services,Devolved Formula Cap Grant,Devolved Formula Cap Grant,Cap Land/Build-Build Enh Wrk,Cap Land/Build-Build Enh Wrk,YA102,01/06/2011,11277,"1,895.92 ",CAPITAL,EXCELL ELECTRICAL CONTRACTORS,100601
North East Lincolnshire Council,http://statistics.data.gov.uk/id/local-authority/00FC,Children & Family Services,Devolved Formula Cap Grant,Devolved Formula Cap Grant,Cap Land/Build-Build Enh Wrk,Cap Land/Build-Build Enh Wrk,YA102,02/06/2011,12342,"2,106.72 ",CAPITAL,EXCELL ELECTRICAL CONTRACTORS,100601
North East Lincolnshire Council,http://statistics.data.gov.uk/id/local-authority/00FC,Children & Family Services,Devolved Formula Cap Grant,Devolved Formula Cap Grant,Cap Land/Build-Build Enh Wrk,Cap Land/Build-Build Enh Wrk,YA102,15/06/2011,16299,"2,356.66 ",CAPITAL,EXCELL ELECTRICAL CONTRACTORS,100601
North East Lincolnshire Council,http://statistics.data.gov.uk/id/local-authority/00FC,Children & Family Services,Devolved Formula Cap Grant,Devolved Formula Cap Grant,Cap Land/Build-Build Enh Wrk,Cap Land/Build-Build Enh Wrk,YA102,03/06/2011,12906,"4,547.91 ",CAPITAL,EXCELL ELECTRICAL CONTRACTORS,100601
North East Lincolnshire Council,http://statistics.data.gov.uk/id/local-authority/00FC,Children & Family Services,Devolved Formula Cap Grant,Devolved Formula Cap Grant,Cap Land/Build-Build Enh Wrk,Cap Land/Build-Build Enh Wrk,YA102,06/06/2011,12978,"7,322.97 ",CAPITAL,EXCELL ELECTRICAL CONTRACTORS,100601
North East Lincolnshire Council,http://statistics.data.gov.uk/id/local-authority/00FC,Children & Family Services,Vulnerable Children,Placement & Support,Private Contractors,Third Party Prov - Private,PH101,03/06/2011,12937,"25,000.00 ",REVENUE,FAMILY LINKS AROUND GRIMSBY,100936
North East Lincolnshire Council,http://statistics.data.gov.uk/id/local-authority/00FC,Children & Family Services,Commissioning Partn & Perform,Childrens Centre Development,Equip / Furniture / Materials,Furniture - Purchase,LA105,09/06/2011,14824,"1,199.70 ",REVENUE,FINDEL EDUCATION LIMITED,101237
North East Lincolnshire Council,http://statistics.data.gov.uk/id/local-authority/00FC,Children & Family Services,Commissioning Partn & Perform,Childrens Centre Development,Other Agencies,Child Care Payments,PJ104,24/06/2011,19447,"2,733.67 ",REVENUE,FIRST STEPS GRIMSBY LIMITED,101411
North East Lincolnshire Council,http://statistics.data.gov.uk/id/local-authority/00FC,Children & Family Services,Commissioning Partn & Perform,Childrens Centre Development,Other Agencies,Child Care Payments,PJ104,24/06/2011,19448,"3,786.12 ",REVENUE,FIRST STEPS GRIMSBY LIMITED,101411
North East Lincolnshire Council,http://statistics.data.gov.uk/id/local-authority/00FC,Children & Family Services,Commissioning Partn & Perform,Childrens Centre Development,Other Agencies,Nursery Educ Fund - Standard,PJ139,10/06/2011,15188,"5,918.10 ",REVENUE,FIRST STEPS GRIMSBY LIMITED,101411
North East Lincolnshire Council,http://statistics.data.gov.uk/id/local-authority/00FC,Children & Family Services,Commissioning Partn & Perform,Child Care Performance & Ict,Communications And Computing,Computer S/Ware - Licences,LF103,06/06/2011,13190,"2,565.50 ",REVENUE,FISCHER EDUCATION PROJECT LTD,101468
North East Lincolnshire Council,http://statistics.data.gov.uk/id/local-authority/00FC,Children & Family Services,Commissioning Partn & Perform,Childrens Centre Development,Other Agencies,Child Care Payments,PJ104,16/06/2011,17251,529.52 ,REVENUE,FOR UNDER FIVES,101931
North East Lincolnshire Council,http://statistics.data.gov.uk/id/local-authority/00FC,Children & Family Services,Commissioning Partn & Perform,Childrens Centre Development,Other Agencies,Nursery Educ Fund - Standard,PJ139,13/06/2011,15266,"4,205.04 ",REVENUE,FOR UNDER FIVES,101931
North East Lincolnshire Council,http://statistics.data.gov.uk/id/local-authority/00FC,Children & Family Services,Commissioning Partn & Perform,Childrens Centre Development,Other Agencies,Nursery Educ Fund - Standard,PJ139,10/06/2011,14922,"1,758.08 ",REVENUE,FOR UNDER FIVES LTD,100647
North East Lincolnshire Council,http://statistics.data.gov.uk/id/local-authority/00FC,Children & Family Services,Commissioning Partn & Perform,Childrens Centre Development,Other Agencies,Nursery Educ Fund - Standard,PJ139,10/06/2011,15186,"3,316.08 ",REVENUE,FOR UNDER FIVES LTD,100647
North East Lincolnshire Council,http://statistics.data.gov.uk/id/local-authority/00FC,Children & Family Services,Commissioning Partn & Perform,Childrens Centre Development,Other Agencies,Nursery Educ Fund - Standard,PJ139,10/06/2011,15187,"3,894.48 ",REVENUE,FOR UNDER FIVES LTD,100647
North East Lincolnshire Council,http://statistics.data.gov.uk/id/local-authority/00FC,Children & Family Services,Commissioning Partn & Perform,Childrens Centre Development,Other Agencies,Nursery Educ Fund - Standard,PJ139,13/06/2011,15254,"2,361.60 ",REVENUE,FOR UNDER FIVES LTD,101795
North East Lincolnshire Council,http://statistics.data.gov.uk/id/local-authority/00FC,Children & Family Services,Commissioning Partn & Perform,Extended Services,Cleaning And Domestic Supplies,Cleaning - Services,GH102,13/06/2011,15715,"1,984.31 ",REVENUE,FUTURE CLEANING SERVICES LTD,102557
North East Lincolnshire Council,http://statistics.data.gov.uk/id/local-authority/00FC,Children & Family Services,Bsf Programme,Bsf Programme,Cap Auc-Build Enh Wrk,Cap Auc-Build Enh Wrk,YF102,03/06/2011,12942,"27,000.00 ",CAPITAL,GAIA TECHNOLOGIES PLC,102572
North East Lincolnshire Council,http://statistics.data.gov.uk/id/local-authority/00FC,Children & Family Services,Primary Capital Programme,Primary Capital Programme,Cap Auc-Build Enh Wrk,Cap Auc-Build Enh Wrk,YF102,30/06/2011,21495,"124,288.45 ",CAPITAL,GEO HOULTON & SONS LTD,102697
North East Lincolnshire Council,http://statistics.data.gov.uk/id/local-authority/00FC,Children & Family Services,Childrens Health & Family Serv,Integrated Youth Services,Miscellaneous Expenses,Activities - Service Users,LL114,10/06/2011,15276,"2,849.00 ",REVENUE,GET HOOKED ON POSITIVE ACTIVITIES,102618
North East Lincolnshire Council,http://statistics.data.gov.uk/id/local-authority/00FC,Children & Family Services,Commissioning Partn & Perform,Extended Services,Equip / Furniture / Materials,Equipment - Purchase,LA101,29/06/2011,20348,504.53 ,REVENUE,GREENSWEAR LTD,104855
North East Lincolnshire Council,http://statistics.data.gov.uk/id/local-authority/00FC,Children & Family Services,C&Fs Other,Holding Accounts,Print Stationery / Gen Off Exp,Advertising,LD104,03/06/2011,12813,"-1,234.00 ",REVENUE,GRIMSBY & SCUNTHORPE MEDIA GROUP LTD,101827
North East Lincolnshire Council,http://statistics.data.gov.uk/id/local-authority/00FC,Children & Family Services,C&Fs Other,Holding Accounts,Print Stationery / Gen Off Exp,Advertising,LD104,03/06/2011,12812,-340.00 ,REVENUE,GRIMSBY & SCUNTHORPE MEDIA GROUP LTD,101827
North East Lincolnshire Council,http://statistics.data.gov.uk/id/local-authority/00FC,Children & Family Services,Vulnerable Children,Placement & Support,Print Stationery / Gen Off Exp,Publicity,LD105,28/06/2011,20413,617.00 ,REVENUE,GRIMSBY & SCUNTHORPE MEDIA GROUP LTD,101827
North East Lincolnshire Council,http://statistics.data.gov.uk/id/local-authority/00FC,Children & Family Services,Vulnerable Children,Placement & Support,Print Stationery / Gen Off Exp,Publicity,LD105,10/06/2011,15154,617.00 ,REVENUE,GRIMSBY & SCUNTHORPE MEDIA GROUP LTD,101827
North East Lincolnshire Council,http://statistics.data.gov.uk/id/local-authority/00FC,Children & Family Services,Commissioning Partn & Perform,Childrens Centre Development,Other Agencies,Nursery Educ Fund - Standard,PJ139,10/06/2011,15271,"5,553.04 ",REVENUE,GRIMSBY INSTITUTE FOR FHE,101649
North East Lincolnshire Council,http://statistics.data.gov.uk/id/local-authority/00FC,Children & Family Services,Commissioning Partn & Perform,Extended Services,Print Stationery / Gen Off Exp,Publicity,LD105,06/06/2011,13390,"6,890.00 ",REVENUE,GRIMSBY TOWN FOOTBALL CLUB,100646
North East Lincolnshire Council,http://statistics.data.gov.uk/id/local-authority/00FC,Children & Family Services,Creative Play Facilities,Creative Play Facilities,Cap Ass Held Sale-Prof Fees,Cap Ass Held Sale-Prof Fees,YG102,02/06/2011,12518,"31,208.65 ",CAPITAL,HAGS PLAY LTD,101323
North East Lincolnshire Council,http://statistics.data.gov.uk/id/local-authority/00FC,Children & Family Services,Inclusion And Standards,Sen/Inclusion,Rep Alterations Maint Building,Buildings - Repairs And Maint,GA102,20/06/2011,16288,512.00 ,REVENUE,HAITH'S HEATING LTD,101342
North East Lincolnshire Council,http://statistics.data.gov.uk/id/local-authority/00FC,Children & Family Services,Commissioning Partn & Perform,Childrens Centre Development,Rep Alterations Maint Building,Buildings - Repairs And Maint,GA102,29/06/2011,20536,765.00 ,REVENUE,HAITH'S HEATING LTD,101342
North East Lincolnshire Council,http://statistics.data.gov.uk/id/local-authority/00FC,Children & Family Services,Commissioning Partn & Perform,Extended Services,Miscellaneous Expenses,Activities - Service Users,LL114,28/06/2011,20345,709.51 ,REVENUE,HAVELOCK ACADEMY,101968
North East Lincolnshire Council,http://statistics.data.gov.uk/id/local-authority/00FC,Children & Family Services,Commissioning Partn & Perform,Childrens Centre Development,Other Agencies,Nursery Educ Fund - Standard,PJ139,10/06/2011,15185,"2,703.60 ",REVENUE,HAVEN METHODIST PRE-SCHOOL,102286
North East Lincolnshire Council,http://statistics.data.gov.uk/id/local-authority/00FC,Children & Family Services,Commissioning Partn & Perform,Childrens Centre Development,Other Agencies,Nursery Educ Fund - Standard,PJ139,10/06/2011,15184,"7,173.36 ",REVENUE,HEALING VILLAGE NURSERY,101096
North East Lincolnshire Council,http://statistics.data.gov.uk/id/local-authority/00FC,Children & Family Services,Inclusion And Standards,Community Learning Services,Communications And Computing,Computer S/Ware - Purchases,LF101,06/06/2011,13511,500.00 ,REVENUE,HULL & HUMBER CHAMBER OF COMMERCE,102808
North East Lincolnshire Council,http://statistics.data.gov.uk/id/local-authority/00FC,Children & Family Services,Childrens Health & Family Serv,Integrated Youth Services,Rents,Room Hire,GC103,29/06/2011,20164,627.00 ,REVENUE,HUMBERSTON  MATHS & COMPUTING COLLEGE,103714
North East Lincolnshire Council,http://statistics.data.gov.uk/id/local-authority/00FC,Children & Family Services,Commissioning Partn & Perform,Extended Services,Miscellaneous Expenses,Activities - Service Users,LL114,02/06/2011,12023,"2,000.00 ",REVENUE,HUMBERSTON  MATHS & COMPUTING COLLEGE,103714
North East Lincolnshire Council,http://statistics.data.gov.uk/id/local-authority/00FC,Children & Family Services,Commissioning Partn & Perform,Childrens Centre Development,Other Agencies,Nursery Educ Fund - Standard,PJ139,10/06/2011,15183,"7,448.88 ",REVENUE,HUMBERSTON C E PRE SCHOOL,101153
North East Lincolnshire Council,http://statistics.data.gov.uk/id/local-authority/00FC,Children & Family Services,Inclusion And Standards,Standards & Effectiveness,Government Grants,Grants - Standards Fund,VA102,06/06/2011,12931,"2,125.00 ",REVENUE,HUMBERSTON C OF E PRIMARY SCHOOL,101566
North East Lincolnshire Council,http://statistics.data.gov.uk/id/local-authority/00FC,Children & Family Services,Commissioning Partn & Perform,Childrens Centre Development,Other Agencies,Nursery Educ Fund - Standard,PJ139,10/06/2011,15182,"1,161.12 ",REVENUE,HUMBERSTON VILLAGE NURSERY,102006
North East Lincolnshire Council,http://statistics.data.gov.uk/id/local-authority/00FC,Children & Family Services,Inclusion And Standards,School Access Governor Student,Contract Hire-Operating Leases,Vehicles - Contract Hire,JC101,10/06/2011,15296,Redacted Commercially Sensitive,REVENUE,HUXMANOR LTD,101444
North East Lincolnshire Council,http://statistics.data.gov.uk/id/local-authority/00FC,Children & Family Services,Inclusion And Standards,School Access Governor Student,Contract Hire-Operating Leases,Vehicles - Contract Hire,JC101,10/06/2011,15298,Redacted Commercially Sensitive,REVENUE,HUXMANOR LTD,101444
North East Lincolnshire Council,http://statistics.data.gov.uk/id/local-authority/00FC,Children & Family Services,Inclusion And Standards,School Access Governor Student,Contract Hire-Operating Leases,Vehicles - Contract Hire,JC101,10/06/2011,15297,Redacted Commercially Sensitive,REVENUE,HUXMANOR LTD,101444
North East Lincolnshire Council,http://statistics.data.gov.uk/id/local-authority/00FC,Children & Family Services,Inclusion And Standards,School Access Governor Student,Contract Hire-Operating Leases,Vehicles - Contract Hire,JC101,09/06/2011,14877,Redacted Commercially Sensitive,REVENUE,HUXMANOR LTD,101444
North East Lincolnshire Council,http://statistics.data.gov.uk/id/local-authority/00FC,Children & Family Services,Inclusion And Standards,School Access Governor Student,Contract Hire-Operating Leases,Vehicles - Contract Hire,JC101,09/06/2011,14878,Redacted Commercially Sensitive,REVENUE,HUXMANOR LTD,101444
North East Lincolnshire Council,http://statistics.data.gov.uk/id/local-authority/00FC,Children & Family Services,Inclusion And Standards,School Access Governor Student,Contract Hire-Operating Leases,Vehicles - Contract Hire,JC101,10/06/2011,15433,Redacted Commercially Sensitive,REVENUE,HUXMANOR LTD,101444
North East Lincolnshire Council,http://statistics.data.gov.uk/id/local-authority/00FC,Children & Family Services,Inclusion And Standards,Standards & Effectiveness,Consultancy,Consultancy,PL101,30/06/2011,21254,"2,000.00 ",REVENUE,IMPROVE MATHS LTD,104908
North East Lincolnshire Council,http://statistics.data.gov.uk/id/local-authority/00FC,Children & Family Services,Vulnerable Children,Safeguarding,Indirect Employee Expenses,Staff Training,EB122,09/06/2011,14421,"1,028.80 ",REVENUE,INDEPENDENT FAMILY SERVICE,104410
North East Lincolnshire Council,http://statistics.data.gov.uk/id/local-authority/00FC,Children & Family Services,Devolved Formula Cap Grant,Devolved Formula Cap Grant,Cap Land/Build-Build Enh Wrk,Cap Land/Build-Build Enh Wrk,YA102,29/06/2011,20964,"3,120.00 ",CAPITAL,INNOVATE FURNITURE CO.,104905
North East Lincolnshire Council,http://statistics.data.gov.uk/id/local-authority/00FC,Children & Family Services,Commissioning Partn & Perform,Childrens Centre Development,Other Agencies,Nursery Educ Funding - Top Up,PJ140,30/06/2011,21286,"14,040.00 ",REVENUE,J W PLATER LTD,100555
North East Lincolnshire Council,http://statistics.data.gov.uk/id/local-authority/00FC,Children & Family Services,Nds Cond + Modern All Schools,Nds Cond + Modern All Schools,Cap Auc-Build Enh Wrk,Cap Auc-Build Enh Wrk,YF102,30/06/2011,21481,"98,500.59 ",CAPITAL,JENNINGS ROOFING LIMITED,103290
North East Lincolnshire Council,http://statistics.data.gov.uk/id/local-authority/00FC,Children & Family Services,Devolved Formula Cap Grant,Devolved Formula Cap Grant,Cap Land/Build-Build Enh Wrk,Cap Land/Build-Build Enh Wrk,YA102,14/06/2011,15927,"15,000.00 ",CAPITAL,KES BUILDING MAINTENANCE LIMITED,100786
North East Lincolnshire Council,http://statistics.data.gov.uk/id/local-authority/00FC,Children & Family Services,Devolved Formula Cap Grant,Devolved Formula Cap Grant,Cap Land/Build-Build Enh Wrk,Cap Land/Build-Build Enh Wrk,YA102,13/06/2011,15769,"27,415.00 ",CAPITAL,KES BUILDING MAINTENANCE LIMITED,100786
North East Lincolnshire Council,http://statistics.data.gov.uk/id/local-authority/00FC,Children & Family Services,Hereford School Rebuilding,Hereford School Rebuilding,Cap Auc-Build Enh Wrk,Cap Auc-Build Enh Wrk,YF102,21/06/2011,18397,"247,423.00 ",CAPITAL,KIER BUILD,102302
North East Lincolnshire Council,http://statistics.data.gov.uk/id/local-authority/00FC,Children & Family Services,Havelock Academy,Havelock Academy,Cap Auc-Build Enh Wrk,Cap Auc-Build Enh Wrk,YF102,21/06/2011,18396,"2,210,548.03 ",CAPITAL,KIER BUILD,102302
North East Lincolnshire Council,http://statistics.data.gov.uk/id/local-authority/00FC,Children & Family Services,Inclusion And Standards,Additional & Enhanced Needs,Other Local Authorities,Third Pp - Other Local Auth,PC101,13/06/2011,15472,"60,606.33 ",REVENUE,KISIMUL SCHOOL,100406
North East Lincolnshire Council,http://statistics.data.gov.uk/id/local-authority/00FC,Children & Family Services,Inclusion And Standards,Standards & Effectiveness,Consultancy,Consultancy,PL101,14/06/2011,15990,"2,225.00 ",REVENUE,LEARNING POOL LIMITED,101834
North East Lincolnshire Council,http://statistics.data.gov.uk/id/local-authority/00FC,Children & Family Services,Devolved Formula Cap Grant,Devolved Formula Cap Grant,Cap Land/Build-Build Enh Wrk,Cap Land/Build-Build Enh Wrk,YA102,02/06/2011,12335,782.00 ,CAPITAL,LINCS ELECTRICAL SERVICES LTD,102044
North East Lincolnshire Council,http://statistics.data.gov.uk/id/local-authority/00FC,Children & Family Services,Nds Cond + Modern All Schools,Nds Cond + Modern All Schools,Cap Land/Build-Build Enh Wrk,Cap Land/Build-Build Enh Wrk,YA102,02/06/2011,12340,"1,965.00 ",CAPITAL,LINCS ELECTRICAL SERVICES LTD,102044
North East Lincolnshire Council,http://statistics.data.gov.uk/id/local-authority/00FC,Children & Family Services,Vulnerable Children,Through Care & Disability,Other Agencies,Housing Benefit,PJ134,14/06/2011,12798,850.00 ,REVENUE,LINCS LETTINGS LTD,104452
North East Lincolnshire Council,http://statistics.data.gov.uk/id/local-authority/00FC,Children & Family Services,Vulnerable Children,Placement & Support,Rents,Rent,GC101,13/06/2011,15677,"3,300.00 ",REVENUE,LINKAGE COMMUNITY TRUST LTD,104471
North East Lincolnshire Council,http://statistics.data.gov.uk/id/local-authority/00FC,Children & Family Services,Vulnerable Children,Placement & Support,Rents,Rent,GC101,13/06/2011,15676,"3,600.00 ",REVENUE,LINKAGE COMMUNITY TRUST LTD,104471
North East Lincolnshire Council,http://statistics.data.gov.uk/id/local-authority/00FC,Children & Family Services,Inclusion And Standards,Additional & Enhanced Needs,Rents,Rent,GC101,14/06/2011,15471,"3,900.00 ",REVENUE,LINKAGE COMMUNITY TRUST LTD,104471
North East Lincolnshire Council,http://statistics.data.gov.uk/id/local-authority/00FC,Children & Family Services,Inclusion And Standards,School Access Governor Student,Contract Hire-Operating Leases,Vehicles - Contract Hire,JC101,30/06/2011,21311,Redacted Commercially Sensitive,REVENUE,LINKS TAXIS,100546
North East Lincolnshire Council,http://statistics.data.gov.uk/id/local-authority/00FC,Children & Family Services,Inclusion And Standards,School Access Governor Student,Contract Hire-Operating Leases,Vehicles - Contract Hire,JC101,01/06/2011,11366,Redacted Commercially Sensitive,REVENUE,LINKS TAXIS,100546
North East Lincolnshire Council,http://statistics.data.gov.uk/id/local-authority/00FC,Children & Family Services,Inclusion And Standards,School Access Governor Student,Contract Hire-Operating Leases,Vehicles - Contract Hire,JC101,28/06/2011,20438,Redacted Commercially Sensitive,REVENUE,LINKS TAXIS,100546
North East Lincolnshire Council,http://statistics.data.gov.uk/id/local-authority/00FC,Children & Family Services,Inclusion And Standards,School Access Governor Student,Contract Hire-Operating Leases,Vehicles - Contract Hire,JC101,30/06/2011,21321,Redacted Commercially Sensitive,REVENUE,LINKS TAXIS,100546
North East Lincolnshire Council,http://statistics.data.gov.uk/id/local-authority/00FC,Children & Family Services,Inclusion And Standards,School Access Governor Student,Contract Hire-Operating Leases,Vehicles - Contract Hire,JC101,30/06/2011,21310,Redacted Commercially Sensitive,REVENUE,LINKS TAXIS,100546
North East Lincolnshire Council,http://statistics.data.gov.uk/id/local-authority/00FC,Children & Family Services,Inclusion And Standards,School Access Governor Student,Contract Hire-Operating Leases,Vehicles - Contract Hire,JC101,30/06/2011,21309,Redacted Commercially Sensitive,REVENUE,LINKS TAXIS,100546
North East Lincolnshire Council,http://statistics.data.gov.uk/id/local-authority/00FC,Children & Family Services,Inclusion And Standards,School Access Governor Student,Contract Hire-Operating Leases,Vehicles - Contract Hire,JC101,29/06/2011,20426,Redacted Commercially Sensitive,REVENUE,LINKS TAXIS,100546
North East Lincolnshire Council,http://statistics.data.gov.uk/id/local-authority/00FC,Children & Family Services,Inclusion And Standards,School Access Governor Student,Contract Hire-Operating Leases,Vehicles - Contract Hire,JC101,29/06/2011,20432,Redacted Commercially Sensitive,REVENUE,LINKS TAXIS,100546
North East Lincolnshire Council,http://statistics.data.gov.uk/id/local-authority/00FC,Children & Family Services,Inclusion And Standards,School Access Governor Student,Contract Hire-Operating Leases,Vehicles - Contract Hire,JC101,29/06/2011,20432,Redacted Commercially Sensitive,REVENUE,LINKS TAXIS,100546
North East Lincolnshire Council,http://statistics.data.gov.uk/id/local-authority/00FC,Children & Family Services,Inclusion And Standards,School Access Governor Student,Contract Hire-Operating Leases,Vehicles - Contract Hire,JC101,03/06/2011,12492,Redacted Commercially Sensitive,REVENUE,LINKS TAXIS,100546
North East Lincolnshire Council,http://statistics.data.gov.uk/id/local-authority/00FC,Children & Family Services,Inclusion And Standards,School Access Governor Student,Contract Hire-Operating Leases,Vehicles - Contract Hire,JC101,30/06/2011,21491,Redacted Commercially Sensitive,REVENUE,LINKS TAXIS,100546
North East Lincolnshire Council,http://statistics.data.gov.uk/id/local-authority/00FC,Children & Family Services,Inclusion And Standards,School Access Governor Student,Contract Hire-Operating Leases,Vehicles - Contract Hire,JC101,30/06/2011,21491,Redacted Commercially Sensitive,REVENUE,LINKS TAXIS,100546
North East Lincolnshire Council,http://statistics.data.gov.uk/id/local-authority/00FC,Children & Family Services,Inclusion And Standards,School Access Governor Student,Contract Hire-Operating Leases,Vehicles - Contract Hire,JC101,30/06/2011,21327,Redacted Commercially Sensitive,REVENUE,LINKS TAXIS,100546
North East Lincolnshire Council,http://statistics.data.gov.uk/id/local-authority/00FC,Children & Family Services,Inclusion And Standards,School Access Governor Student,Contract Hire-Operating Leases,Vehicles - Contract Hire,JC101,30/06/2011,21331,Redacted Commercially Sensitive,REVENUE,LINKS TAXIS,100546
North East Lincolnshire Council,http://statistics.data.gov.uk/id/local-authority/00FC,Children & Family Services,Inclusion And Standards,School Access Governor Student,Contract Hire-Operating Leases,Vehicles - Contract Hire,JC101,01/06/2011,11381,Redacted Commercially Sensitive,REVENUE,LINKS TAXIS,100546
North East Lincolnshire Council,http://statistics.data.gov.uk/id/local-authority/00FC,Children & Family Services,Inclusion And Standards,School Access Governor Student,Contract Hire-Operating Leases,Vehicles - Contract Hire,JC101,30/06/2011,21328,Redacted Commercially Sensitive,REVENUE,LINKS TAXIS,100546
North East Lincolnshire Council,http://statistics.data.gov.uk/id/local-authority/00FC,Children & Family Services,Inclusion And Standards,School Access Governor Student,Contract Hire-Operating Leases,Vehicles - Contract Hire,JC101,30/06/2011,21330,Redacted Commercially Sensitive,REVENUE,LINKS TAXIS,100546
North East Lincolnshire Council,http://statistics.data.gov.uk/id/local-authority/00FC,Children & Family Services,Inclusion And Standards,School Access Governor Student,Contract Hire-Operating Leases,Vehicles - Contract Hire,JC101,01/06/2011,11370,Redacted Commercially Sensitive,REVENUE,LINKS TAXIS,100546
North East Lincolnshire Council,http://statistics.data.gov.uk/id/local-authority/00FC,Children & Family Services,Inclusion And Standards,School Access Governor Student,Contract Hire-Operating Leases,Vehicles - Contract Hire,JC101,29/06/2011,20433,Redacted Commercially Sensitive,REVENUE,LINKS TAXIS,100546
North East Lincolnshire Council,http://statistics.data.gov.uk/id/local-authority/00FC,Children & Family Services,Inclusion And Standards,School Access Governor Student,Contract Hire-Operating Leases,Vehicles - Contract Hire,JC101,30/06/2011,21338,Redacted Commercially Sensitive,REVENUE,LINKS TAXIS,100546
North East Lincolnshire Council,http://statistics.data.gov.uk/id/local-authority/00FC,Children & Family Services,Inclusion And Standards,Sen/Inclusion,Private Contractors,Concessionary Fares,PH104,09/06/2011,14570,Redacted Commercially Sensitive,REVENUE,LINKS TAXIS,100546
North East Lincolnshire Council,http://statistics.data.gov.uk/id/local-authority/00FC,Children & Family Services,Inclusion And Standards,School Access Governor Student,Contract Hire-Operating Leases,Vehicles - Contract Hire,JC101,29/06/2011,20436,Redacted Commercially Sensitive,REVENUE,LINKS TAXIS,100546
North East Lincolnshire Council,http://statistics.data.gov.uk/id/local-authority/00FC,Children & Family Services,Inclusion And Standards,School Access Governor Student,Contract Hire-Operating Leases,Vehicles - Contract Hire,JC101,30/06/2011,21350,Redacted Commercially Sensitive,REVENUE,LINKS TAXIS,100546
North East Lincolnshire Council,http://statistics.data.gov.uk/id/local-authority/00FC,Children & Family Services,Inclusion And Standards,School Access Governor Student,Contract Hire-Operating Leases,Vehicles - Contract Hire,JC101,30/06/2011,21349,Redacted Commercially Sensitive,REVENUE,LINKS TAXIS,100546
North East Lincolnshire Council,http://statistics.data.gov.uk/id/local-authority/00FC,Children & Family Services,Inclusion And Standards,School Access Governor Student,Contract Hire-Operating Leases,Vehicles - Contract Hire,JC101,01/06/2011,11305,Redacted Commercially Sensitive,REVENUE,LINKS TAXIS,100546
North East Lincolnshire Council,http://statistics.data.gov.uk/id/local-authority/00FC,Children & Family Services,Inclusion And Standards,School Access Governor Student,Contract Hire-Operating Leases,Vehicles - Contract Hire,JC101,30/06/2011,21329,Redacted Commercially Sensitive,REVENUE,LINKS TAXIS,100546
North East Lincolnshire Council,http://statistics.data.gov.uk/id/local-authority/00FC,Children & Family Services,Inclusion And Standards,School Access Governor Student,Contract Hire-Operating Leases,Vehicles - Contract Hire,JC101,01/06/2011,11298,Redacted Commercially Sensitive,REVENUE,LINKS TAXIS,100546
North East Lincolnshire Council,http://statistics.data.gov.uk/id/local-authority/00FC,Children & Family Services,Inclusion And Standards,School Access Governor Student,Contract Hire-Operating Leases,Vehicles - Contract Hire,JC101,01/06/2011,11356,Redacted Commercially Sensitive,REVENUE,LINKS TAXIS,100546
North East Lincolnshire Council,http://statistics.data.gov.uk/id/local-authority/00FC,Children & Family Services,Inclusion And Standards,School Access Governor Student,Contract Hire-Operating Leases,Vehicles - Contract Hire,JC101,29/06/2011,20429,Redacted Commercially Sensitive,REVENUE,LINKS TAXIS,100546
North East Lincolnshire Council,http://statistics.data.gov.uk/id/local-authority/00FC,Children & Family Services,Inclusion And Standards,School Access Governor Student,Contract Hire-Operating Leases,Vehicles - Contract Hire,JC101,30/06/2011,21306,Redacted Commercially Sensitive,REVENUE,LINKS TAXIS,100546
North East Lincolnshire Council,http://statistics.data.gov.uk/id/local-authority/00FC,Children & Family Services,Inclusion And Standards,School Access Governor Student,Contract Hire-Operating Leases,Vehicles - Contract Hire,JC101,01/06/2011,11359,Redacted Commercially Sensitive,REVENUE,LINKS TAXIS,100546
North East Lincolnshire Council,http://statistics.data.gov.uk/id/local-authority/00FC,Children & Family Services,Inclusion And Standards,School Access Governor Student,Contract Hire-Operating Leases,Vehicles - Contract Hire,JC101,30/06/2011,21312,Redacted Commercially Sensitive,REVENUE,LINKS TAXIS,100546
North East Lincolnshire Council,http://statistics.data.gov.uk/id/local-authority/00FC,Children & Family Services,Inclusion And Standards,School Access Governor Student,Contract Hire-Operating Leases,Vehicles - Contract Hire,JC101,30/06/2011,21355,Redacted Commercially Sensitive,REVENUE,LINKS TAXIS,100546
North East Lincolnshire Council,http://statistics.data.gov.uk/id/local-authority/00FC,Children & Family Services,Inclusion And Standards,School Access Governor Student,Contract Hire-Operating Leases,Vehicles - Contract Hire,JC101,30/06/2011,21315,Redacted Commercially Sensitive,REVENUE,LINKS TAXIS,100546
North East Lincolnshire Council,http://statistics.data.gov.uk/id/local-authority/00FC,Children & Family Services,Commissioning Partn & Perform,Childrens Centre Development,Other Agencies,Nursery Educ Fund - Standard,PJ139,10/06/2011,15179,"9,889.20 ",REVENUE,LISLE MARSDEN PRE-SCHOOL,101465
North East Lincolnshire Council,http://statistics.data.gov.uk/id/local-authority/00FC,Children & Family Services,Commissioning Partn & Perform,Extended Services,Contributions To Provisions,Contributions - Other,LK103,09/06/2011,14642,500.00 ,REVENUE,LISLE MARSDEN PRIMARY SCHOOL,101157
North East Lincolnshire Council,http://statistics.data.gov.uk/id/local-authority/00FC,Children & Family Services,Commissioning Partn & Perform,Childrens Centre Development,Direct Employee Expenses,Pay,EA101,08/06/2011,14487,627.55 ,REVENUE,LISLE MARSDEN PRIMARY SCHOOL,101157
North East Lincolnshire Council,http://statistics.data.gov.uk/id/local-authority/00FC,Children & Family Services,Commissioning Partn & Perform,Childrens Centre Development,Direct Employee Expenses,Pay,EA101,08/06/2011,14487,691.90 ,REVENUE,LISLE MARSDEN PRIMARY SCHOOL,101157
North East Lincolnshire Council,http://statistics.data.gov.uk/id/local-authority/00FC,Children & Family Services,Commissioning Partn & Perform,Extended Services,Miscellaneous Expenses,Activities - Service Users,LL114,09/06/2011,14641,"1,000.00 ",REVENUE,LISLE MARSDEN PRIMARY SCHOOL,101157
North East Lincolnshire Council,http://statistics.data.gov.uk/id/local-authority/00FC,Children & Family Services,Commissioning Partn & Perform,Childrens Centre Development,Other Agencies,Nursery Educ Fund - Standard,PJ139,10/06/2011,15178,"2,125.44 ",REVENUE,LITTLE BLOSSOMS DAY NURSERY,101816
North East Lincolnshire Council,http://statistics.data.gov.uk/id/local-authority/00FC,Children & Family Services,Commissioning Partn & Perform,Childrens Centre Development,Other Agencies,Nursery Educ Fund - Standard,PJ139,13/06/2011,15176,"2,607.60 ",REVENUE,LITTLE LEGS DAYCARE,101753
North East Lincolnshire Council,http://statistics.data.gov.uk/id/local-authority/00FC,Children & Family Services,Creative Play Facilities,Creative Play Facilities,Cap Comm Asset-Build Enh Wrk,Cap Comm Asset-Build Enh Wrk,YD102,29/06/2011,20679,"1,968.00 ",CAPITAL,LOST ART LTD,104878
North East Lincolnshire Council,http://statistics.data.gov.uk/id/local-authority/00FC,Children & Family Services,Childrens Health & Family Serv,Integrated Youth Services,Print Stationery / Gen Off Exp,Printing And Stationery,LD103,27/06/2011,19898,-13.98 ,REVENUE,LYRECO UK LIMITED,101120
North East Lincolnshire Council,http://statistics.data.gov.uk/id/local-authority/00FC,Children & Family Services,Childrens Health & Family Serv,Integrated Youth Services,Equip / Furniture / Materials,Furniture - Purchase,LA105,02/06/2011,11922,521.82 ,REVENUE,LYRECO UK LIMITED,101120
North East Lincolnshire Council,http://statistics.data.gov.uk/id/local-authority/00FC,Children & Family Services,Inclusion And Standards,Standards & Effectiveness,Print Stationery / Gen Off Exp,Printing And Stationery,LD103,01/06/2011,11926,625.61 ,REVENUE,LYRECO UK LIMITED,101120
North East Lincolnshire Council,http://statistics.data.gov.uk/id/local-authority/00FC,Children & Family Services,Childrens Health & Family Serv,Integrated Youth Services,Equip / Furniture / Materials,Furniture - Purchase,LA105,09/06/2011,14532,"1,312.83 ",REVENUE,LYRECO UK LIMITED,101120
North East Lincolnshire Council,http://statistics.data.gov.uk/id/local-authority/00FC,Children & Family Services,Vulnerable Children,Safeguarding,Print Stationery / Gen Off Exp,Printing And Stationery,LD103,13/06/2011,15324,"1,695.41 ",REVENUE,LYRECO UK LIMITED,101120
North East Lincolnshire Council,http://statistics.data.gov.uk/id/local-authority/00FC,Children & Family Services,Bsf - General,Bsf - General,Cap Land/Build-Build Enh Wrk,Cap Land/Build-Build Enh Wrk,YA102,16/06/2011,16615,539.92 ,CAPITAL,MIDDLETON'S GLASS LTD,101748
North East Lincolnshire Council,http://statistics.data.gov.uk/id/local-authority/00FC,Children & Family Services,C&Fs Other,Schools Non Asb,Other Agencies,Educational Visits,PJ152,07/06/2011,13914,Redacted Commercially Sensitive,REVENUE,MILLMAN COACHES,100700
North East Lincolnshire Council,http://statistics.data.gov.uk/id/local-authority/00FC,Children & Family Services,Inclusion And Standards,School Access Governor Student,Contract Hire-Operating Leases,Vehicles - Contract Hire,JC101,14/06/2011,16007,Redacted Commercially Sensitive,REVENUE,MILLMAN COACHES,100700
North East Lincolnshire Council,http://statistics.data.gov.uk/id/local-authority/00FC,Children & Family Services,Inclusion And Standards,School Access Governor Student,Contract Hire-Operating Leases,Vehicles - Contract Hire,JC101,14/06/2011,16004,Redacted Commercially Sensitive,REVENUE,MILLMAN COACHES,100700
North East Lincolnshire Council,http://statistics.data.gov.uk/id/local-authority/00FC,Children & Family Services,Inclusion And Standards,School Access Governor Student,Contract Hire-Operating Leases,Vehicles - Contract Hire,JC101,14/06/2011,16005,Redacted Commercially Sensitive,REVENUE,MILLMAN COACHES,100700
North East Lincolnshire Council,http://statistics.data.gov.uk/id/local-authority/00FC,Children & Family Services,Inclusion And Standards,School Access Governor Student,Contract Hire-Operating Leases,Vehicles - Contract Hire,JC101,14/06/2011,16006,Redacted Commercially Sensitive,REVENUE,MILLMAN COACHES,100700
North East Lincolnshire Council,http://statistics.data.gov.uk/id/local-authority/00FC,Children & Family Services,Inclusion And Standards,School Access Governor Student,Contract Hire-Operating Leases,Vehicles - Contract Hire,JC101,29/06/2011,20430,Redacted Commercially Sensitive,REVENUE,MINICABS CLEETHORPES (LINCS) LTD,102124
North East Lincolnshire Council,http://statistics.data.gov.uk/id/local-authority/00FC,Children & Family Services,Inclusion And Standards,School Access Governor Student,Contract Hire-Operating Leases,Vehicles - Contract Hire,JC101,14/06/2011,15998,Redacted Commercially Sensitive,REVENUE,MINICABS CLEETHORPES (LINCS) LTD,102124
North East Lincolnshire Council,http://statistics.data.gov.uk/id/local-authority/00FC,Children & Family Services,Inclusion And Standards,School Access Governor Student,Contract Hire-Operating Leases,Vehicles - Contract Hire,JC101,02/06/2011,12552,Redacted Commercially Sensitive,REVENUE,MINICABS CLEETHORPES (LINCS) LTD,102124
North East Lincolnshire Council,http://statistics.data.gov.uk/id/local-authority/00FC,Children & Family Services,Inclusion And Standards,School Access Governor Student,Contract Hire-Operating Leases,Vehicles - Contract Hire,JC101,16/06/2011,16364,Redacted Commercially Sensitive,REVENUE,MINICABS CLEETHORPES (LINCS) LTD,102124
North East Lincolnshire Council,http://statistics.data.gov.uk/id/local-authority/00FC,Children & Family Services,Inclusion And Standards,School Access Governor Student,Contract Hire-Operating Leases,Vehicles - Contract Hire,JC101,14/06/2011,15996,Redacted Commercially Sensitive,REVENUE,MINICABS CLEETHORPES (LINCS) LTD,102124
North East Lincolnshire Council,http://statistics.data.gov.uk/id/local-authority/00FC,Children & Family Services,Inclusion And Standards,School Access Governor Student,Contract Hire-Operating Leases,Vehicles - Contract Hire,JC101,16/06/2011,16360,Redacted Commercially Sensitive,REVENUE,MINICABS CLEETHORPES (LINCS) LTD,102124
North East Lincolnshire Council,http://statistics.data.gov.uk/id/local-authority/00FC,Children & Family Services,Inclusion And Standards,School Access Governor Student,Contract Hire-Operating Leases,Vehicles - Contract Hire,JC101,16/06/2011,16360,Redacted Commercially Sensitive,REVENUE,MINICABS CLEETHORPES (LINCS) LTD,102124
North East Lincolnshire Council,http://statistics.data.gov.uk/id/local-authority/00FC,Children & Family Services,Inclusion And Standards,School Access Governor Student,Contract Hire-Operating Leases,Vehicles - Contract Hire,JC101,14/06/2011,16009,Redacted Commercially Sensitive,REVENUE,MINICABS CLEETHORPES (LINCS) LTD,102124
North East Lincolnshire Council,http://statistics.data.gov.uk/id/local-authority/00FC,Children & Family Services,Inclusion And Standards,School Access Governor Student,Contract Hire-Operating Leases,Vehicles - Contract Hire,JC101,14/06/2011,15995,Redacted Commercially Sensitive,REVENUE,MINICABS CLEETHORPES (LINCS) LTD,102124
North East Lincolnshire Council,http://statistics.data.gov.uk/id/local-authority/00FC,Children & Family Services,Inclusion And Standards,School Access Governor Student,Contract Hire-Operating Leases,Vehicles - Contract Hire,JC101,14/06/2011,16000,Redacted Commercially Sensitive,REVENUE,MINICABS CLEETHORPES (LINCS) LTD,102124
North East Lincolnshire Council,http://statistics.data.gov.uk/id/local-authority/00FC,Children & Family Services,Childrens Health & Family Serv,Integrated Youth Services,Rep Alterations Maint Building,Buildings - Repairs And Maint,GA102,03/06/2011,12941,"1,000.00 ",REVENUE,MPW DECORATORS LTD,104322
North East Lincolnshire Council,http://statistics.data.gov.uk/id/local-authority/00FC,Children & Family Services,Youth Capital Fund,Youth Capital Fund,Cap Land/Build-Build Enh Wrk,Cap Land/Build-Build Enh Wrk,YA102,03/06/2011,12941,"20,357.17 ",CAPITAL,MPW DECORATORS LTD,104322
North East Lincolnshire Council,http://statistics.data.gov.uk/id/local-authority/00FC,Children & Family Services,Inclusion And Standards,Music Services,Other Agencies,Tuition,PJ112,07/06/2011,13884,"1,200.00 ",REVENUE,MUSIC LINCS LTD,100944
North East Lincolnshire Council,http://statistics.data.gov.uk/id/local-authority/00FC,Children & Family Services,Vulnerable Children,Placement & Support,Energy Costs,Electricity,GB102,06/06/2011,13177,635.53 ,REVENUE,N POWER,101599
North East Lincolnshire Council,http://statistics.data.gov.uk/id/local-authority/00FC,Children & Family Services,Inclusion And Standards,Standards & Effectiveness,Expenses,Course/Conf Accom - Employees,LH102,24/06/2011,19069,860.00 ,REVENUE,NATIONAL LITERACY TRUST,100904
North East Lincolnshire Council,http://statistics.data.gov.uk/id/local-authority/00FC,Children & Family Services,Inclusion And Standards,Standards & Effectiveness,Consultancy,Consultancy,PL101,07/06/2011,12945,"1,995.00 ",REVENUE,NAVIGATE,101781
North East Lincolnshire Council,http://statistics.data.gov.uk/id/local-authority/00FC,Children & Family Services,Vulnerable Children,Placement & Support,Miscellaneous Expenses,Holidays - Service Users,LL113,09/06/2011,14942,645.16 ,REVENUE,NEL-SOC SERV 17 WOOTTON ROAD,100708
North East Lincolnshire Council,http://statistics.data.gov.uk/id/local-authority/00FC,Children & Family Services,Vulnerable Children,Placement & Support,Miscellaneous Expenses,Holidays - Service Users,LL113,27/06/2011,19884,"1,164.35 ",REVENUE,NEL-SOC SERV 17 WOOTTON ROAD,100708
North East Lincolnshire Council,http://statistics.data.gov.uk/id/local-authority/00FC,Children & Family Services,Inclusion And Standards,Standards & Effectiveness,Consultancy,Consultancy,PL101,01/06/2011,11873,"1,575.00 ",REVENUE,NEW WALTHAM PRIMARY SCHOOL,100922
North East Lincolnshire Council,http://statistics.data.gov.uk/id/local-authority/00FC,Children & Family Services,Commissioning Partn & Perform,Childrens Centre Development,Other Agencies,Nursery Educ Fund - Standard,PJ139,10/06/2011,15270,"5,650.62 ",REVENUE,NEW WALTHAM TRACKERS PLAYGROUP,100972
North East Lincolnshire Council,http://statistics.data.gov.uk/id/local-authority/00FC,Children & Family Services,Devolved Formula Cap Grant,Devolved Formula Cap Grant,Cap Land/Build-Build Enh Wrk,Cap Land/Build-Build Enh Wrk,YA102,13/06/2011,15729,"54,000.00 ",CAPITAL,NEWBY LEISURE LTD,101227
North East Lincolnshire Council,http://statistics.data.gov.uk/id/local-authority/00FC,Children & Family Services,Youth Capital Fund,Youth Capital Fund,Cap Land/Build-Build Enh Wrk,Cap Land/Build-Build Enh Wrk,YA102,10/06/2011,14855,"5,419.00 ",CAPITAL,NEWGLAZE,100642
North East Lincolnshire Council,http://statistics.data.gov.uk/id/local-authority/00FC,Children & Family Services,Inclusion And Standards,Standards & Effectiveness,Consultancy,Consultancy,PL101,01/06/2011,11644,"1,250.00 ",REVENUE,NIGEL LOWTHER ASSOCIATES LTD,101750
North East Lincolnshire Council,http://statistics.data.gov.uk/id/local-authority/00FC,Children & Family Services,Inclusion And Standards,Sen/Inclusion,Rates,Rates,GD101,02/06/2011,12384,"18,186.00 ",REVENUE,NORTH EAST LINCOLNSHIRE COUNCIL,100894
North East Lincolnshire Council,http://statistics.data.gov.uk/id/local-authority/00FC,Children & Family Services,Inclusion And Standards,Community Learning Services,Miscellaneous Expenses,Activities - Service Users,LL114,16/06/2011,17038,730.00 ,REVENUE,NORTH EAST LINCS MOTOR PROJECT,101121
North East Lincolnshire Council,http://statistics.data.gov.uk/id/local-authority/00FC,Children & Family Services,Inclusion And Standards,Standards & Effectiveness,Consultancy,Consultancy,PL101,01/06/2011,11874,778.75 ,REVENUE,NORTHERN EDUCATION,101745
North East Lincolnshire Council,http://statistics.data.gov.uk/id/local-authority/00FC,Children & Family Services,Inclusion And Standards,Standards & Effectiveness,Consultancy,Consultancy,PL101,30/06/2011,21255,"6,835.00 ",REVENUE,NORTHERN EDUCATION,101745
North East Lincolnshire Council,http://statistics.data.gov.uk/id/local-authority/00FC,Children & Family Services,Commissioning Partn & Perform,Childrens Centre Development,Private Contractors,Third Party Prov - Private,PH101,13/06/2011,15258,"8,558.00 ",REVENUE,NORTHERN LINCOLNSHIRE & GOOLE HOSPITALS,101242
North East Lincolnshire Council,http://statistics.data.gov.uk/id/local-authority/00FC,Children & Family Services,Commissioning Partn & Perform,Childrens Centre Development,Private Contractors,Third Party Prov - Private,PH101,10/06/2011,14905,"8,595.00 ",REVENUE,NORTHERN LINCOLNSHIRE & GOOLE HOSPITALS,101242
North East Lincolnshire Council,http://statistics.data.gov.uk/id/local-authority/00FC,Children & Family Services,Commissioning Partn & Perform,Child Care Performance & Ict,Communications And Computing,Computer S/Ware - Purchases,LF101,27/06/2011,19900,-271.00 ,REVENUE,NORTHGATE INFORMATION SOLUTIONS UK LTD,101841
North East Lincolnshire Council,http://statistics.data.gov.uk/id/local-authority/00FC,Children & Family Services,Commissioning Partn & Perform,Childrens Trust,Contract Hire-Operating Leases,Vehicles - Contract Hire,JC101,03/06/2011,12826,Redacted Commercially Sensitive,REVENUE,NORTHGATE VEHICLE HIRE,102553
North East Lincolnshire Council,http://statistics.data.gov.uk/id/local-authority/00FC,Children & Family Services,Commissioning Partn & Perform,Cfs Assets & Pc Programme,Energy Costs,Electricity,GB102,02/06/2011,12395,533.07 ,REVENUE,NPOWER LIMITED,101414
North East Lincolnshire Council,http://statistics.data.gov.uk/id/local-authority/00FC,Children & Family Services,Commissioning Partn & Perform,Childrens Centre Development,Energy Costs,Electricity,GB102,13/06/2011,15684,533.78 ,REVENUE,NPOWER LIMITED,101414
North East Lincolnshire Council,http://statistics.data.gov.uk/id/local-authority/00FC,Children & Family Services,Commissioning Partn & Perform,Childrens Centre Development,Energy Costs,Electricity,GB102,07/06/2011,13851,691.69 ,REVENUE,NPOWER LIMITED,101414
North East Lincolnshire Council,http://statistics.data.gov.uk/id/local-authority/00FC,Children & Family Services,Commissioning Partn & Perform,Childrens Centre Development,Energy Costs,Electricity,GB102,09/06/2011,14611,"1,136.47 ",REVENUE,NPOWER LIMITED,101414
North East Lincolnshire Council,http://statistics.data.gov.uk/id/local-authority/00FC,Children & Family Services,Inclusion And Standards,Sen/Inclusion,Energy Costs,Electricity,GB102,02/06/2011,12380,"1,171.93 ",REVENUE,NPOWER LIMITED,101414
North East Lincolnshire Council,http://statistics.data.gov.uk/id/local-authority/00FC,Children & Family Services,Inclusion And Standards,Sen/Inclusion,Energy Costs,Electricity,GB102,02/06/2011,12385,"1,594.85 ",REVENUE,NPOWER LIMITED,101414
North East Lincolnshire Council,http://statistics.data.gov.uk/id/local-authority/00FC,Children & Family Services,Commissioning Partn & Perform,Childrens Centre Development,Communications And Computing,Computer H/Ware - Purchases,LF105,24/06/2011,19469,"1,346.31 ",REVENUE,NTL,101502
North East Lincolnshire Council,http://statistics.data.gov.uk/id/local-authority/00FC,Children & Family Services,Commissioning Partn & Perform,Childrens Centre Development,Communications And Computing,Computer H/Ware - Purchases,LF105,09/06/2011,14571,"4,203.74 ",REVENUE,NTL,101502
North East Lincolnshire Council,http://statistics.data.gov.uk/id/local-authority/00FC,Children & Family Services,Commissioning Partn & Perform,Childrens Centre Development,Public Transport,Public Transport - Employees,JD101,27/06/2011,19916,-125.80 ,REVENUE,NYS CORPORATE,102444
North East Lincolnshire Council,http://statistics.data.gov.uk/id/local-authority/00FC,Children & Family Services,Inclusion And Standards,Community Learning Services,Public Transport,Public Transport - Serv User,JD102,17/06/2011,17693,-37.43 ,REVENUE,NYS CORPORATE,102444
North East Lincolnshire Council,http://statistics.data.gov.uk/id/local-authority/00FC,Children & Family Services,Inclusion And Standards,Community Learning Services,Public Transport,Public Transport - Serv User,JD102,17/06/2011,17695,-37.43 ,REVENUE,NYS CORPORATE,102444
North East Lincolnshire Council,http://statistics.data.gov.uk/id/local-authority/00FC,Children & Family Services,Childrens Health & Family Serv,Integrated Youth Services,Public Transport,Public Transport - Employees,JD101,07/06/2011,12816,-13.96 ,REVENUE,NYS CORPORATE,102444
North East Lincolnshire Council,http://statistics.data.gov.uk/id/local-authority/00FC,Children & Family Services,Childrens Health & Family Serv,Integrated Youth Services,Public Transport,Public Transport - Employees,JD101,27/06/2011,19914,-13.96 ,REVENUE,NYS CORPORATE,102444
North East Lincolnshire Council,http://statistics.data.gov.uk/id/local-authority/00FC,Children & Family Services,Childrens Health & Family Serv,Integrated Youth Services,Public Transport,Public Transport - Employees,JD101,02/06/2011,11936,614.40 ,REVENUE,NYS CORPORATE,102444
North East Lincolnshire Council,http://statistics.data.gov.uk/id/local-authority/00FC,Children & Family Services,Commissioning Partn & Perform,Extended Services,Miscellaneous Expenses,Activities - Service Users,LL114,01/06/2011,11864,910.00 ,REVENUE,OASIS ACADEMY IMMINGHAM,101947
North East Lincolnshire Council,http://statistics.data.gov.uk/id/local-authority/00FC,Children & Family Services,Inclusion And Standards,Community Learning Services,Miscellaneous Expenses,Exam Fees,LL115,29/06/2011,20251,522.00 ,REVENUE,OCR,101048
North East Lincolnshire Council,http://statistics.data.gov.uk/id/local-authority/00FC,Children & Family Services,Commissioning Partn & Perform,Childrens Health Provision,Private Contractors,Third Party Prov - Private,PH101,08/06/2011,14298,"3,916.12 ",REVENUE,OUTCOMES UK LTD,101486
North East Lincolnshire Council,http://statistics.data.gov.uk/id/local-authority/00FC,Children & Family Services,Vulnerable Children,Safeguarding,Indirect Employee Expenses,Staff Training,EB122,13/06/2011,15687,"1,500.00 ",REVENUE,OVERBECK LTD,104478
North East Lincolnshire Council,http://statistics.data.gov.uk/id/local-authority/00FC,Children & Family Services,Vulnerable Children,Placement & Support,Catering,Provisions,LB101,27/06/2011,19896,-28.50 ,REVENUE,P C VENDING SERVICES,101408
North East Lincolnshire Council,http://statistics.data.gov.uk/id/local-authority/00FC,Children & Family Services,Devolved Formula Cap Grant,Devolved Formula Cap Grant,Cap Invest Prop-Build Enh Wrk,Cap Invest Prop-Build Enh Wrk,YE102,30/06/2011,21475,"3,788.38 ",CAPITAL,P G INGOLDBY & SONS LTD,100591
North East Lincolnshire Council,http://statistics.data.gov.uk/id/local-authority/00FC,Children & Family Services,Devolved Formula Cap Grant,Devolved Formula Cap Grant,Cap Invest Prop-Build Enh Wrk,Cap Invest Prop-Build Enh Wrk,YE102,30/06/2011,21475,"3,788.38 ",CAPITAL,P G INGOLDBY & SONS LTD,100591
North East Lincolnshire Council,http://statistics.data.gov.uk/id/local-authority/00FC,Children & Family Services,Devolved Formula Cap Grant,Devolved Formula Cap Grant,Cap Invest Prop-Build Enh Wrk,Cap Invest Prop-Build Enh Wrk,YE102,30/06/2011,21475,"3,788.38 ",CAPITAL,P G INGOLDBY & SONS LTD,100591
North East Lincolnshire Council,http://statistics.data.gov.uk/id/local-authority/00FC,Children & Family Services,Devolved Formula Cap Grant,Devolved Formula Cap Grant,Cap Invest Prop-Build Enh Wrk,Cap Invest Prop-Build Enh Wrk,YE102,30/06/2011,21475,"3,788.38 ",CAPITAL,P G INGOLDBY & SONS LTD,100591
North East Lincolnshire Council,http://statistics.data.gov.uk/id/local-authority/00FC,Children & Family Services,Devolved Formula Cap Grant,Devolved Formula Cap Grant,Cap Invest Prop-Build Enh Wrk,Cap Invest Prop-Build Enh Wrk,YE102,30/06/2011,21475,"3,788.38 ",CAPITAL,P G INGOLDBY & SONS LTD,100591
North East Lincolnshire Council,http://statistics.data.gov.uk/id/local-authority/00FC,Children & Family Services,School'S Kitchens,School'S Kitchens,Cap Invest Prop-Build Enh Wrk,Cap Invest Prop-Build Enh Wrk,YE102,30/06/2011,21475,"3,788.38 ",CAPITAL,P G INGOLDBY & SONS LTD,100591
North East Lincolnshire Council,http://statistics.data.gov.uk/id/local-authority/00FC,Children & Family Services,Nds Cond + Modern All Schools,Nds Cond + Modern All Schools,Cap Invest Prop-Build Enh Wrk,Cap Invest Prop-Build Enh Wrk,YE102,30/06/2011,21475,"3,788.38 ",CAPITAL,P G INGOLDBY & SONS LTD,100591
North East Lincolnshire Council,http://statistics.data.gov.uk/id/local-authority/00FC,Children & Family Services,Devolved Formula Cap Grant,Devolved Formula Cap Grant,Cap Invest Prop-Build Enh Wrk,Cap Invest Prop-Build Enh Wrk,YE102,30/06/2011,21475,"3,788.39 ",CAPITAL,P G INGOLDBY & SONS LTD,100591
North East Lincolnshire Council,http://statistics.data.gov.uk/id/local-authority/00FC,Children & Family Services,Vulnerable Children,Safeguarding,Miscellaneous Expenses,Legal Fees - General,LL103,10/06/2011,14870,Redacted Commercially Sensitive,REVENUE,PARSONS DOWD PSYCHOLOGICAL LTD,101793
North East Lincolnshire Council,http://statistics.data.gov.uk/id/local-authority/00FC,Children & Family Services,Inclusion And Standards,Standards & Effectiveness,Consultancy,Consultancy,PL101,01/06/2011,12021,"4,812.50 ",REVENUE,PEAK EDUCATION CONSULTANCY LTD,102073
North East Lincolnshire Council,http://statistics.data.gov.uk/id/local-authority/00FC,Children & Family Services,Vulnerable Children,Other,Private Contractors,Third Party Prov - Private,PH101,06/06/2011,13291,"6,000.00 ",REVENUE,PELHAM MEDICAL GROUP,104350
North East Lincolnshire Council,http://statistics.data.gov.uk/id/local-authority/00FC,Children & Family Services,Inclusion And Standards,Community Learning Services,Other Agencies,Further Ed Emp & Training,PJ130,28/06/2011,20056,650.00 ,REVENUE,PETER HIRD & SONS LTD,104825
North East Lincolnshire Council,http://statistics.data.gov.uk/id/local-authority/00FC,Children & Family Services,Vulnerable Children,Placement & Support,Catering,Provisions,LB101,07/06/2011,14086,757.45 ,REVENUE,PETTY CASH,100706
North East Lincolnshire Council,http://statistics.data.gov.uk/id/local-authority/00FC,Children & Family Services,Vulnerable Children,Placement & Support,Catering,Provisions,LB101,27/06/2011,19899,698.17 ,REVENUE,PETTY CASH,101438
North East Lincolnshire Council,http://statistics.data.gov.uk/id/local-authority/00FC,Children & Family Services,Commissioning Partn & Perform,Childrens Centre Development,Cleaning And Domestic Supplies,Cleaning - Services,GH102,20/06/2011,17876,-531.74 ,REVENUE,PHS GROUP LTD,100554
North East Lincolnshire Council,http://statistics.data.gov.uk/id/local-authority/00FC,Children & Family Services,Commissioning Partn & Perform,Childrens Centre Development,Cleaning And Domestic Supplies,Cleaning - Services,GH102,20/06/2011,17874,-14.54 ,REVENUE,PHS GROUP LTD,100554
North East Lincolnshire Council,http://statistics.data.gov.uk/id/local-authority/00FC,Children & Family Services,C&Fs Other,Schools Non Asb,Other Agencies,Educational Visits,PJ152,30/06/2011,21421,750.00 ,REVENUE,PLEASURE ISLAND,104923
North East Lincolnshire Council,http://statistics.data.gov.uk/id/local-authority/00FC,Children & Family Services,Inclusion And Standards,Sen/Inclusion,Communications And Computing,Computer H/Ware - Purchases,LF105,29/06/2011,20387,604.50 ,REVENUE,PORTABLE APPLIANCE SAFETY SERVICES LTD,104857
North East Lincolnshire Council,http://statistics.data.gov.uk/id/local-authority/00FC,Children & Family Services,Commissioning Partn & Perform,Commissioning Of Bsf,Rents,Rent,GC101,30/06/2011,20959,"22,354.53 ",REVENUE,PORTAKABIN LTD,101252
North East Lincolnshire Council,http://statistics.data.gov.uk/id/local-authority/00FC,Children & Family Services,Vulnerable Children,Placement & Support,Rep Alterations Maint Building,Buildings - Repairs And Maint,GA102,30/06/2011,20921,549.00 ,REVENUE,PORTLOCK PAINTING,101144
North East Lincolnshire Council,http://statistics.data.gov.uk/id/local-authority/00FC,Children & Family Services,Inclusion And Standards,Community Learning Services,Other Agencies,Childminders/Nurseries/Playgrp,PJ127,09/06/2011,14803,719.19 ,REVENUE,PRE SCHOOL LEARNING ALLIANCE,101437
North East Lincolnshire Council,http://statistics.data.gov.uk/id/local-authority/00FC,Children & Family Services,Commissioning Partn & Perform,Childrens Centre Development,Other Agencies,Nursery Educ Fund - Standard,PJ139,13/06/2011,15279,"1,692.48 ",REVENUE,PRECIOUS TIMES CHILDCARE SERVICES,101420
North East Lincolnshire Council,http://statistics.data.gov.uk/id/local-authority/00FC,Children & Family Services,Commissioning Partn & Perform,Childrens Centre Development,Other Agencies,Nursery Educ Fund - Standard,PJ139,10/06/2011,15268,"5,776.08 ",REVENUE,PRECIOUS TIMES CHILDCARE SERVICES,101420
North East Lincolnshire Council,http://statistics.data.gov.uk/id/local-authority/00FC,Children & Family Services,Vulnerable Children,Placement & Support,Miscellaneous Expenses,Other Expenses General,LL119,24/06/2011,19121,678.50 ,REVENUE,PROSPECT FARM COUNTRY COTTAGES,101297
North East Lincolnshire Council,http://statistics.data.gov.uk/id/local-authority/00FC,Children & Family Services,Vulnerable Children,Safeguarding,Private Contractors,Third Party Prov - Private,PH101,06/06/2011,13176,707.25 ,REVENUE,QUAYSIDE CARE,101108
North East Lincolnshire Council,http://statistics.data.gov.uk/id/local-authority/00FC,Children & Family Services,Vulnerable Children,Placement & Support,Other Agencies,Setting Up,PJ111,10/06/2011,15448,962.00 ,REVENUE,QUEST 88 LIMITED,101257
North East Lincolnshire Council,http://statistics.data.gov.uk/id/local-authority/00FC,Children & Family Services,Inclusion And Standards,Additional & Enhanced Needs,Contributions To Provisions,Contributions - Other,LK103,24/06/2011,19499,555.50 ,REVENUE,RANDSTAD EDUCATION LTD,102465
North East Lincolnshire Council,http://statistics.data.gov.uk/id/local-authority/00FC,Children & Family Services,Commissioning Partn & Perform,Childrens Centre Development,Other Agencies,Nursery Educ Fund - Standard,PJ139,10/06/2011,15195,"2,774.88 ",REVENUE,READY TEDDY GO,100973
North East Lincolnshire Council,http://statistics.data.gov.uk/id/local-authority/00FC,Children & Family Services,Vulnerable Children,Placement & Support,Other Agencies,Child Care Payments,PJ104,07/06/2011,11690,-50.00 ,REVENUE,Redacted Personal Information,Redacted Personal Information
North East Lincolnshire Council,http://statistics.data.gov.uk/id/local-authority/00FC,Children & Family Services,Vulnerable Children,Placement & Support,Other Agencies,Child Care Payments,PJ104,14/06/2011,12614,-50.00 ,REVENUE,Redacted Personal Information,Redacted Personal Information
North East Lincolnshire Council,http://statistics.data.gov.uk/id/local-authority/00FC,Children & Family Services,Vulnerable Children,Placement & Support,Other Agencies,Child Care Payments,PJ104,21/06/2011,14080,-50.00 ,REVENUE,Redacted Personal Information,Redacted Personal Information
North East Lincolnshire Council,http://statistics.data.gov.uk/id/local-authority/00FC,Children & Family Services,Vulnerable Children,Placement & Support,Other Agencies,Child Care Payments,PJ104,28/06/2011,16597,-50.00 ,REVENUE,Redacted Personal Information,Redacted Personal Information
North East Lincolnshire Council,http://statistics.data.gov.uk/id/local-authority/00FC,Children & Family Services,Vulnerable Children,Placement & Support,Other Agencies,Child Care Payments,PJ104,07/06/2011,11690,-10.36 ,REVENUE,Redacted Personal Information,Redacted Personal Information
North East Lincolnshire Council,http://statistics.data.gov.uk/id/local-authority/00FC,Children & Family Services,Vulnerable Children,Placement & Support,Other Agencies,Child Care Payments,PJ104,28/06/2011,16601,-20.71 ,REVENUE,Redacted Personal Information,Redacted Personal Information
North East Lincolnshire Council,http://statistics.data.gov.uk/id/local-authority/00FC,Children & Family Services,Vulnerable Children,Placement & Support,Other Agencies,Child Care Payments,PJ104,21/06/2011,14087,-48.86 ,REVENUE,Redacted Personal Information,Redacted Personal Information
North East Lincolnshire Council,http://statistics.data.gov.uk/id/local-authority/00FC,Children & Family Services,Vulnerable Children,Placement & Support,Other Agencies,Child Care Payments,PJ104,21/06/2011,14087,-48.86 ,REVENUE,Redacted Personal Information,Redacted Personal Information
North East Lincolnshire Council,http://statistics.data.gov.uk/id/local-authority/00FC,Children & Family Services,Vulnerable Children,Placement & Support,Other Agencies,Child Care Payments,PJ104,14/06/2011,12637,-65.14 ,REVENUE,Redacted Personal Information,Redacted Personal Information
North East Lincolnshire Council,http://statistics.data.gov.uk/id/local-authority/00FC,Children & Family Services,Vulnerable Children,Placement & Support,Other Agencies,Child Care Payments,PJ104,07/06/2011,11730,-600.00 ,REVENUE,Redacted Personal Information,Redacted Personal Information
North East Lincolnshire Council,http://statistics.data.gov.uk/id/local-authority/00FC,Children & Family Services,Vulnerable Children,Placement & Support,Other Agencies,Child Care Payments,PJ104,28/06/2011,16642,-8.15 ,REVENUE,Redacted Personal Information,Redacted Personal Information
North East Lincolnshire Council,http://statistics.data.gov.uk/id/local-authority/00FC,Children & Family Services,Vulnerable Children,Placement & Support,Other Agencies,Child Care Payments,PJ104,28/06/2011,16642,-8.15 ,REVENUE,Redacted Personal Information,Redacted Personal Information
North East Lincolnshire Council,http://statistics.data.gov.uk/id/local-authority/00FC,Children & Family Services,Vulnerable Children,Placement & Support,Other Agencies,Child Care Payments,PJ104,14/06/2011,12659,-8.14 ,REVENUE,Redacted Personal Information,Redacted Personal Information
North East Lincolnshire Council,http://statistics.data.gov.uk/id/local-authority/00FC,Children & Family Services,Vulnerable Children,Placement & Support,Other Agencies,Child Care Payments,PJ104,14/06/2011,12659,-8.14 ,REVENUE,Redacted Personal Information,Redacted Personal Information
North East Lincolnshire Council,http://statistics.data.gov.uk/id/local-authority/00FC,Children & Family Services,Vulnerable Children,Placement & Support,Other Agencies,Special Carer Payments,PJ128,07/06/2011,11737,704.54 ,REVENUE,Redacted Personal Information,Redacted Personal Information
North East Lincolnshire Council,http://statistics.data.gov.uk/id/local-authority/00FC,Children & Family Services,Vulnerable Children,Placement & Support,Other Agencies,Special Carer Payments,PJ128,14/06/2011,12660,704.54 ,REVENUE,Redacted Personal Information,Redacted Personal Information
North East Lincolnshire Council,http://statistics.data.gov.uk/id/local-authority/00FC,Children & Family Services,Vulnerable Children,Placement & Support,Other Agencies,Special Carer Payments,PJ128,21/06/2011,14126,704.54 ,REVENUE,Redacted Personal Information,Redacted Personal Information
North East Lincolnshire Council,http://statistics.data.gov.uk/id/local-authority/00FC,Children & Family Services,Vulnerable Children,Placement & Support,Other Agencies,Special Carer Payments,PJ128,28/06/2011,16643,704.54 ,REVENUE,Redacted Personal Information,Redacted Personal Information
North East Lincolnshire Council,http://statistics.data.gov.uk/id/local-authority/00FC,Children & Family Services,Vulnerable Children,Placement & Support,Other Agencies,Child Care Payments,PJ104,14/06/2011,12662,-20.71 ,REVENUE,Redacted Personal Information,Redacted Personal Information
North East Lincolnshire Council,http://statistics.data.gov.uk/id/local-authority/00FC,Children & Family Services,Vulnerable Children,Placement & Support,Other Agencies,Child Care Payments,PJ104,28/06/2011,16656,-20.71 ,REVENUE,Redacted Personal Information,Redacted Personal Information
North East Lincolnshire Council,http://statistics.data.gov.uk/id/local-authority/00FC,Children & Family Services,Vulnerable Children,Placement & Support,Other Agencies,Child Care Payments,PJ104,28/06/2011,16663,-10.36 ,REVENUE,Redacted Personal Information,Redacted Personal Information
North East Lincolnshire Council,http://statistics.data.gov.uk/id/local-authority/00FC,Children & Family Services,Vulnerable Children,Placement & Support,Other Agencies,Special Carer Payments,PJ128,07/06/2011,11756,704.54 ,REVENUE,Redacted Personal Information,Redacted Personal Information
North East Lincolnshire Council,http://statistics.data.gov.uk/id/local-authority/00FC,Children & Family Services,Vulnerable Children,Placement & Support,Other Agencies,Special Carer Payments,PJ128,14/06/2011,12681,704.54 ,REVENUE,Redacted Personal Information,Redacted Personal Information
North East Lincolnshire Council,http://statistics.data.gov.uk/id/local-authority/00FC,Children & Family Services,Vulnerable Children,Placement & Support,Other Agencies,Special Carer Payments,PJ128,21/06/2011,14146,704.54 ,REVENUE,Redacted Personal Information,Redacted Personal Information
North East Lincolnshire Council,http://statistics.data.gov.uk/id/local-authority/00FC,Children & Family Services,Vulnerable Children,Placement & Support,Other Agencies,Special Carer Payments,PJ128,28/06/2011,16663,704.54 ,REVENUE,Redacted Personal Information,Redacted Personal Information
North East Lincolnshire Council,http://statistics.data.gov.uk/id/local-authority/00FC,Children & Family Services,Vulnerable Children,Placement & Support,Other Agencies,Special Carer Payments,PJ128,07/06/2011,11757,704.54 ,REVENUE,Redacted Personal Information,Redacted Personal Information
North East Lincolnshire Council,http://statistics.data.gov.uk/id/local-authority/00FC,Children & Family Services,Vulnerable Children,Placement & Support,Other Agencies,Special Carer Payments,PJ128,14/06/2011,12682,704.54 ,REVENUE,Redacted Personal Information,Redacted Personal Information
North East Lincolnshire Council,http://statistics.data.gov.uk/id/local-authority/00FC,Children & Family Services,Vulnerable Children,Placement & Support,Other Agencies,Special Carer Payments,PJ128,21/06/2011,14147,704.54 ,REVENUE,Redacted Personal Information,Redacted Personal Information
North East Lincolnshire Council,http://statistics.data.gov.uk/id/local-authority/00FC,Children & Family Services,Vulnerable Children,Placement & Support,Other Agencies,Special Carer Payments,PJ128,28/06/2011,16664,704.54 ,REVENUE,Redacted Personal Information,Redacted Personal Information
North East Lincolnshire Council,http://statistics.data.gov.uk/id/local-authority/00FC,Children & Family Services,Vulnerable Children,Placement & Support,Other Agencies,Special Carer Payments,PJ128,07/06/2011,11761,704.54 ,REVENUE,Redacted Personal Information,Redacted Personal Information
North East Lincolnshire Council,http://statistics.data.gov.uk/id/local-authority/00FC,Children & Family Services,Vulnerable Children,Placement & Support,Other Agencies,Special Carer Payments,PJ128,14/06/2011,12685,704.54 ,REVENUE,Redacted Personal Information,Redacted Personal Information
North East Lincolnshire Council,http://statistics.data.gov.uk/id/local-authority/00FC,Children & Family Services,Vulnerable Children,Placement & Support,Other Agencies,Special Carer Payments,PJ128,21/06/2011,14151,704.54 ,REVENUE,Redacted Personal Information,Redacted Personal Information
North East Lincolnshire Council,http://statistics.data.gov.uk/id/local-authority/00FC,Children & Family Services,Vulnerable Children,Placement & Support,Other Agencies,Special Carer Payments,PJ128,28/06/2011,16667,704.54 ,REVENUE,Redacted Personal Information,Redacted Personal Information
North East Lincolnshire Council,http://statistics.data.gov.uk/id/local-authority/00FC,Children & Family Services,Vulnerable Children,Through Care & Disability,Other Agencies,Housing Benefit,PJ134,07/06/2011,11764,500.00 ,REVENUE,Redacted Personal Information,Redacted Personal Information
North East Lincolnshire Council,http://statistics.data.gov.uk/id/local-authority/00FC,Children & Family Services,Vulnerable Children,Through Care & Disability,Other Agencies,Housing Benefit,PJ134,14/06/2011,12687,500.00 ,REVENUE,Redacted Personal Information,Redacted Personal Information
North East Lincolnshire Council,http://statistics.data.gov.uk/id/local-authority/00FC,Children & Family Services,Vulnerable Children,Through Care & Disability,Other Agencies,Housing Benefit,PJ134,21/06/2011,14153,500.00 ,REVENUE,Redacted Personal Information,Redacted Personal Information
North East Lincolnshire Council,http://statistics.data.gov.uk/id/local-authority/00FC,Children & Family Services,Vulnerable Children,Through Care & Disability,Other Agencies,Housing Benefit,PJ134,28/06/2011,16669,500.00 ,REVENUE,Redacted Personal Information,Redacted Personal Information
North East Lincolnshire Council,http://statistics.data.gov.uk/id/local-authority/00FC,Children & Family Services,Vulnerable Children,Placement & Support,Other Agencies,Child Care Payments,PJ104,07/06/2011,11770,-16.29 ,REVENUE,Redacted Personal Information,Redacted Personal Information
North East Lincolnshire Council,http://statistics.data.gov.uk/id/local-authority/00FC,Children & Family Services,Vulnerable Children,Placement & Support,Other Agencies,Child Care Payments,PJ104,07/06/2011,11770,-16.29 ,REVENUE,Redacted Personal Information,Redacted Personal Information
North East Lincolnshire Council,http://statistics.data.gov.uk/id/local-authority/00FC,Children & Family Services,Vulnerable Children,Placement & Support,Other Agencies,Child Care Payments,PJ104,14/06/2011,12718,-24.00 ,REVENUE,Redacted Personal Information,Redacted Personal Information
North East Lincolnshire Council,http://statistics.data.gov.uk/id/local-authority/00FC,Children & Family Services,Vulnerable Children,Placement & Support,Other Agencies,Child Care Payments,PJ104,21/06/2011,14194,-10.36 ,REVENUE,Redacted Personal Information,Redacted Personal Information
North East Lincolnshire Council,http://statistics.data.gov.uk/id/local-authority/00FC,Children & Family Services,Vulnerable Children,Placement & Support,Other Agencies,Child Care Payments,PJ104,07/06/2011,11808,-25.00 ,REVENUE,Redacted Personal Information,Redacted Personal Information
North East Lincolnshire Council,http://statistics.data.gov.uk/id/local-authority/00FC,Children & Family Services,Vulnerable Children,Placement & Support,Other Agencies,Child Care Payments,PJ104,14/06/2011,12732,-25.00 ,REVENUE,Redacted Personal Information,Redacted Personal Information
North East Lincolnshire Council,http://statistics.data.gov.uk/id/local-authority/00FC,Children & Family Services,Vulnerable Children,Placement & Support,Other Agencies,Child Care Payments,PJ104,21/06/2011,14195,-25.00 ,REVENUE,Redacted Personal Information,Redacted Personal Information
North East Lincolnshire Council,http://statistics.data.gov.uk/id/local-authority/00FC,Children & Family Services,Vulnerable Children,Placement & Support,Other Agencies,Child Care Payments,PJ104,28/06/2011,16713,-25.00 ,REVENUE,Redacted Personal Information,Redacted Personal Information
North East Lincolnshire Council,http://statistics.data.gov.uk/id/local-authority/00FC,Children & Family Services,Vulnerable Children,Placement & Support,Other Agencies,Child Care Payments,PJ104,14/06/2011,12759,-63.00 ,REVENUE,Redacted Personal Information,Redacted Personal Information
North East Lincolnshire Council,http://statistics.data.gov.uk/id/local-authority/00FC,Children & Family Services,Vulnerable Children,Placement & Support,Other Agencies,Child Care Payments,PJ104,14/06/2011,12759,-63.00 ,REVENUE,Redacted Personal Information,Redacted Personal Information
North East Lincolnshire Council,http://statistics.data.gov.uk/id/local-authority/00FC,Children & Family Services,Vulnerable Children,Placement & Support,Other Agencies,Child Care Payments,PJ104,14/06/2011,12759,-36.00 ,REVENUE,Redacted Personal Information,Redacted Personal Information
North East Lincolnshire Council,http://statistics.data.gov.uk/id/local-authority/00FC,Children & Family Services,Vulnerable Children,Placement & Support,Other Agencies,Child Care Payments,PJ104,14/06/2011,12759,-36.00 ,REVENUE,Redacted Personal Information,Redacted Personal Information
North East Lincolnshire Council,http://statistics.data.gov.uk/id/local-authority/00FC,Children & Family Services,Vulnerable Children,Placement & Support,Other Agencies,Adoption Grant,PJ119,14/06/2011,12775,574.00 ,REVENUE,Redacted Personal Information,Redacted Personal Information
North East Lincolnshire Council,http://statistics.data.gov.uk/id/local-authority/00FC,Children & Family Services,Vulnerable Children,Placement & Support,Other Agencies,Child Care Payments,PJ104,21/06/2011,14248,-51.79 ,REVENUE,Redacted Personal Information,Redacted Personal Information
North East Lincolnshire Council,http://statistics.data.gov.uk/id/local-authority/00FC,Children & Family Services,Vulnerable Children,Placement & Support,Other Agencies,Child Care Payments,PJ104,28/06/2011,16768,-20.71 ,REVENUE,Redacted Personal Information,Redacted Personal Information
North East Lincolnshire Council,http://statistics.data.gov.uk/id/local-authority/00FC,Children & Family Services,Vulnerable Children,Placement & Support,Other Agencies,Special Carer Payments,PJ128,07/06/2011,11865,704.54 ,REVENUE,Redacted Personal Information,Redacted Personal Information
North East Lincolnshire Council,http://statistics.data.gov.uk/id/local-authority/00FC,Children & Family Services,Vulnerable Children,Placement & Support,Other Agencies,Special Carer Payments,PJ128,14/06/2011,12787,704.54 ,REVENUE,Redacted Personal Information,Redacted Personal Information
North East Lincolnshire Council,http://statistics.data.gov.uk/id/local-authority/00FC,Children & Family Services,Vulnerable Children,Placement & Support,Other Agencies,Special Carer Payments,PJ128,21/06/2011,14248,704.54 ,REVENUE,Redacted Personal Information,Redacted Personal Information
North East Lincolnshire Council,http://statistics.data.gov.uk/id/local-authority/00FC,Children & Family Services,Vulnerable Children,Placement & Support,Other Agencies,Special Carer Payments,PJ128,28/06/2011,16768,704.54 ,REVENUE,Redacted Personal Information,Redacted Personal Information
North East Lincolnshire Council,http://statistics.data.gov.uk/id/local-authority/00FC,Children & Family Services,Inclusion And Standards,Music Services,Private Contractors,Third Party Prov - Private,PH101,09/06/2011,13888,"1,260.13 ",REVENUE,Redacted Personal Information,Redacted Personal Information
North East Lincolnshire Council,http://statistics.data.gov.uk/id/local-authority/00FC,Children & Family Services,Inclusion And Standards,Music Services,Private Contractors,Third Party Prov - Private,PH101,14/06/2011,16093,"1,517.38 ",REVENUE,Redacted Personal Information,Redacted Personal Information
North East Lincolnshire Council,http://statistics.data.gov.uk/id/local-authority/00FC,Children & Family Services,Inclusion And Standards,Community Learning Services,Recharges,Accountancy,VE101,30/06/2011,21431,-30.00 ,REVENUE,Redacted Personal Information,Redacted Personal Information
North East Lincolnshire Council,http://statistics.data.gov.uk/id/local-authority/00FC,Children & Family Services,Inclusion And Standards,Community Learning Services,Other Agencies,Clothing,PJ106,30/06/2011,21431,500.00 ,REVENUE,Redacted Personal Information,Redacted Personal Information
North East Lincolnshire Council,http://statistics.data.gov.uk/id/local-authority/00FC,Children & Family Services,Commissioning Partn & Perform,Childrens Centre Development,Other Agencies,Nursery Educ Fund - Standard,PJ139,13/06/2011,15180,"5,758.96 ",REVENUE,Redacted Personal Information,Redacted Personal Information
North East Lincolnshire Council,http://statistics.data.gov.uk/id/local-authority/00FC,Children & Family Services,Inclusion And Standards,Standards & Effectiveness,Consultancy,Consultancy,PL101,27/06/2011,19515,"2,873.20 ",REVENUE,Redacted Personal Information,Redacted Personal Information
North East Lincolnshire Council,http://statistics.data.gov.uk/id/local-authority/00FC,Children & Family Services,Inclusion And Standards,School Access Governor Student,Contract Hire-Operating Leases,Vehicles - Contract Hire,JC101,16/06/2011,16361,Redacted Commercially Sensitive,REVENUE,Redacted Personal Information,Redacted Personal Information
North East Lincolnshire Council,http://statistics.data.gov.uk/id/local-authority/00FC,Children & Family Services,Inclusion And Standards,School Access Governor Student,Contract Hire-Operating Leases,Vehicles - Contract Hire,JC101,16/06/2011,16362,Redacted Commercially Sensitive,REVENUE,Redacted Personal Information,Redacted Personal Information
North East Lincolnshire Council,http://statistics.data.gov.uk/id/local-authority/00FC,Children & Family Services,Vulnerable Children,Safeguarding,Direct Transport Costs,Voluntary Drivers Expenses,JA107,08/06/2011,14656,537.14 ,REVENUE,Redacted Personal Information,Redacted Personal Information
North East Lincolnshire Council,http://statistics.data.gov.uk/id/local-authority/00FC,Children & Family Services,Vulnerable Children,Safeguarding,Direct Transport Costs,Voluntary Drivers Expenses,JA107,02/06/2011,11108,805.96 ,REVENUE,Redacted Personal Information,Redacted Personal Information
North East Lincolnshire Council,http://statistics.data.gov.uk/id/local-authority/00FC,Children & Family Services,Commissioning Partn & Perform,Childrens Centre Development,Other Agencies,Nursery Educ Fund - Standard,PJ139,28/06/2011,16385,541.20 ,REVENUE,Redacted Personal Information,Redacted Personal Information
North East Lincolnshire Council,http://statistics.data.gov.uk/id/local-authority/00FC,Children & Family Services,Inclusion And Standards,Music Services,Consultancy,Consultancy,PL101,30/06/2011,20960,"3,639.50 ",REVENUE,Redacted Personal Information,Redacted Personal Information
North East Lincolnshire Council,http://statistics.data.gov.uk/id/local-authority/00FC,Children & Family Services,Inclusion And Standards,Standards & Effectiveness,Consultancy,Consultancy,PL101,28/06/2011,20338,500.00 ,REVENUE,Redacted Personal Information,Redacted Personal Information
North East Lincolnshire Council,http://statistics.data.gov.uk/id/local-authority/00FC,Children & Family Services,Inclusion And Standards,Standards & Effectiveness,Consultancy,Consultancy,PL101,28/06/2011,20334,"2,000.00 ",REVENUE,Redacted Personal Information,Redacted Personal Information
North East Lincolnshire Council,http://statistics.data.gov.uk/id/local-authority/00FC,Children & Family Services,Inclusion And Standards,Standards & Effectiveness,Consultancy,Consultancy,PL101,22/06/2011,11016,"7,375.00 ",REVENUE,Redacted Personal Information,Redacted Personal Information
North East Lincolnshire Council,http://statistics.data.gov.uk/id/local-authority/00FC,Children & Family Services,Inclusion And Standards,School Access Governor Student,Contract Hire-Operating Leases,Vehicles - Contract Hire,JC101,29/06/2011,20873,Redacted Commercially Sensitive,REVENUE,Redacted Personal Information,Redacted Personal Information
North East Lincolnshire Council,http://statistics.data.gov.uk/id/local-authority/00FC,Children & Family Services,Vulnerable Children,Placement & Support,Direct Employee Expenses,Overtime,EA401,07/06/2011,14113,659.98 ,REVENUE,Redacted Personal Information,Redacted Personal Information
North East Lincolnshire Council,http://statistics.data.gov.uk/id/local-authority/00FC,Children & Family Services,Inclusion And Standards,School Access Governor Student,Contract Hire-Operating Leases,Vehicles - Contract Hire,JC101,30/06/2011,21401,Redacted Commercially Sensitive,REVENUE,Redacted Personal Information,Redacted Personal Information
North East Lincolnshire Council,http://statistics.data.gov.uk/id/local-authority/00FC,Children & Family Services,Vulnerable Children,Other,Consultancy,Consultancy,PL101,29/06/2011,20844,780.00 ,REVENUE,Redacted Personal Information,Redacted Personal Information
North East Lincolnshire Council,http://statistics.data.gov.uk/id/local-authority/00FC,Children & Family Services,Vulnerable Children,Safeguarding,Miscellaneous Expenses,Legal Fees - General,LL103,22/06/2011,18685,"-1,000.00 ",REVENUE,Redacted Personal Information,Redacted Personal Information
North East Lincolnshire Council,http://statistics.data.gov.uk/id/local-authority/00FC,Children & Family Services,Vulnerable Children,Safeguarding,Miscellaneous Expenses,Legal Fees - General,LL103,10/06/2011,14871,"1,000.00 ",REVENUE,Redacted Personal Information,Redacted Personal Information
North East Lincolnshire Council,http://statistics.data.gov.uk/id/local-authority/00FC,Children & Family Services,Inclusion And Standards,Standards & Effectiveness,Consultancy,Consultancy,PL101,06/06/2011,12912,"1,375.00 ",REVENUE,Redacted Personal Information,Redacted Personal Information
North East Lincolnshire Council,http://statistics.data.gov.uk/id/local-authority/00FC,Children & Family Services,Vulnerable Children,Safeguarding,Miscellaneous Expenses,Legal Fees - General,LL103,10/06/2011,14868,"1,417.50 ",REVENUE,Redacted Personal Information,Redacted Personal Information
North East Lincolnshire Council,http://statistics.data.gov.uk/id/local-authority/00FC,Children & Family Services,Vulnerable Children,Safeguarding,Miscellaneous Expenses,Electronic Bank Statements,LL107,10/06/2011,14872,850.00 ,REVENUE,Redacted Personal Information,Redacted Personal Information
North East Lincolnshire Council,http://statistics.data.gov.uk/id/local-authority/00FC,Children & Family Services,Vulnerable Children,Placement & Support,Other Agencies,Setting Up,PJ111,14/06/2011,12800,700.00 ,REVENUE,Redacted Personal Information,Redacted Personal Information
North East Lincolnshire Council,http://statistics.data.gov.uk/id/local-authority/00FC,Children & Family Services,Commissioning Partn & Perform,Childrens Health Provision,Private Contractors,Third Party Prov - Private,PH101,15/06/2011,16503,"1,125.00 ",REVENUE,Redacted Personal Information,Redacted Personal Information
North East Lincolnshire Council,http://statistics.data.gov.uk/id/local-authority/00FC,Children & Family Services,Commissioning Partn & Perform,Childrens Health Provision,Private Contractors,Third Party Prov - Private,PH101,15/06/2011,16505,"1,990.00 ",REVENUE,Redacted Personal Information,Redacted Personal Information
North East Lincolnshire Council,http://statistics.data.gov.uk/id/local-authority/00FC,Children & Family Services,Vulnerable Children,Placement & Support,Other Agencies,Setting Up,PJ111,21/06/2011,14261,552.96 ,REVENUE,Redacted Personal Information,Redacted Personal Information
North East Lincolnshire Council,http://statistics.data.gov.uk/id/local-authority/00FC,Children & Family Services,Inclusion And Standards,Primary Care Provision,Equip / Furniture / Materials,Teaching Materials,LA117,24/06/2011,19173,831.00 ,REVENUE,Redacted Personal Information,Redacted Personal Information
North East Lincolnshire Council,http://statistics.data.gov.uk/id/local-authority/00FC,Children & Family Services,Inclusion And Standards,Sen/Inclusion,Indirect Employee Expenses,Staff Training,EB122,30/06/2011,21396,573.30 ,REVENUE,Redacted Personal Information,Redacted Personal Information
North East Lincolnshire Council,http://statistics.data.gov.uk/id/local-authority/00FC,Children & Family Services,Vulnerable Children,Placement & Support,Equip / Furniture / Materials,Equipment - Maintenance,LA104,13/06/2011,15672,"1,500.00 ",REVENUE,REGENT MOTORCROSS LTD,101953
North East Lincolnshire Council,http://statistics.data.gov.uk/id/local-authority/00FC,Children & Family Services,Inclusion And Standards,School Access Governor Student,Contract Hire-Operating Leases,Vehicles - Contract Hire,JC101,28/06/2011,20447,Redacted Commercially Sensitive,REVENUE,REVELLS TAXIS (ED/SOC SERV),100559
North East Lincolnshire Council,http://statistics.data.gov.uk/id/local-authority/00FC,Children & Family Services,Inclusion And Standards,School Access Governor Student,Contract Hire-Operating Leases,Vehicles - Contract Hire,JC101,30/06/2011,21363,Redacted Commercially Sensitive,REVENUE,REVELLS TAXIS (ED/SOC SERV),100559
North East Lincolnshire Council,http://statistics.data.gov.uk/id/local-authority/00FC,Children & Family Services,Commissioning Partn & Perform,Cfs Assets & Pc Programme,Rep Alterations Maint Building,Buildings - Repairs And Maint,GA102,17/06/2011,17802,"7,490.00 ",REVENUE,RILMAC GROUP,104621
North East Lincolnshire Council,http://statistics.data.gov.uk/id/local-authority/00FC,Children & Family Services,Inclusion And Standards,Standards & Effectiveness,Consultancy,Consultancy,PL101,06/06/2011,13408,"4,125.00 ",REVENUE,ROCHE EDUCATIONAL CONSULTANCY,102121
North East Lincolnshire Council,http://statistics.data.gov.uk/id/local-authority/00FC,Children & Family Services,Inclusion And Standards,Primary Care Provision,Equip / Furniture / Materials,Teaching Materials,LA117,02/06/2011,11956,791.24 ,REVENUE,ROTHERHAM METROPOLITAN BOROUGH COUNCIL,104253
North East Lincolnshire Council,http://statistics.data.gov.uk/id/local-authority/00FC,Children & Family Services,Devolved Formula Cap Grant,Devolved Formula Cap Grant,Cap Land/Build-Build Enh Wrk,Cap Land/Build-Build Enh Wrk,YA102,07/06/2011,13425,"1,468.00 ",CAPITAL,RSB FLOORING,103570
North East Lincolnshire Council,http://statistics.data.gov.uk/id/local-authority/00FC,Children & Family Services,Vulnerable Children,Through Care & Disability,Private Contractors,Third Party Prov - Private,PH101,13/06/2011,15671,"1,200.00 ",REVENUE,RUSKIN MILL EDUCATIONAL TRUST LTD,104476
North East Lincolnshire Council,http://statistics.data.gov.uk/id/local-authority/00FC,Children & Family Services,Commissioning Partn & Perform,Strategic Management,Rents,Rent,GC101,16/06/2011,16823,851.06 ,REVENUE,S & S LEISURE LTD,101006
North East Lincolnshire Council,http://statistics.data.gov.uk/id/local-authority/00FC,Children & Family Services,School'S Kitchens,School'S Kitchens,Cap Land/Build-Build Enh Wrk,Cap Land/Build-Build Enh Wrk,YA102,06/06/2011,13571,"-6,500.00 ",CAPITAL,SAFE AND SECURE LTD,103936
North East Lincolnshire Council,http://statistics.data.gov.uk/id/local-authority/00FC,Children & Family Services,School'S Kitchens,School'S Kitchens,Cap Land/Build-Build Enh Wrk,Cap Land/Build-Build Enh Wrk,YA102,06/06/2011,13572,"6,364.58 ",CAPITAL,SAFE AND SECURE LTD,103936
North East Lincolnshire Council,http://statistics.data.gov.uk/id/local-authority/00FC,Children & Family Services,Vulnerable Children,Placement & Support,Energy Costs,Gas,GB101,02/06/2011,12401,541.48 ,REVENUE,SCOTTISH POWER,101226
North East Lincolnshire Council,http://statistics.data.gov.uk/id/local-authority/00FC,Children & Family Services,Inclusion And Standards,Community Learning Services,Rents,Room Hire,GC103,08/06/2011,14333,669.75 ,REVENUE,SECOND AVENUE RESOURCE CENTRE LIMITED,100648
North East Lincolnshire Council,http://statistics.data.gov.uk/id/local-authority/00FC,Children & Family Services,Inclusion And Standards,Community Learning Services,Rents,Room Hire,GC103,17/06/2011,17667,669.75 ,REVENUE,SECOND AVENUE RESOURCE CENTRE LIMITED,100648
North East Lincolnshire Council,http://statistics.data.gov.uk/id/local-authority/00FC,Children & Family Services,Inclusion And Standards,Community Learning Services,Rents,Room Hire,GC103,24/06/2011,19489,669.75 ,REVENUE,SECOND AVENUE RESOURCE CENTRE LIMITED,100648
North East Lincolnshire Council,http://statistics.data.gov.uk/id/local-authority/00FC,Children & Family Services,Commissioning Partn & Perform,Extended Services,Rents,Rent,GC101,06/06/2011,13454,736.05 ,REVENUE,SECOND AVENUE RESOURCE CENTRE LIMITED,100648
North East Lincolnshire Council,http://statistics.data.gov.uk/id/local-authority/00FC,Children & Family Services,Commissioning Partn & Perform,Childrens Centre Development,Other Agencies,Child Care Payments,PJ104,08/06/2011,14495,"1,309.81 ",REVENUE,SECOND AVENUE RESOURCE CENTRE LIMITED,100648
North East Lincolnshire Council,http://statistics.data.gov.uk/id/local-authority/00FC,Children & Family Services,Inclusion And Standards,Community Learning Services,Grants And Subscriptions,Subscriptions,LJ101,06/06/2011,13549,"1,721.25 ",REVENUE,SERVICE BIRMINGHAM LTD,101923
North East Lincolnshire Council,http://statistics.data.gov.uk/id/local-authority/00FC,Children & Family Services,Inclusion And Standards,Community Learning Services,Grants And Subscriptions,Subscriptions,LJ101,06/06/2011,13549,"1,721.25 ",REVENUE,SERVICE BIRMINGHAM LTD,101923
North East Lincolnshire Council,http://statistics.data.gov.uk/id/local-authority/00FC,Children & Family Services,Inclusion And Standards,Community Learning Services,Grants And Subscriptions,Subscriptions,LJ101,06/06/2011,13549,"1,721.25 ",REVENUE,SERVICE BIRMINGHAM LTD,101923
North East Lincolnshire Council,http://statistics.data.gov.uk/id/local-authority/00FC,Children & Family Services,Inclusion And Standards,Community Learning Services,Grants And Subscriptions,Subscriptions,LJ101,06/06/2011,13549,"1,721.25 ",REVENUE,SERVICE BIRMINGHAM LTD,101923
North East Lincolnshire Council,http://statistics.data.gov.uk/id/local-authority/00FC,Children & Family Services,Inclusion And Standards,Additional & Enhanced Needs,Contributions To Provisions,Contributions - Other,LK103,24/06/2011,19503,"8,670.00 ",REVENUE,SHALOM YOUTH PROJECT,103924
North East Lincolnshire Council,http://statistics.data.gov.uk/id/local-authority/00FC,Children & Family Services,Inclusion And Standards,School Access Governor Student,Contract Hire-Operating Leases,Vehicles - Contract Hire,JC101,13/06/2011,15237,Redacted Commercially Sensitive,REVENUE,SHERWOOD TRAVEL,100868
North East Lincolnshire Council,http://statistics.data.gov.uk/id/local-authority/00FC,Children & Family Services,Inclusion And Standards,School Access Governor Student,Contract Hire-Operating Leases,Vehicles - Contract Hire,JC101,13/06/2011,15236,Redacted Commercially Sensitive,REVENUE,SHERWOOD TRAVEL,100868
North East Lincolnshire Council,http://statistics.data.gov.uk/id/local-authority/00FC,Children & Family Services,Inclusion And Standards,School Access Governor Student,Contract Hire-Operating Leases,Vehicles - Contract Hire,JC101,14/06/2011,16003,Redacted Commercially Sensitive,REVENUE,SHERWOOD TRAVEL,100868
North East Lincolnshire Council,http://statistics.data.gov.uk/id/local-authority/00FC,Children & Family Services,Inclusion And Standards,School Access Governor Student,Contract Hire-Operating Leases,Vehicles - Contract Hire,JC101,14/06/2011,16064,Redacted Commercially Sensitive,REVENUE,SHERWOOD TRAVEL,100868
North East Lincolnshire Council,http://statistics.data.gov.uk/id/local-authority/00FC,Children & Family Services,Nursery Wrap Around Care,Nursery Wrap Around Care,Cap Auc-Build Enh Wrk,Cap Auc-Build Enh Wrk,YF102,30/06/2011,21474,"4,045.76 ",CAPITAL,SIBCAS LTD,103587
North East Lincolnshire Council,http://statistics.data.gov.uk/id/local-authority/00FC,Children & Family Services,Devolved Formula Cap Grant,Devolved Formula Cap Grant,Cap Land/Build-Build Enh Wrk,Cap Land/Build-Build Enh Wrk,YA102,15/06/2011,12337,"1,580.00 ",CAPITAL,SICO EUROPE LTD,100985
North East Lincolnshire Council,http://statistics.data.gov.uk/id/local-authority/00FC,Children & Family Services,Inclusion And Standards,Standards & Effectiveness,Print Stationery / Gen Off Exp,Printing And Stationery,LD103,06/06/2011,13407,598.00 ,REVENUE,SIEMENS FINANCIAL SERVICES LTD,101161
North East Lincolnshire Council,http://statistics.data.gov.uk/id/local-authority/00FC,Children & Family Services,Commissioning Partn & Perform,Extended Services,Miscellaneous Expenses,Activities - Service Users,LL114,29/06/2011,20346,Redacted Commercially Sensitive,REVENUE,SLM COMMUNITY LEISURE LTD,101240
North East Lincolnshire Council,http://statistics.data.gov.uk/id/local-authority/00FC,Children & Family Services,Commissioning Partn & Perform,Extended Services,Miscellaneous Expenses,Activities - Service Users,LL114,08/06/2011,14295,Redacted Commercially Sensitive,REVENUE,SLM COMMUNITY LEISURE LTD,101240
North East Lincolnshire Council,http://statistics.data.gov.uk/id/local-authority/00FC,Children & Family Services,Inclusion And Standards,Standards & Effectiveness,Equip / Furniture / Materials,Equipment - Purchase,LA101,30/06/2011,21293,"6,100.00 ",REVENUE,SOUTH WEST GRID FOR LEARNING TRUST LTD,104907
North East Lincolnshire Council,http://statistics.data.gov.uk/id/local-authority/00FC,Children & Family Services,Commissioning Partn & Perform,Childrens Centre Development,Other Agencies,Nursery Educ Fund - Standard,PJ139,10/06/2011,15192,"3,960.72 ",REVENUE,ST CHRISTOPHERS PLAYGROUP,102148
North East Lincolnshire Council,http://statistics.data.gov.uk/id/local-authority/00FC,Children & Family Services,Commissioning Partn & Perform,Childrens Centre Development,Other Agencies,Nursery Educ Fund - Standard,PJ139,10/06/2011,15191,"5,372.64 ",REVENUE,ST MARGARETS PRE-SCHOOL,101724
North East Lincolnshire Council,http://statistics.data.gov.uk/id/local-authority/00FC,Children & Family Services,Commissioning Partn & Perform,Childrens Centre Development,Other Agencies,Nursery Educ Fund - Standard,PJ139,10/06/2011,15190,"20,664.00 ",REVENUE,ST MARTINS PREPARATORY SCHOOL,100889
North East Lincolnshire Council,http://statistics.data.gov.uk/id/local-authority/00FC,Children & Family Services,Commissioning Partn & Perform,Childrens Centre Development,Other Agencies,Nursery Educ Fund - Standard,PJ139,10/06/2011,15260,"3,139.56 ",REVENUE,ST PETERS CHILDREN CENTRE,101322
North East Lincolnshire Council,http://statistics.data.gov.uk/id/local-authority/00FC,Children & Family Services,Inclusion And Standards,School Access Governor Student,Contract Hire-Operating Leases,Vehicles - Contract Hire,JC101,16/06/2011,16363,Redacted Commercially Sensitive,REVENUE,STAGECOACH SERVICES,101404
North East Lincolnshire Council,http://statistics.data.gov.uk/id/local-authority/00FC,Children & Family Services,Devolved Formula Cap Grant,Devolved Formula Cap Grant,Cap Land/Build-Build Enh Wrk,Cap Land/Build-Build Enh Wrk,YA102,17/06/2011,16284,780.00 ,CAPITAL,STANNAH LIFT SERVICES LTD,100622
North East Lincolnshire Council,http://statistics.data.gov.uk/id/local-authority/00FC,Children & Family Services,Creative Play Facilities,Creative Play Facilities,Cap Ass Held Sale-Prof Fees,Cap Ass Held Sale-Prof Fees,YG102,02/06/2011,12521,"9,087.42 ",CAPITAL,SUTCLIFFE PLAY,102474
North East Lincolnshire Council,http://statistics.data.gov.uk/id/local-authority/00FC,Children & Family Services,Devolved Formula Cap Grant,Devolved Formula Cap Grant,Cap Land/Build-Build Enh Wrk,Cap Land/Build-Build Enh Wrk,YA102,30/06/2011,21497,"13,767.07 ",CAPITAL,TAYLOR PEARSON CONSTRUCTION,102108
North East Lincolnshire Council,http://statistics.data.gov.uk/id/local-authority/00FC,Children & Family Services,Commissioning Partn & Perform,Childrens Centre Development,Equip / Furniture / Materials,Non-Teaching Resources,LA118,28/06/2011,20357,500.00 ,REVENUE,TESCO STORES LIMITED,102576
North East Lincolnshire Council,http://statistics.data.gov.uk/id/local-authority/00FC,Children & Family Services,Commissioning Partn & Perform,Childrens Centre Development,Other Agencies,Nursery Educ Fund - Standard,PJ139,13/06/2011,15261,"2,125.44 ",REVENUE,THE AVENUE PLAYGROUP,103168
North East Lincolnshire Council,http://statistics.data.gov.uk/id/local-authority/00FC,Children & Family Services,Inclusion And Standards,School Access Governor Student,Contract Hire-Operating Leases,Vehicles - Contract Hire,JC101,14/06/2011,16067,Redacted Commercially Sensitive,REVENUE,THE BUS RUN,101522
North East Lincolnshire Council,http://statistics.data.gov.uk/id/local-authority/00FC,Children & Family Services,Commissioning Partn & Perform,Childrens Centre Development,Other Agencies,Nursery Educ Fund - Standard,PJ139,13/06/2011,15262,"4,815.04 ",REVENUE,THE CHILDRENS HOUSE,101141
North East Lincolnshire Council,http://statistics.data.gov.uk/id/local-authority/00FC,Children & Family Services,Inclusion And Standards,Sen/Inclusion,Private Contractors,Third Party Prov - Private,PH101,02/06/2011,12423,"1,749.17 ",REVENUE,THE GRIMSBY INSTITUTE OF FURTHER,102742
North East Lincolnshire Council,http://statistics.data.gov.uk/id/local-authority/00FC,Children & Family Services,Inclusion And Standards,Sen/Inclusion,Equip / Furniture / Materials,Teaching Materials,LA117,20/06/2011,17289,-2.00 ,REVENUE,TWELVE BAR MUSIC,104570
North East Lincolnshire Council,http://statistics.data.gov.uk/id/local-authority/00FC,Children & Family Services,Inclusion And Standards,Sen/Inclusion,Equip / Furniture / Materials,Equipment - Purchase,LA101,30/06/2011,21305,500.00 ,REVENUE,UK SHELVING LTD,104918
North East Lincolnshire Council,http://statistics.data.gov.uk/id/local-authority/00FC,Children & Family Services,Devolved Formula Cap Grant,Devolved Formula Cap Grant,Cap Land/Build-Build Enh Wrk,Cap Land/Build-Build Enh Wrk,YA102,13/06/2011,15726,"3,526.86 ",CAPITAL,UNIBUILD BUILDING CONT LTD,101469
North East Lincolnshire Council,http://statistics.data.gov.uk/id/local-authority/00FC,Children & Family Services,Commissioning Partn & Perform,Extended Services,Print Stationery / Gen Off Exp,Photocopier - Running Costs,LD102,29/06/2011,20204,538.00 ,REVENUE,UNITED CARLTON OFFICE SYSTEMS LTD,101652
North East Lincolnshire Council,http://statistics.data.gov.uk/id/local-authority/00FC,Children & Family Services,Inclusion And Standards,Standards & Effectiveness,Print Stationery / Gen Off Exp,Photocopier - Running Costs,LD102,16/06/2011,16600,565.89 ,REVENUE,UNITED CARLTON OFFICE SYSTEMS LTD,101652
North East Lincolnshire Council,http://statistics.data.gov.uk/id/local-authority/00FC,Children & Family Services,Commissioning Partn & Perform,Extended Services,Print Stationery / Gen Off Exp,Photocopier - Running Costs,LD102,29/06/2011,20271,583.83 ,REVENUE,UNITED CARLTON OFFICE SYSTEMS LTD,101652
North East Lincolnshire Council,http://statistics.data.gov.uk/id/local-authority/00FC,Children & Family Services,Inclusion And Standards,Additional & Enhanced Needs,Print Stationery / Gen Off Exp,Photocopier - Running Costs,LD102,24/06/2011,19505,605.23 ,REVENUE,UNITED CARLTON OFFICE SYSTEMS LTD,101652
North East Lincolnshire Council,http://statistics.data.gov.uk/id/local-authority/00FC,Children & Family Services,Commissioning Partn & Perform,Childrens Centre Development,Print Stationery / Gen Off Exp,Photocopier - Running Costs,LD102,24/06/2011,19296,643.21 ,REVENUE,UNITED CARLTON OFFICE SYSTEMS LTD,101652
North East Lincolnshire Council,http://statistics.data.gov.uk/id/local-authority/00FC,Children & Family Services,Commissioning Partn & Perform,Childrens Centre Development,Print Stationery / Gen Off Exp,Photocopier - Running Costs,LD102,10/06/2011,15306,"1,464.26 ",REVENUE,UNITED CARLTON OFFICE SYSTEMS LTD,101652
North East Lincolnshire Council,http://statistics.data.gov.uk/id/local-authority/00FC,Children & Family Services,Schools Access Initiative,Schools Access Initiative,Cap Land/Build-Build Enh Wrk,Cap Land/Build-Build Enh Wrk,YA102,08/06/2011,14513,"3,225.00 ",CAPITAL,VIVID ACOUSTIC SYSTEMS,102375
North East Lincolnshire Council,http://statistics.data.gov.uk/id/local-authority/00FC,Children & Family Services,Schools Access Initiative,Schools Access Initiative,Cap Land/Build-Build Enh Wrk,Cap Land/Build-Build Enh Wrk,YA102,08/06/2011,14514,"3,900.00 ",CAPITAL,VIVID ACOUSTIC SYSTEMS,102375
North East Lincolnshire Council,http://statistics.data.gov.uk/id/local-authority/00FC,Children & Family Services,Childrens Health & Family Serv,Integrated Youth Services,Contributions To Provisions,Contributions - Other,LK103,14/06/2011,15917,"14,000.00 ",REVENUE,VOLUNTARY ACTION NORTH EAST LINCOLNSHIRE,103631
North East Lincolnshire Council,http://statistics.data.gov.uk/id/local-authority/00FC,Children & Family Services,Commissioning Partn & Perform,Childrens Centre Development,Other Agencies,Nursery Educ Fund - Standard,PJ139,23/06/2011,18806,"13,808.80 ",REVENUE,WALTHAM  PRE SCHOOL,101421
North East Lincolnshire Council,http://statistics.data.gov.uk/id/local-authority/00FC,Children & Family Services,Commissioning Partn & Perform,Childrens Centre Development,Other Agencies,Nursery Educ Fund - Standard,PJ139,22/06/2011,18707,"-13,808.80 ",REVENUE,WALTHAM LEAS PRIMARY SCHOOL,102440
North East Lincolnshire Council,http://statistics.data.gov.uk/id/local-authority/00FC,Children & Family Services,Commissioning Partn & Perform,Childrens Centre Development,Other Agencies,Nursery Educ Fund - Standard,PJ139,13/06/2011,15263,"13,808.80 ",REVENUE,WALTHAM LEAS PRIMARY SCHOOL,102440
North East Lincolnshire Council,http://statistics.data.gov.uk/id/local-authority/00FC,Children & Family Services,Commissioning Partn & Perform,Childrens Health Provision,Rents,Service Charge,GC102,13/06/2011,14051,663.43 ,REVENUE,WEELSBY VIEW HEALTH CENTRE,101761
North East Lincolnshire Council,http://statistics.data.gov.uk/id/local-authority/00FC,Children & Family Services,Commissioning Partn & Perform,Childrens Health Provision,Rents,Service Charge,GC102,13/06/2011,14051,"1,326.87 ",REVENUE,WEELSBY VIEW HEALTH CENTRE,101761
North East Lincolnshire Council,http://statistics.data.gov.uk/id/local-authority/00FC,Children & Family Services,Inclusion And Standards,Standards & Effectiveness,Consultancy,Consultancy,PL101,01/06/2011,11871,"2,500.00 ",REVENUE,WELBECK PRIMARY SCHOOL,104250
North East Lincolnshire Council,http://statistics.data.gov.uk/id/local-authority/00FC,Children & Family Services,Commissioning Partn & Perform,Childrens Centre Development,Other Agencies,Nursery Educ Fund - Standard,PJ139,13/06/2011,15264,"8,611.20 ",REVENUE,WELHOLME PRE SCHOOL,101258
North East Lincolnshire Council,http://statistics.data.gov.uk/id/local-authority/00FC,Children & Family Services,Commissioning Partn & Perform,Childrens Centre Development,Other Agencies,Nursery Educ Fund - Standard,PJ139,10/06/2011,15265,"5,658.00 ",REVENUE,WENDOVER PRE-SCHOOL,101350
North East Lincolnshire Council,http://statistics.data.gov.uk/id/local-authority/00FC,Children & Family Services,Inclusion And Standards,School Access Governor Student,Contract Hire-Operating Leases,Vehicles - Contract Hire,JC101,14/06/2011,16066,Redacted Commercially Sensitive,REVENUE,WHEELCHAIR FRIENDLY TAXI SERVICE,101915
North East Lincolnshire Council,http://statistics.data.gov.uk/id/local-authority/00FC,Children & Family Services,Inclusion And Standards,School Access Governor Student,Contract Hire-Operating Leases,Vehicles - Contract Hire,JC101,14/06/2011,16008,Redacted Commercially Sensitive,REVENUE,WHEELCHAIR FRIENDLY TAXI SERVICE,101915
North East Lincolnshire Council,http://statistics.data.gov.uk/id/local-authority/00FC,Children & Family Services,Inclusion And Standards,Standards & Effectiveness,Rents,Rent,GC101,10/06/2011,15395,810.00 ,REVENUE,WHITGIFT SCHOOL,100867
North East Lincolnshire Council,http://statistics.data.gov.uk/id/local-authority/00FC,Children & Family Services,Inclusion And Standards,Music Services,Rents,Rent,GC101,10/06/2011,15305,"1,985.56 ",REVENUE,WHITGIFT SCHOOL,100867
North East Lincolnshire Council,http://statistics.data.gov.uk/id/local-authority/00FC,Children & Family Services,Commissioning Partn & Perform,Childrens Centre Development,Other Agencies,Nursery Educ Fund - Standard,PJ139,10/06/2011,15267,"5,512.20 ",REVENUE,WIZ KIDZ,102424
North East Lincolnshire Council,http://statistics.data.gov.uk/id/local-authority/00FC,Children & Family Services,Commissioning Partn & Perform,Childrens Centre Development,Equip / Furniture / Materials,Equipment - Purchase,LA101,27/06/2011,19922,-174.75 ,REVENUE,YORKSHIRE PURCHASING,100573
North East Lincolnshire Council,http://statistics.data.gov.uk/id/local-authority/00FC,Children & Family Services,Devolved Formula Cap Grant,Devolved Formula Cap Grant,Cap Land/Build-Build Enh Wrk,Cap Land/Build-Build Enh Wrk,YA102,15/06/2011,15291,869.40 ,CAPITAL,YORKSHIRE PURCHASING,100573
North East Lincolnshire Council,http://statistics.data.gov.uk/id/local-authority/00FC,Children & Family Services,Devolved Formula Cap Grant,Devolved Formula Cap Grant,Cap Land/Build-Build Enh Wrk,Cap Land/Build-Build Enh Wrk,YA102,09/06/2011,14796,"3,082.90 ",CAPITAL,YORKSHIRE PURCHASING,100573
North East Lincolnshire Council,http://statistics.data.gov.uk/id/local-authority/00FC,Community Services,Community & Support Services,Art & Sports Development,Other Agencies,Fees And Commission All Pay,PJ144,09/06/2011,13902,925.00 ,REVENUE,A&M'S DANCE LTD,104366
North East Lincolnshire Council,http://statistics.data.gov.uk/id/local-authority/00FC,Community Services,Business & Performance Mangt,Supporting People,Other Agencies,Third Pp - Block Subsidy,PJ102,16/06/2011,17167,Redacted Commercially Sensitive,REVENUE,ABBEY SUPPORT SERVICES,100313
North East Lincolnshire Council,http://statistics.data.gov.uk/id/local-authority/00FC,Community Services,Business & Performance Mangt,Supporting People,Other Agencies,Third Pp - Block Subsidy,PJ102,16/06/2011,17174,Redacted Commercially Sensitive,REVENUE,ACCACIA HOUSE,100328
North East Lincolnshire Council,http://statistics.data.gov.uk/id/local-authority/00FC,Community Services,Community & Support Services,Events,Other Agencies,Performers,PJ101,01/06/2011,11167,"3,000.00 ",REVENUE,ACTIVE HIRE (LEEDS) LTD,104194
North East Lincolnshire Council,http://statistics.data.gov.uk/id/local-authority/00FC,Community Services,Community & Support Services,Tourist Information Centre,Miscellaneous Income,Miscellaneous Income,VG101,14/06/2011,15985,Redacted Commercially Sensitive,REVENUE,AMVALE LIMITED,101030
North East Lincolnshire Council,http://statistics.data.gov.uk/id/local-authority/00FC,Community Services,Community & Support Services,Tourist Information Centre,Private Contractors,Third Party Prov - Private,PH101,14/06/2011,15985,Redacted Commercially Sensitive,REVENUE,AMVALE LIMITED,101030
North East Lincolnshire Council,http://statistics.data.gov.uk/id/local-authority/00FC,Community Services,Community & Support Services,Discovery Centre,Equip / Furniture / Materials,Goods For Resale,LA123,27/06/2011,19901,-59.11 ,REVENUE,ANGLIA WOODS,100805
North East Lincolnshire Council,http://statistics.data.gov.uk/id/local-authority/00FC,Community Services,Community & Support Services,Bradley Playing Fields,Equip / Furniture / Materials,Goods For Resale,LA123,27/06/2011,19905,-36.32 ,REVENUE,ANGLIA WOODS,100805
North East Lincolnshire Council,http://statistics.data.gov.uk/id/local-authority/00FC,Community Services,Community & Support Services,Discovery Centre,Equip / Furniture / Materials,Goods For Resale,LA123,27/06/2011,19902,-8.65 ,REVENUE,ANGLIA WOODS,100805
North East Lincolnshire Council,http://statistics.data.gov.uk/id/local-authority/00FC,Community Services,Community & Support Services,Discovery Centre,Equip / Furniture / Materials,Goods For Resale,LA123,27/06/2011,19904,-4.12 ,REVENUE,ANGLIA WOODS,100805
North East Lincolnshire Council,http://statistics.data.gov.uk/id/local-authority/00FC,Community Services,Community & Support Services,Library Service,Equip / Furniture / Materials,Goods For Resale,LA123,20/06/2011,17877,-0.95 ,REVENUE,ANGLIA WOODS,100805
North East Lincolnshire Council,http://statistics.data.gov.uk/id/local-authority/00FC,Community Services,Community & Support Services,Museums & N F Heritage Centre,Equip / Furniture / Materials,Goods For Resale,LA123,27/06/2011,19903,-0.95 ,REVENUE,ANGLIA WOODS,100805
North East Lincolnshire Council,http://statistics.data.gov.uk/id/local-authority/00FC,Community Services,Community & Support Services,Bradley Playing Fields,Equip / Furniture / Materials,Goods For Resale,LA123,16/06/2011,16355,"3,507.51 ",REVENUE,ANGLIA WOODS,100805
North East Lincolnshire Council,http://statistics.data.gov.uk/id/local-authority/00FC,Community Services,Community & Support Services,Art & Sports Development,Other Agencies,Performers,PJ101,09/06/2011,14805,655.00 ,REVENUE,ARTLANDISH LTD,101217
North East Lincolnshire Council,http://statistics.data.gov.uk/id/local-authority/00FC,Community Services,Neighbourhood Services,Grounds,Direct Transport Costs,Vehicles - Running Costs,JA104,16/06/2011,17275,998.87 ,REVENUE,ARVAL UK LIMITED,102401
North East Lincolnshire Council,http://statistics.data.gov.uk/id/local-authority/00FC,Community Services,Neighbourhood Services,Street Cleansing,Direct Transport Costs,Vehicles - Running Costs,JA104,16/06/2011,17275,"1,410.47 ",REVENUE,ARVAL UK LIMITED,102401
North East Lincolnshire Council,http://statistics.data.gov.uk/id/local-authority/00FC,Community Services,Neighbourhood Services,Neighbourhood Serv Mgmt A/C,Consultancy,Consultancy,PL101,08/06/2011,14106,"1,747.00 ",REVENUE,BADENOCH & CLARK,101427
North East Lincolnshire Council,http://statistics.data.gov.uk/id/local-authority/00FC,Community Services,Neighbourhood Services,Neighbourhood Serv Mgmt A/C,Consultancy,Consultancy,PL101,07/06/2011,14080,"2,096.40 ",REVENUE,BADENOCH & CLARK,101427
North East Lincolnshire Council,http://statistics.data.gov.uk/id/local-authority/00FC,Community Services,Neighbourhood Services,Grounds,Private Contractors,Third Party Prov - Private,PH101,07/06/2011,13872,"2,084.40 ",REVENUE,BCJ DEVELOPMENTS LTD,104266
North East Lincolnshire Council,http://statistics.data.gov.uk/id/local-authority/00FC,Community Services,Community & Support Services,Library Service,Grants And Subscriptions,Subscriptions,LJ101,09/06/2011,14515,980.90 ,REVENUE,BDS,101578
North East Lincolnshire Council,http://statistics.data.gov.uk/id/local-authority/00FC,Community Services,Community & Support Services,Library Service,Equip / Furniture / Materials,Library Books,LA120,20/06/2011,17691,-19.12 ,REVENUE,BERTRAM LIBRARY SERVICES,101586
North East Lincolnshire Council,http://statistics.data.gov.uk/id/local-authority/00FC,Community Services,Community & Support Services,Library Service,Equip / Furniture / Materials,Library Books,LA120,27/06/2011,19906,-4.86 ,REVENUE,BERTRAM LIBRARY SERVICES,101586
North East Lincolnshire Council,http://statistics.data.gov.uk/id/local-authority/00FC,Community Services,Community & Support Services,Library Service,Equip / Furniture / Materials,Library Books,LA120,20/06/2011,17878,-4.86 ,REVENUE,BERTRAM LIBRARY SERVICES,101586
North East Lincolnshire Council,http://statistics.data.gov.uk/id/local-authority/00FC,Community Services,Community & Support Services,Library Service,Equip / Furniture / Materials,Library Books,LA120,20/06/2011,17690,-4.28 ,REVENUE,BERTRAM LIBRARY SERVICES,101586
North East Lincolnshire Council,http://statistics.data.gov.uk/id/local-authority/00FC,Community Services,Community & Support Services,Library Service,Equip / Furniture / Materials,Library Books,LA120,20/06/2011,17633,640.49 ,REVENUE,BERTRAM LIBRARY SERVICES,101586
North East Lincolnshire Council,http://statistics.data.gov.uk/id/local-authority/00FC,Community Services,Community & Support Services,Library Service,Equip / Furniture / Materials,Library Books,LA120,21/06/2011,17655,693.51 ,REVENUE,BERTRAM LIBRARY SERVICES,101586
North East Lincolnshire Council,http://statistics.data.gov.uk/id/local-authority/00FC,Community Services,Community & Support Services,Library Service,Equip / Furniture / Materials,Library Books,LA120,20/06/2011,17818,748.05 ,REVENUE,BERTRAM LIBRARY SERVICES,101586
North East Lincolnshire Council,http://statistics.data.gov.uk/id/local-authority/00FC,Community Services,Community & Support Services,Library Service,Equip / Furniture / Materials,Library Books,LA120,21/06/2011,17654,950.70 ,REVENUE,BERTRAM LIBRARY SERVICES,101586
North East Lincolnshire Council,http://statistics.data.gov.uk/id/local-authority/00FC,Community Services,Community & Support Services,Library Service,Equip / Furniture / Materials,Library Books,LA120,16/06/2011,16793,791.67 ,REVENUE,BIRMINGHAM CITY COUNCIL,101363
North East Lincolnshire Council,http://statistics.data.gov.uk/id/local-authority/00FC,Community Services,Community & Support Services,Library Service,Communications And Computing,Computer S/Ware - Purchases,LF101,06/06/2011,12967,"8,745.00 ",REVENUE,BRIDGEALL LIBRARIES LTD,104326
North East Lincolnshire Council,http://statistics.data.gov.uk/id/local-authority/00FC,Community Services,Business & Performance Mangt,Supporting People,Other Agencies,Third Pp - Block Subsidy,PJ102,16/06/2011,17168,Redacted Commercially Sensitive,REVENUE,CARE,100314
North East Lincolnshire Council,http://statistics.data.gov.uk/id/local-authority/00FC,Community Services,Community & Support Services,Library Service,Equip / Furniture / Materials,Library Books,LA120,24/06/2011,18982,715.00 ,REVENUE,CENGAGE LEARNING SERVICES,102028
North East Lincolnshire Council,http://statistics.data.gov.uk/id/local-authority/00FC,Community Services,Community & Support Services,Library Service,Equip / Furniture / Materials,Library Books,LA120,28/06/2011,20199,"2,785.00 ",REVENUE,CENGAGE LEARNING SERVICES,102028
North East Lincolnshire Council,http://statistics.data.gov.uk/id/local-authority/00FC,Community Services,Community & Support Services,Events,Other Agencies,Performers,PJ101,17/06/2011,17800,-250.00 ,REVENUE,CHEEKY MONKEYS PARTY HIRE,104116
North East Lincolnshire Council,http://statistics.data.gov.uk/id/local-authority/00FC,Community Services,Business & Performance Mangt,Ot Stores,Equip / Furniture / Materials,Health & Safety Supplies,LA116,15/06/2011,16498,500.00 ,REVENUE,CLARK & PARTNERS LTD,101269
North East Lincolnshire Council,http://statistics.data.gov.uk/id/local-authority/00FC,Community Services,Business & Performance Mangt,Ot Stores,Equip / Furniture / Materials,Health & Safety Supplies,LA116,16/06/2011,14391,614.25 ,REVENUE,CLARK & PARTNERS LTD,101269
North East Lincolnshire Council,http://statistics.data.gov.uk/id/local-authority/00FC,Community Services,Business & Performance Mangt,Ot Stores,Equip / Furniture / Materials,Health & Safety Supplies,LA116,16/06/2011,14393,614.25 ,REVENUE,CLARK & PARTNERS LTD,101269
North East Lincolnshire Council,http://statistics.data.gov.uk/id/local-authority/00FC,Community Services,Neighbourhood Services,Waste Strategy,Equip / Furniture / Materials,Promotions,LA124,09/06/2011,14500,600.00 ,REVENUE,COMPASS FM,104416
North East Lincolnshire Council,http://statistics.data.gov.uk/id/local-authority/00FC,Community Services,Community & Support Services,Library Service,Equip / Furniture / Materials,Library Books,LA120,16/06/2011,17119,504.35 ,REVENUE,COUTTS INFORMATION SERVICES LTD,101281
North East Lincolnshire Council,http://statistics.data.gov.uk/id/local-authority/00FC,Community Services,Community & Support Services,Library Service,Equip / Furniture / Materials,Equipment - Hire,LA102,27/06/2011,19913,-70.00 ,REVENUE,CRS BUSINESS SYSTEMS,101000
North East Lincolnshire Council,http://statistics.data.gov.uk/id/local-authority/00FC,Community Services,Neighbourhood Services,Countryside Management,Rep Alterations Maint Building,Buildings - Repairs And Maint,GA102,07/06/2011,13900,960.00 ,REVENUE,DEAN WILLETT & SONS,101982
North East Lincolnshire Council,http://statistics.data.gov.uk/id/local-authority/00FC,Community Services,Neighbourhood Services,Garage & Fleet Strategy,Direct Transport Costs,Vehicles - Repairs And Maint,JA105,24/06/2011,19380,517.89 ,REVENUE,DENNIS EAGLE LTD,100627
North East Lincolnshire Council,http://statistics.data.gov.uk/id/local-authority/00FC,Community Services,Neighbourhood Services,Garage & Fleet Strategy,Direct Transport Costs,Vehicles - Repairs And Maint,JA105,29/06/2011,20817,823.42 ,REVENUE,DENNIS EAGLE LTD,100627
North East Lincolnshire Council,http://statistics.data.gov.uk/id/local-authority/00FC,Community Services,Neighbourhood Services,Grounds,Private Contractors,Third Party Prov - Private,PH101,30/06/2011,21418,"1,575.00 ",REVENUE,DIRECT TRAFFIC MANAGEMENT LTD,101518
North East Lincolnshire Council,http://statistics.data.gov.uk/id/local-authority/00FC,Community Services,Business & Performance Mangt,Supporting People,Other Agencies,Third Pp - Block Gross,PJ103,29/06/2011,20835,Redacted Commercially Sensitive,REVENUE,DOORSTEP,100310
North East Lincolnshire Council,http://statistics.data.gov.uk/id/local-authority/00FC,Community Services,Neighbourhood Services,Countryside Management,Equip / Furniture / Materials,Equipment - Purchase,LA101,24/06/2011,19044,625.00 ,REVENUE,E K M LTD,101926
North East Lincolnshire Council,http://statistics.data.gov.uk/id/local-authority/00FC,Community Services,Community & Support Services,Art & Sports Development,Other Agencies,Performers,PJ101,15/06/2011,16499,"1,385.00 ",REVENUE,EDUCATIONAL DANCE,104352
North East Lincolnshire Council,http://statistics.data.gov.uk/id/local-authority/00FC,Community Services,Business & Performance Mangt,Supporting People,Communications And Computing,Telephones,LF112,21/06/2011,17873,-21.00 ,REVENUE,EXPERIAN LIMITED,100909
North East Lincolnshire Council,http://statistics.data.gov.uk/id/local-authority/00FC,Community Services,Neighbourhood Services,Grounds,Equip / Furniture / Materials,Equipment - Purchase,LA101,07/06/2011,13904,"1,159.00 ",REVENUE,FLEET (LINE MARKERS) LIMITED,100595
North East Lincolnshire Council,http://statistics.data.gov.uk/id/local-authority/00FC,Community Services,Neighbourhood Services,Garage & Fleet Strategy,Equip / Furniture / Materials,Equipment - Purchase,LA101,23/06/2011,18862,"1,325.00 ",REVENUE,FLEET FACTORS LTD,100886
North East Lincolnshire Council,http://statistics.data.gov.uk/id/local-authority/00FC,Community Services,Community & Support Services,Events,Other Agencies,Performers,PJ101,09/06/2011,14812,"1,630.00 ",REVENUE,FOOLS PARADISE LTD,104193
North East Lincolnshire Council,http://statistics.data.gov.uk/id/local-authority/00FC,Community Services,Community & Support Services,Events,Other Agencies,Performers,PJ101,10/06/2011,14914,825.00 ,REVENUE,FUNTIME HIRE LTD,104436
North East Lincolnshire Council,http://statistics.data.gov.uk/id/local-authority/00FC,Community Services,Community & Support Services,Library Service,Equip / Furniture / Materials,Equipment - Purchase,LA101,07/06/2011,13486,971.99 ,REVENUE,GRESSWELL,101461
North East Lincolnshire Council,http://statistics.data.gov.uk/id/local-authority/00FC,Community Services,Business & Performance Mangt,Supporting People,Other Agencies,Third Pp - Block Gross,PJ103,29/06/2011,20833,Redacted Commercially Sensitive,REVENUE,GRIMSBY AND CLEETHORPES YMCA,100305
North East Lincolnshire Council,http://statistics.data.gov.uk/id/local-authority/00FC,Community Services,Neighbourhood Services,Street Cleansing,Private Contractors,Third Party Prov - Private,PH101,29/06/2011,20799,"1,044.29 ",REVENUE,GULLIVER'S TRUCK HIRE LTD,102493
North East Lincolnshire Council,http://statistics.data.gov.uk/id/local-authority/00FC,Community Services,Business & Performance Mangt,Supporting People,Other Agencies,Third Pp - Block Subsidy,PJ102,16/06/2011,17169,Redacted Commercially Sensitive,REVENUE,HICA,100319
North East Lincolnshire Council,http://statistics.data.gov.uk/id/local-authority/00FC,Community Services,Neighbourhood Services,Countryside Management,Equip / Furniture / Materials,Equipment - Purchase,LA101,28/06/2011,20011,765.00 ,REVENUE,HODSON & KAUSS,100620
North East Lincolnshire Council,http://statistics.data.gov.uk/id/local-authority/00FC,Community Services,Business & Performance Mangt,Supporting People,Other Agencies,Third Pp - Block Subsidy,PJ102,30/06/2011,20975,Redacted Commercially Sensitive,REVENUE,HOUSING & SUPPORT SOLUTIONS,100321
North East Lincolnshire Council,http://statistics.data.gov.uk/id/local-authority/00FC,Community Services,Business & Performance Mangt,Supporting People,Other Agencies,Third Pp - Block Subsidy,PJ102,16/06/2011,17171,Redacted Commercially Sensitive,REVENUE,HOUSING & SUPPORT SOLUTIONS,100321
North East Lincolnshire Council,http://statistics.data.gov.uk/id/local-authority/00FC,Community Services,Business & Performance Mangt,Supporting People,Other Agencies,Third Pp - Block Subsidy,PJ102,16/06/2011,17170,Redacted Commercially Sensitive,REVENUE,HOUSING 21,100320
North East Lincolnshire Council,http://statistics.data.gov.uk/id/local-authority/00FC,Community Services,Business & Performance Mangt,Ot Stores,Equip / Furniture / Materials,Health & Safety Supplies,LA116,16/06/2011,17048,650.56 ,REVENUE,HUGH STEEPER LIMITED,101616
North East Lincolnshire Council,http://statistics.data.gov.uk/id/local-authority/00FC,Community Services,Community & Support Services,Tourist Information Centre,Private Contractors,Third Party Prov - Private,PH101,14/06/2011,15987,"4,860.00 ",REVENUE,HUMBER BRIDGE BOARD,101054
North East Lincolnshire Council,http://statistics.data.gov.uk/id/local-authority/00FC,Community Services,Community & Support Services,Discovery Centre,Private Contractors,Third Party Prov - Private,PH101,15/06/2011,16051,"6,658.20 ",REVENUE,HUMBER BRIDGE BOARD,101054
North East Lincolnshire Council,http://statistics.data.gov.uk/id/local-authority/00FC,Community Services,Business & Performance Mangt,Supporting People,Other Agencies,Third Pp - Block Gross,PJ103,29/06/2011,20836,Redacted Commercially Sensitive,REVENUE,HUMBERCARE,100311
North East Lincolnshire Council,http://statistics.data.gov.uk/id/local-authority/00FC,Community Services,Neighbourhood Services,Street Cleansing,Indirect Employee Expenses,Staff Training,EB122,30/06/2011,21374,"7,500.00 ",REVENUE,HUMBERSIDE POLICE AUTHORITY,100762
North East Lincolnshire Council,http://statistics.data.gov.uk/id/local-authority/00FC,Community Services,Community & Support Services,Library Service,Print Stationery / Gen Off Exp,Printing And Stationery,LD103,24/06/2011,19364,781.84 ,REVENUE,IMAGEDATA GROUP LTD,104779
North East Lincolnshire Council,http://statistics.data.gov.uk/id/local-authority/00FC,Community Services,Community & Support Services,Library Service,Private Contractors,Third Party Prov - Private,PH101,07/06/2011,14082,738.30 ,REVENUE,INFO TECHNOLOGY SUPPLY LIMITED,101771
North East Lincolnshire Council,http://statistics.data.gov.uk/id/local-authority/00FC,Community Services,Community & Support Services,Library Service,Private Contractors,Third Party Prov - Private,PH101,07/06/2011,14082,"3,691.51 ",REVENUE,INFO TECHNOLOGY SUPPLY LIMITED,101771
North East Lincolnshire Council,http://statistics.data.gov.uk/id/local-authority/00FC,Community Services,Community & Support Services,Discovery Centre,Equip / Furniture / Materials,Equipment - Hire,LA102,29/06/2011,20802,660.55 ,REVENUE,INVESTEC ASSET FINANCE PLC,104003
North East Lincolnshire Council,http://statistics.data.gov.uk/id/local-authority/00FC,Community Services,Neighbourhood Services,Resort Management,Rep Alterations Maint Building,Buildings - Repairs And Maint,GA102,30/06/2011,21479,"9,039.39 ",REVENUE,J MCCANN & CO LTD,100841
North East Lincolnshire Council,http://statistics.data.gov.uk/id/local-authority/00FC,Community Services,Neighbourhood Services,Resort Management,Rep Alterations Maint Building,Buildings - Repairs And Maint,GA102,30/06/2011,21379,"5,910.00 ",REVENUE,J MELTON LTD,100636
North East Lincolnshire Council,http://statistics.data.gov.uk/id/local-authority/00FC,Community Services,Neighbourhood Services,Grounds,Grounds Maintenance Costs,Grounds Maintenance,GJ101,07/06/2011,14027,500.00 ,REVENUE,J MELTON TREE SERVICES LTD,101809
North East Lincolnshire Council,http://statistics.data.gov.uk/id/local-authority/00FC,Community Services,Neighbourhood Services,Grounds,Grounds Maintenance Costs,Grounds Maintenance,GJ101,07/06/2011,14027,520.00 ,REVENUE,J MELTON TREE SERVICES LTD,101809
North East Lincolnshire Council,http://statistics.data.gov.uk/id/local-authority/00FC,Community Services,Neighbourhood Services,Grounds,Grounds Maintenance Costs,Grounds Maintenance,GJ101,14/06/2011,16030,"1,200.00 ",REVENUE,J MELTON TREE SERVICES LTD,101809
North East Lincolnshire Council,http://statistics.data.gov.uk/id/local-authority/00FC,Community Services,Neighbourhood Services,Grounds,Grounds Maintenance Costs,Grounds Maintenance,GJ101,07/06/2011,14027,"1,300.00 ",REVENUE,J MELTON TREE SERVICES LTD,101809
North East Lincolnshire Council,http://statistics.data.gov.uk/id/local-authority/00FC,Community Services,Neighbourhood Services,Grounds,Equip / Furniture / Materials,Equipment - Purchase,LA101,15/06/2011,16512,708.55 ,REVENUE,JACKSON BUILDING CENTRES LTD,100817
North East Lincolnshire Council,http://statistics.data.gov.uk/id/local-authority/00FC,Community Services,Neighbourhood Services,Countryside Management,Equip / Furniture / Materials,Equipment - Purchase,LA101,15/06/2011,16510,765.00 ,REVENUE,JACKSON BUILDING CENTRES LTD,100817
North East Lincolnshire Council,http://statistics.data.gov.uk/id/local-authority/00FC,Community Services,Neighbourhood Services,Cemeteries & Crematorium,Grounds Maintenance Costs,Grounds Maintenance,GJ101,01/06/2011,11878,607.60 ,REVENUE,JAMES COLES & SONS LTD,100758
North East Lincolnshire Council,http://statistics.data.gov.uk/id/local-authority/00FC,Community Services,Neighbourhood Services,Grounds,Grounds Maintenance Costs,Grounds Maintenance,GJ101,30/06/2011,21419,"1,600.00 ",REVENUE,JAMES COLES & SONS LTD,100758
North East Lincolnshire Council,http://statistics.data.gov.uk/id/local-authority/00FC,Community Services,Neighbourhood Services,Garage & Fleet Strategy,Direct Transport Costs,Vehicles - Repairs And Maint,JA105,01/06/2011,11707,686.14 ,REVENUE,JOHNSTON SWEEPERS LTD,101463
North East Lincolnshire Council,http://statistics.data.gov.uk/id/local-authority/00FC,Community Services,Neighbourhood Services,Garage & Fleet Strategy,Direct Transport Costs,Vehicles - Repairs And Maint,JA105,09/06/2011,14602,778.74 ,REVENUE,JOHNSTON SWEEPERS LTD,101463
North East Lincolnshire Council,http://statistics.data.gov.uk/id/local-authority/00FC,Community Services,Neighbourhood Services,Cemeteries & Crematorium,Print Stationery / Gen Off Exp,Printing And Stationery,LD103,02/06/2011,11988,513.17 ,REVENUE,KALAMAZOO SECURE SOLUTIONS LTD,104255
North East Lincolnshire Council,http://statistics.data.gov.uk/id/local-authority/00FC,Community Services,Business & Performance Mangt,Supporting People,Other Agencies,Third Pp - Block Subsidy,PJ102,16/06/2011,17172,Redacted Commercially Sensitive,REVENUE,KERSHAW HOUSE,100322
North East Lincolnshire Council,http://statistics.data.gov.uk/id/local-authority/00FC,Community Services,Neighbourhood Services,Garage & Fleet Strategy,Direct Transport Costs,Vehicles - Repairs And Maint,JA105,13/06/2011,15699,699.29 ,REVENUE,LAWNMOWER SERVICE(LINCOLN)LTD,100544
North East Lincolnshire Council,http://statistics.data.gov.uk/id/local-authority/00FC,Community Services,Neighbourhood Services,Garage & Fleet Strategy,Direct Transport Costs,Vehicles - Repairs And Maint,JA105,13/06/2011,15704,750.00 ,REVENUE,LAWNMOWER SERVICE(LINCOLN)LTD,100544
North East Lincolnshire Council,http://statistics.data.gov.uk/id/local-authority/00FC,Community Services,Neighbourhood Services,Garage & Fleet Strategy,Direct Transport Costs,Vehicles - Repairs And Maint,JA105,13/06/2011,15701,"1,265.57 ",REVENUE,LAWNMOWER SERVICE(LINCOLN)LTD,100544
North East Lincolnshire Council,http://statistics.data.gov.uk/id/local-authority/00FC,Community Services,Business & Performance Mangt,Supporting People,Other Agencies,Third Pp - Block Subsidy,PJ102,16/06/2011,17180,Redacted Commercially Sensitive,REVENUE,LONGHURST AND HAVELOK HOMES LTD,100342
North East Lincolnshire Council,http://statistics.data.gov.uk/id/local-authority/00FC,Community Services,Business & Performance Mangt,Supporting People,Other Agencies,Third Pp - Block Subsidy,PJ102,16/06/2011,17179,Redacted Commercially Sensitive,REVENUE,LONGHURST AND HAVELOK HOMES LTD,100342
North East Lincolnshire Council,http://statistics.data.gov.uk/id/local-authority/00FC,Community Services,Business & Performance Mangt,Supporting People,Other Agencies,Third Pp - Block Gross,PJ103,29/06/2011,20839,Redacted Commercially Sensitive,REVENUE,LONGHURST AND HAVELOK HOMES LTD,100342
North East Lincolnshire Council,http://statistics.data.gov.uk/id/local-authority/00FC,Community Services,Community & Support Services,Library Service,Equip / Furniture / Materials,Equipment - Purchase,LA101,27/06/2011,19912,-55.99 ,REVENUE,LYRECO UK LIMITED,101120
North East Lincolnshire Council,http://statistics.data.gov.uk/id/local-authority/00FC,Community Services,Community & Support Services,Customer Services,Print Stationery / Gen Off Exp,Printing And Stationery,LD103,27/06/2011,19897,-37.89 ,REVENUE,LYRECO UK LIMITED,101120
North East Lincolnshire Council,http://statistics.data.gov.uk/id/local-authority/00FC,Community Services,Community & Support Services,Customer Services,Print Stationery / Gen Off Exp,Printing And Stationery,LD103,08/06/2011,14369,-27.60 ,REVENUE,LYRECO UK LIMITED,101120
North East Lincolnshire Council,http://statistics.data.gov.uk/id/local-authority/00FC,Community Services,Community & Support Services,Communities Business Supp,Communications And Computing,Computer Consumables,LF109,09/06/2011,14563,580.20 ,REVENUE,LYRECO UK LIMITED,101120
North East Lincolnshire Council,http://statistics.data.gov.uk/id/local-authority/00FC,Community Services,Business & Performance Mangt,Operational Costs,Equip / Furniture / Materials,Office Equipment - Purchase,LA110,20/06/2011,17844,633.72 ,REVENUE,LYRECO UK LIMITED,101120
North East Lincolnshire Council,http://statistics.data.gov.uk/id/local-authority/00FC,Community Services,Community & Support Services,Library Service,Communications And Computing,Computer Consumables,LF109,09/06/2011,14310,914.92 ,REVENUE,LYRECO UK LIMITED,101120
North East Lincolnshire Council,http://statistics.data.gov.uk/id/local-authority/00FC,Community Services,Community & Support Services,Communities Business Supp,Communications And Computing,Computer Consumables,LF109,09/06/2011,14562,958.98 ,REVENUE,LYRECO UK LIMITED,101120
North East Lincolnshire Council,http://statistics.data.gov.uk/id/local-authority/00FC,Community Services,Neighbourhood Services,Waste Collection,Private Contractors,Third Party Prov - Private,PH101,14/06/2011,15952,"3,600.00 ",REVENUE,MGB,101544
North East Lincolnshire Council,http://statistics.data.gov.uk/id/local-authority/00FC,Community Services,Business & Performance Mangt,Ot Stores,Equip / Furniture / Materials,Health & Safety Supplies,LA116,24/06/2011,18006,817.00 ,REVENUE,MOUNTWAY LTD,101232
North East Lincolnshire Council,http://statistics.data.gov.uk/id/local-authority/00FC,Community Services,Community & Support Services,Art & Sports Development,Other Agencies,Nursery Educ Fund - Standard,PJ139,07/06/2011,13901,"6,000.00 ",REVENUE,NATIONAL CENTRE FOR EARLY MUSIC,104389
North East Lincolnshire Council,http://statistics.data.gov.uk/id/local-authority/00FC,Community Services,Community & Support Services,Tourist Information Centre,Miscellaneous Income,Miscellaneous Income,VG101,20/06/2011,18142,Redacted Commercially Sensitive,REVENUE,NATIONAL EXPRESS LTD,100835
North East Lincolnshire Council,http://statistics.data.gov.uk/id/local-authority/00FC,Community Services,Community & Support Services,Tourist Information Centre,Miscellaneous Income,Miscellaneous Income,VG101,20/06/2011,18141,Redacted Commercially Sensitive,REVENUE,NATIONAL EXPRESS LTD,100835
North East Lincolnshire Council,http://statistics.data.gov.uk/id/local-authority/00FC,Community Services,Community & Support Services,Tourist Information Centre,Private Contractors,Third Party Prov - Private,PH101,20/06/2011,18141,Redacted Commercially Sensitive,REVENUE,NATIONAL EXPRESS LTD,100835
North East Lincolnshire Council,http://statistics.data.gov.uk/id/local-authority/00FC,Community Services,Community & Support Services,Tourist Information Centre,Private Contractors,Third Party Prov - Private,PH101,20/06/2011,18142,Redacted Commercially Sensitive,REVENUE,NATIONAL EXPRESS LTD,100835
North East Lincolnshire Council,http://statistics.data.gov.uk/id/local-authority/00FC,Community Services,Business & Performance Mangt,Supporting People,Other Agencies,Third Pp - Block Subsidy,PJ102,16/06/2011,17178,Redacted Commercially Sensitive,REVENUE,NORTH EAST LINCOLNSHIRE CARE TRUST PLUS LD,100340
North East Lincolnshire Council,http://statistics.data.gov.uk/id/local-authority/00FC,Community Services,Neighbourhood Services,Resort Management,Rates,Rates,GD101,01/06/2011,11134,974.25 ,REVENUE,NORTH EAST LINCOLNSHIRE COUNCIL,100894
North East Lincolnshire Council,http://statistics.data.gov.uk/id/local-authority/00FC,Community Services,Community & Support Services,Bradley Playing Fields,Rates,Rates,GD101,03/06/2011,12579,"7,033.46 ",REVENUE,NORTH EAST LINCOLNSHIRE COUNCIL,100894
North East Lincolnshire Council,http://statistics.data.gov.uk/id/local-authority/00FC,Community Services,Community & Support Services,Bradley Playing Fields,Rates,Rates,GD101,03/06/2011,12579,"12,665.25 ",REVENUE,NORTH EAST LINCOLNSHIRE COUNCIL,100894
North East Lincolnshire Council,http://statistics.data.gov.uk/id/local-authority/00FC,Community Services,Business & Performance Mangt,Supporting People,Other Agencies,Third Pp - Block Subsidy,PJ102,16/06/2011,17176,Redacted Commercially Sensitive,REVENUE,NORTH EAST LINCOLNSHIRE PRIMARY CARE TRUST,100337
North East Lincolnshire Council,http://statistics.data.gov.uk/id/local-authority/00FC,Community Services,Community & Support Services,Library Service,Equip / Furniture / Materials,Library Books,LA120,06/06/2011,12786,-33.00 ,REVENUE,OCLC EUROPE,100875
North East Lincolnshire Council,http://statistics.data.gov.uk/id/local-authority/00FC,Community Services,Business & Performance Mangt,Supporting People,Other Agencies,Third Pp - Block Subsidy,PJ102,16/06/2011,17181,Redacted Commercially Sensitive,REVENUE,OPEN DOOR (HEALTH) LTD,103147
North East Lincolnshire Council,http://statistics.data.gov.uk/id/local-authority/00FC,Community Services,Neighbourhood Services,Waste Collection,Rep Alterations Maint Building,Buildings - Repairs And Maint,GA102,09/06/2011,14596,"-1,665.00 ",REVENUE,OTTO WASTE SOLUTIONS LTD,104422
North East Lincolnshire Council,http://statistics.data.gov.uk/id/local-authority/00FC,Community Services,Neighbourhood Services,Waste Collection,Rep Alterations Maint Building,Buildings - Repairs And Maint,GA102,09/06/2011,14629,578.40 ,REVENUE,OTTO WASTE SOLUTIONS LTD,104422
North East Lincolnshire Council,http://statistics.data.gov.uk/id/local-authority/00FC,Community Services,Neighbourhood Services,Waste Collection,Rep Alterations Maint Building,Buildings - Repairs And Maint,GA102,09/06/2011,14630,"2,384.00 ",REVENUE,OTTO WASTE SOLUTIONS LTD,104422
North East Lincolnshire Council,http://statistics.data.gov.uk/id/local-authority/00FC,Community Services,Neighbourhood Services,Garage & Fleet Strategy,Direct Transport Costs,Vehicles - Repairs And Maint,JA105,06/06/2011,12784,-227.53 ,REVENUE,P J PRESTON AUTO ELECT LTD,100739
